Workbook

Sheet Accueil

Sheet Mon_evenement
V12: 10 | AA12: 10000
C15: Afin de vous proposer des mesures adaptées à votre événement, vous pouvez ici préciser les caractéristiques de votre événement. Remplissez les 11 cases ci-contre et les 4 cases ci-dessous puis passez à l'étape suivante en cliquant sur le bouton "objectifs" ci dessus. | P15: Plusieurs jours
AF17: 10
O23: Intérieur
AH26: Journée
P30: Communautaire
AG32: Pas de déplacements
Z35: Non
R38: Non
AC39: Non

Sheet Mes_objectifs
N15: à minima
G17: à minima | Q17: à minima
AD19: =1366/768 -> 1.778645833
AD20: =16/9 -> 1.777777778
E23: à minima | S23: à minima
D28: à minima | T28: à minima
F33: à minima | R33: à minima
G39: à minima | Q39: à minima
N41: à minima

Sheet Actions
A6: id | B6: THEMES | C6: SOUS-THEMES | D6: CATEGORIES | E6: OBJECTIFS | F6: ACTIONS D'AMELIORATIONS | G6: PRIO | H6: . | I6: CHOIX | J6: RESPONSABLE | K6: ETAT | L6: ACTIONS ENTREPRISES | M6: EXEMPLES ET LIENS | N6: Ancrage territorial | O6: Biodiversité | P6: Culture | Q6: Economie | R6: Empreinte carbone | S6: Equité | T6: Gestion des ressources | U6: Gouvernance | V6: Respect des participants | W6: Sécurité | X6: Solidarité | Y6: Voisinage | Z6: Déplacements | AA6: Pas de déplacements | AB6: Journée | AC6: Soirée | AD6: < 1 Jour | AE6: Plusieurs jours | AF6: Intérieur | AG6: Extérieur | AH6: Communautaire | AI6: Ouvert | AJ6: Oui | AK6: Non | AL6: Oui | AM6: Oui | AN6: Sans alimentation | AO6: Nécessite un budget | AP6: Aucun budget | AQ6: Organisateurs | AR6: Participants | AS6: Compliqué | AT6: Simple | AU6: Applicable | AV6: d | AW6: A Garder | AX6: AT | AY6: B | AZ6: C | BA6: Eco | BB6: E C | BC6: Eq | BD6: G R | BE6: G | BF6: R P | BG6: Secu | BH6: Soli | BI6: V | BJ6: TOTAL
A7: 3 | B7: ANCRAGE TERRITORIAL | C7: Contextualisation de l'événement | D7: Espace naturel | E7: Etudier l'impact local de l'événement | F7: Faire un diagnostic de l'impact local de l'évènement avant et après sa réalisation. | G7: 1 | N7: X | U7: X | Z7: X | AA7: X | AB7: X | AC7: X | AD7: X | AE7: X | AF7: O | AG7: X | AH7: X | AI7: X | AJ7: X | AK7: X | AL7: X | AM7: X | AN7: X | AW7: =IF(OR(BJ7=0,AU7="Non applicable"),0,1) -> 0 | AX7: =IF(AND(N7="X",$G7>=AX$471),1,0) -> 0 | AY7: =IF(AND(O7="X",$G7>=AY$471),1,0) -> 0 | AZ7: =IF(AND(P7="X",$G7>=AZ$471),1,0) -> 0 | BA7: =IF(AND(Q7="X",$G7>=BA$471),1,0) -> 0 | BB7: =IF(AND(R7="X",$G7>=BB$471),1,0) -> 0 | BC7: =IF(AND(S7="X",$G7>=BC$471),1,0) -> 0 | BD7: =IF(AND(T7="X",$G7>=BD$471),1,0) -> 0 | BE7: =IF(AND(U7="X",$G7>=BE$471),1,0) -> 0 | BF7: =IF(AND(V7="X",$G7>=BF$471),1,0) -> 0 | BG7: =IF(AND(W7="X",$G7>=BG$471),1,0) -> 0 | BH7: =IF(AND(X7="X",$G7>=BH$471),1,0) -> 0 | BI7: =IF(AND(Y7="X",$G7>=BI$471),1,0) -> 0 | BJ7: =SUM(AX7:BI7) -> 0
A8: 4 | B8: ANCRAGE TERRITORIAL | C8: Contextualisation de l'événement | D8: Lieu de vie/décors | E8: Faire découvrir le cadre local | F8: Privilégier le recrutement d'organisateurs ayant vécu sur le territoire d'accueil de l'évènement. | G8: 1 | N8: X | Z8: X | AA8: X | AB8: X | AC8: X | AD8: X | AE8: X | AF8: X | AG8: X | AH8: X | AI8: X | AJ8: X | AK8: X | AL8: X | AM8: X | AN8: X | AW8: 0 | AX8: 0 | AY8: 0 | AZ8: 0 | BA8: 0 | BB8: 0 | BC8: 0 | BD8: 0 | BE8: 0 | BF8: 0 | BG8: 0 | BH8: 0 | BI8: 0 | BJ8: 0
A9: 5 | B9: ANCRAGE TERRITORIAL | C9: Contextualisation de l'événement | D9: Lieu de vie/décors | E9: Faire découvrir le cadre local | F9: Inviter les participants à découvrir la région dans laquelle s'organise l'évènement. | G9: 1 | N9: X | Z9: X | AA9: X | AB9: X | AC9: X | AD9: O | AE9: X | AF9: X | AG9: X | AH9: X | AI9: X | AJ9: X | AK9: X | AL9: X | AM9: X | AN9: X | AW9: 0 | AX9: 0 | AY9: 0 | AZ9: 0 | BA9: 0 | BB9: 0 | BC9: 0 | BD9: 0 | BE9: 0 | BF9: 0 | BG9: 0 | BH9: 0 | BI9: 0 | BJ9: 0
A10: 6 | B10: ANCRAGE TERRITORIAL | C10: Contextualisation de l'événement | D10: Lieu de vie/décors | E10: Faire découvrir le cadre local | F10: Intégrer le cadre local de l'évènement dans la stratégie de communication externe. | G10: 1 | N10: X | Z10: X | AA10: X | AB10: X | AC10: O | AD10: O | AE10: X | AF10: X | AG10: X | AH10: X | AI10: X | AJ10: X | AK10: X | AL10: X | AM10: X | AN10: X | AW10: 0 | AX10: 0 | AY10: 0 | AZ10: 0 | BA10: 0 | BB10: 0 | BC10: 0 | BD10: 0 | BE10: 0 | BF10: 0 | BG10: 0 | BH10: 0 | BI10: 0 | BJ10: 0
A11: 7 | B11: ANCRAGE TERRITORIAL | C11: Contextualisation de l'événement | D11: Lieu de vie/décors | E11: Promouvoir les activités locales | F11: Promouvoir les sports et activités locales. Privilégier l'oganisation de sports et d'activités en partenariat avec des structures locales ou faire découvrir les sports et activités traditionnels locales. | G11: 1 | N11: X | Z11: X | AA11: X | AB11: X | AC11: X | AD11: X | AE11: X | AF11: X | AG11: X | AH11: X | AI11: X | AJ11: X | AK11: X | AL11: X | AM11: X | AN11: X | AW11: 0 | AX11: 0 | AY11: 0 | AZ11: 0 | BA11: 0 | BB11: 0 | BC11: 0 | BD11: 0 | BE11: 0 | BF11: 0 | BG11: 0 | BH11: 0 | BI11: 0 | BJ11: 0
A12: 8 | B12: ANCRAGE TERRITORIAL | C12: Contextualisation de l'événement | D12: Lieu de vie/décors | E12: Promouvoir les activités locales | F12: Mettre en avant les politiques locales de développement durable. | G12: 1 | N12: X | Z12: X | AA12: X | AB12: X | AC12: X | AD12: X | AE12: X | AF12: X | AG12: X | AH12: X | AI12: X | AJ12: X | AK12: X | AL12: X | AM12: X | AN12: X | AW12: 0 | AX12: 0 | AY12: 0 | AZ12: 0 | BA12: 0 | BB12: 0 | BC12: 0 | BD12: 0 | BE12: 0 | BF12: 0 | BG12: 0 | BH12: 0 | BI12: 0 | BJ12: 0
A13: 9 | B13: ANCRAGE TERRITORIAL | C13: Economie locale | D13: Lieu de vie/décors | E13: Intégrer l'événement dans l'économie locale | F13: S'assurer de la cohérence du thème de l'évènement avec le contexte économique, politique et social local. | G13: 1 | N13: X | Z13: X | AA13: X | AB13: X | AC13: X | AD13: X | AE13: X | AF13: X | AG13: X | AH13: X | AI13: X | AJ13: X | AK13: X | AL13: X | AM13: X | AN13: X | AW13: 0 | AX13: 0 | AY13: 0 | AZ13: 0 | BA13: 0 | BB13: 0 | BC13: 0 | BD13: 0 | BE13: 0 | BF13: 0 | BG13: 0 | BH13: 0 | BI13: 0 | BJ13: 0
A14: 10 | B14: ANCRAGE TERRITORIAL | C14: Economie locale | D14: Lieu de vie/décors | E14: Intégrer l'événement dans l'économie locale | F14: Proposer aux participants un hébergement près du lieu de l'évènement / informer les participants sur les lieux d'hébergements locaux. | G14: 2 | N14: X | Z14: X | AA14: X | AB14: X | AC14: X | AD14: O | AE14: X | AF14: X | AG14: X | AH14: X | AI14: X | AJ14: X | AK14: X | AL14: X | AM14: X | AN14: X | AW14: 0 | AX14: 0 | AY14: 0 | AZ14: 0 | BA14: 0 | BB14: 0 | BC14: 0 | BD14: 0 | BE14: 0 | BF14: 0 | BG14: 0 | BH14: 0 | BI14: 0 | BJ14: 0
A15: 11 | B15: ANCRAGE TERRITORIAL | C15: Economie locale | D15: Lieu de vie/décors | E15: Intégrer l'événement dans l'économie locale | F15: Mettre en place des partenariats avec des acteurs locaux (restauration, transport, conférences, inviter un producteur à vendre sa production de miel, etc). | G15: 1 | N15: X | Z15: X | AA15: X | AB15: X | AC15: X | AD15: X | AE15: X | AF15: X | AG15: X | AH15: X | AI15: X | AJ15: X | AK15: X | AL15: X | AM15: X | AN15: X | AW15: 0 | AX15: 0 | AY15: 0 | AZ15: 0 | BA15: 0 | BB15: 0 | BC15: 0 | BD15: 0 | BE15: 0 | BF15: 0 | BG15: 0 | BH15: 0 | BI15: 0 | BJ15: 0
A16: 12 | B16: ANCRAGE TERRITORIAL | C16: Economie locale | D16: Lieu de vie/décors | E16: Intégrer l'événement dans l'économie locale | F16: Insérer autant que possible l'évènement dans les circuits économiques courts locaux (exemple : AMAP, Système d'Echange Local, etc.). | G16: 3 | N16: X | Z16: X | AA16: X | AB16: X | AC16: X | AD16: X | AE16: X | AF16: X | AG16: X | AH16: X | AI16: X | AJ16: X | AK16: X | AL16: X | AM16: X | AN16: X | AW16: =IF(OR(BJ16=0,AU16="Non applicable"),0,1) -> 1 | AX16: 1 | AY16: 0 | AZ16: 0 | BA16: 0 | BB16: 0 | BC16: 0 | BD16: 0 | BE16: 0 | BF16: 0 | BG16: 0 | BH16: 0 | BI16: 0 | BJ16: =SUM(AX16:BI16) -> 1
A17: 13 | B17: ANCRAGE TERRITORIAL | C17: Economie locale | D17: Lieu de vie/décors | E17: Intégrer l'événement dans l'économie locale | F17: Informer les participants sur les lieux de restauration locaux (ex : annuaires ou guides existants ou à créer, partenariats-réductions). | G17: 1 | N17: X | Z17: X | AA17: X | AB17: X | AC17: X | AD17: X | AE17: X | AF17: X | AG17: X | AH17: X | AI17: X | AJ17: X | AK17: X | AL17: X | AM17: X | AN17: X | AW17: 0 | AX17: 0 | AY17: 0 | AZ17: 0 | BA17: 0 | BB17: 0 | BC17: 0 | BD17: 0 | BE17: 0 | BF17: 0 | BG17: 0 | BH17: 0 | BI17: 0 | BJ17: 0
A18: 14 | B18: ANCRAGE TERRITORIAL | C18: Economie locale | D18: Loyauté des pratiques | E18: Privilégier les fournisseurs / sous traitants locaux | F18: Privilégier des fournisseurs qui génèrent une production locale. | G18: 2 | N18: X | Z18: X | AA18: X | AB18: X | AC18: X | AD18: X | AE18: X | AF18: X | AG18: X | AH18: X | AI18: X | AJ18: X | AK18: X | AL18: X | AM18: X | AN18: X | AW18: 0 | AX18: 0 | AY18: 0 | AZ18: 0 | BA18: 0 | BB18: 0 | BC18: 0 | BD18: 0 | BE18: 0 | BF18: 0 | BG18: 0 | BH18: 0 | BI18: 0 | BJ18: 0
A19: 15 | B19: ANCRAGE TERRITORIAL | C19: Identification des enjeux locaux | D19: Attentes des PP | E19: Identifier les besoins du territoire et prendre en compte les attentes locales | F19: Contacter les acteurs locaux tels que les collectivités locales, la presse locale, les offices de tourisme, afin d'identifier les besoins et attentes spécifiques du territoire. | G19: 1 | N19: X | Z19: X | AA19: X | AB19: X | AC19: X | AD19: X | AE19: X | AF19: X | AG19: X | AH19: X | AI19: X | AJ19: X | AK19: X | AL19: X | AM19: X | AN19: X | AW19: 0 | AX19: 0 | AY19: 0 | AZ19: 0 | BA19: 0 | BB19: 0 | BC19: 0 | BD19: 0 | BE19: 0 | BF19: 0 | BG19: 0 | BH19: 0 | BI19: 0 | BJ19: 0
A20: 16 | B20: ANCRAGE TERRITORIAL | C20: Identification des enjeux locaux | D20: Espace naturel | E20: Veiller à la préservation de territoire local | F20: Vérifier que les activités ne mènent pas à un changement irréversible du territoire (impacts sur la faune et la flore, ressources en eau…). | G20: 3 | N20: X | Z20: X | AA20: X | AB20: X | AC20: X | AD20: X | AE20: X | AF20: O | AG20: X | AH20: X | AI20: X | AJ20: X | AK20: X | AL20: X | AM20: X | AN20: X | AW20: 1 | AX20: 1 | AY20: 0 | AZ20: 0 | BA20: 0 | BB20: 0 | BC20: 0 | BD20: 0 | BE20: 0 | BF20: 0 | BG20: 0 | BH20: 0 | BI20: 0 | BJ20: 1
A21: 17 | B21: BIODIVERSITE | C21: Education à l'environnement | D21: Espace naturel | E21: Impliquer les participants dans la recherche de solutions | F21: Mettre en place des ateliers sous forme de brainstorming et d'échange autour de la biodiversité. | G21: 1 | O21: X | Z21: X | AA21: X | AB21: X | AC21: X | AD21: X | AE21: X | AF21: X | AG21: X | AH21: X | AI21: X | AJ21: X | AK21: X | AL21: X | AM21: X | AN21: X | AP21: X | AT21: X | AW21: 0 | AX21: 0 | AY21: 0 | AZ21: 0 | BA21: 0 | BB21: 0 | BC21: 0 | BD21: 0 | BE21: 0 | BF21: 0 | BG21: 0 | BH21: 0 | BI21: 0 | BJ21: 0
A22: 18 | B22: BIODIVERSITE | C22: Education à l'environnement | D22: Espace naturel | E22: Impliquer les participants dans la recherche de solutions | F22: Informer sur des notions clés pour comprendre notre rapport au milieu naturel : interdépendance des espèces, résilience locale (brochure, projection de reportage, mise en valeur d'initiatives comme "Villes en transition"). | G22: 1 | O22: X | Z22: X | AA22: X | AB22: X | AC22: X | AD22: X | AE22: X | AF22: X | AG22: X | AH22: X | AI22: X | AJ22: X | AK22: X | AL22: X | AM22: X | AN22: X | AP22: X | AT22: X | AW22: 0 | AX22: 0 | AY22: 0 | AZ22: 0 | BA22: 0 | BB22: 0 | BC22: 0 | BD22: 0 | BE22: 0 | BF22: 0 | BG22: 0 | BH22: 0 | BI22: 0 | BJ22: 0
A23: 19 | B23: BIODIVERSITE | C23: Education à l'environnement | D23: Espace naturel | E23: Impliquer les participants dans la recherche de solutions | F23: Diffuser de manière informelle des pétitions et des accès web pour les enjeux majeurs de la biodiversité : protection des coraux, des insectes pollinisateurs, etc. | G23: 1 | O23: X | Z23: X | AA23: X | AB23: X | AC23: X | AD23: X | AE23: X | AF23: X | AG23: X | AH23: X | AI23: X | AJ23: X | AK23: X | AL23: X | AM23: X | AN23: X | AP23: X | AS23: X | AW23: 0 | AX23: 0 | AY23: 0 | AZ23: 0 | BA23: 0 | BB23: 0 | BC23: 0 | BD23: 0 | BE23: 0 | BF23: 0 | BG23: 0 | BH23: 0 | BI23: 0 | BJ23: 0
A24: 20 | B24: BIODIVERSITE | C24: Education à l'environnement | D24: Sensibilisation des participants | E24: Informer au sujet des enjeux locaux | F24: Valoriser la biodiversité locale auprès des participants et leur expliquer l'impact que peuvent avoir leurs comportements sur la biodiversité locale. | G24: 1 | O24: X | Z24: X | AA24: X | AB24: X | AC24: X | AD24: X | AE24: X | AF24: X | AG24: X | AH24: X | AI24: X | AJ24: X | AK24: X | AL24: X | AM24: X | AN24: X | AP24: X | AT24: X | AW24: 0 | AX24: 0 | AY24: 0 | AZ24: 0 | BA24: 0 | BB24: 0 | BC24: 0 | BD24: 0 | BE24: 0 | BF24: 0 | BG24: 0 | BH24: 0 | BI24: 0 | BJ24: 0
A25: 21 | B25: BIODIVERSITE | C25: Education à l'environnement | D25: Sensibilisation des participants | E25: Informer au sujet des enjeux locaux | F25: Organiser en parallèle une exposition avec support cadre ou photo montrant la diversité d'une ou plusieurs espèces (abeille, fourmis, mammifères, flore…). | G25: 1 | M25: Contacter des associations de protection de l'environnement ou organisme public. | O25: X | Z25: X | AA25: X | AB25: X | AC25: X | AD25: X | AE25: X | AF25: X | AG25: X | AH25: X | AI25: X | AJ25: X | AK25: X | AL25: X | AM25: X | AN25: X | AO25: X | AS25: X | AW25: 0 | AX25: 0 | AY25: 0 | AZ25: 0 | BA25: 0 | BB25: 0 | BC25: 0 | BD25: 0 | BE25: 0 | BF25: 0 | BG25: 0 | BH25: 0 | BI25: 0 | BJ25: 0
A26: 22 | B26: BIODIVERSITE | C26: Education à l'environnement | D26: Sensibilisation des participants | E26: Informer au sujet des enjeux locaux | F26: Création de partenariat avec des associations liées à la protection et à la valorisation de la biodiversité (proposition de stands gratuits, relai des campagnes en cours, conférence, vidéo débat). | G26: 1 | M26: Contacter le Fond Français pour la Nature et l'Environnement, Humanité & Biodiversité, la LPO, pour être redirigé vers des assos locales (en ciblant les thématiques). | O26: X | Z26: X | AA26: X | AB26: X | AC26: X | AD26: X | AE26: X | AF26: X | AG26: X | AH26: X | AI26: X | AJ26: X | AK26: X | AL26: X | AM26: X | AN26: X | AP26: X | AT26: X | AW26: 0 | AX26: 0 | AY26: 0 | AZ26: 0 | BA26: 0 | BB26: 0 | BC26: 0 | BD26: 0 | BE26: 0 | BF26: 0 | BG26: 0 | BH26: 0 | BI26: 0 | BJ26: 0
A27: 23 | B27: BIODIVERSITE | C27: Gestion du lieu naturel | D27: Compensation | E27: Contribuer au financement d'une action de protection des éco-systèmes | F27: Inclure une levée de fonds (% du prix d'entrée d'adhésion pour les évènements payants ou un % des dons pour les évènements à donation) reversée aux organismes de préservation des écosystèmes en fonction du contexte local. Exemple : projet d'apiculture urbain. | G27: 1 | O27: X | Z27: X | AA27: X | AB27: X | AC27: X | AD27: X | AE27: X | AF27: X | AG27: X | AH27: X | AI27: X | AJ27: X | AK27: X | AL27: X | AM27: X | AN27: X | AO27: X | AT27: X | AW27: 0 | AX27: 0 | AY27: 0 | AZ27: 0 | BA27: 0 | BB27: 0 | BC27: 0 | BD27: 0 | BE27: 0 | BF27: 0 | BG27: 0 | BH27: 0 | BI27: 0 | BJ27: 0
A28: 24 | B28: BIODIVERSITE | C28: Gestion du lieu naturel | D28: Déchets | E28: Limiter l'impact des déchets sur l'éco système | F28: Rediriger les eaux et boues usées vers des solutions locales intelligentes. | G28: 1 | O28: X | Z28: X | AA28: X | AB28: X | AC28: X | AD28: X | AE28: X | AF28: X | AG28: X | AH28: X | AI28: X | AJ28: X | AK28: X | AL28: X | AM28: X | AN28: X | AP28: X | AS28: X | AW28: 0 | AX28: 0 | AY28: 0 | AZ28: 0 | BA28: 0 | BB28: 0 | BC28: 0 | BD28: 0 | BE28: 0 | BF28: 0 | BG28: 0 | BH28: 0 | BI28: 0 | BJ28: 0
A29: 25 | B29: BIODIVERSITE | C29: Gestion du lieu naturel | D29: Déchets | E29: Limiter l'impact des déchets sur l'éco système | F29: Distribution de cendriers de poches, d'ustensiles biodégradables et/ou compostables. | G29: 3 | O29: X | Z29: X | AA29: X | AB29: X | AC29: X | AD29: X | AE29: X | AF29: X | AG29: X | AH29: X | AI29: X | AJ29: X | AK29: X | AL29: X | AM29: X | AN29: X | AP29: X | AT29: X | AW29: 1 | AX29: 0 | AY29: 1 | AZ29: 0 | BA29: 0 | BB29: 0 | BC29: 0 | BD29: 0 | BE29: 0 | BF29: 0 | BG29: 0 | BH29: 0 | BI29: 0 | BJ29: 1
A30: 26 | B30: BIODIVERSITE | C30: Gestion du lieu naturel | D30: Déchets | E30: Limiter l'impact des déchets sur l'éco système | F30: Contacter, lorsque l'évènement n'est pas rattaché au système d'assainissement collectif, des organismes pour négocier une prise en charge des eaux usées, excréments. | G30: 1 | O30: X | Z30: X | AA30: X | AB30: X | AC30: X | AD30: X | AE30: X | AF30: X | AG30: X | AH30: X | AI30: X | AJ30: X | AK30: X | AL30: X | AM30: X | AN30: X | AP30: X | AS30: X | AW30: 0 | AX30: 0 | AY30: 0 | AZ30: 0 | BA30: 0 | BB30: 0 | BC30: 0 | BD30: 0 | BE30: 0 | BF30: 0 | BG30: 0 | BH30: 0 | BI30: 0 | BJ30: 0
A31: 27 | B31: BIODIVERSITE | C31: Gestion du lieu naturel | D31: Espace naturel | E31: limiter le déclin d'espèces importantes pour l'éco système en place | F31: Prendre connaissance des espaces protégés à proximité du lieu d'accueil pour ensuite proposer des mesures de respect/protection adéquates. | G31: 2 | N31: X | O31: X | Z31: X | AA31: X | AB31: X | AC31: X | AD31: X | AE31: X | AF31: X | AG31: X | AH31: X | AI31: X | AJ31: X | AK31: X | AL31: X | AM31: X | AN31: X | AP31: X | AT31: X | AW31: 0 | AX31: 0 | AY31: 0 | AZ31: 0 | BA31: 0 | BB31: 0 | BC31: 0 | BD31: 0 | BE31: 0 | BF31: 0 | BG31: 0 | BH31: 0 | BI31: 0 | BJ31: 0
A32: 28 | B32: BIODIVERSITE | C32: Gestion du lieu naturel | D32: Espace naturel | E32: Mettre en place des mesures destinées à prévenir la modification du paysage du lieu dans lequel s'inscrit l'événement | F32: Prévoir de ne pas induire de perturbation durable du site, et de le remettre en état après l'évènement. | G32: 3 | N32: X | O32: X | Z32: X | AA32: X | AB32: X | AC32: X | AD32: X | AE32: X | AF32: X | AG32: X | AH32: X | AI32: X | AJ32: X | AK32: X | AL32: X | AM32: X | AN32: X | AP32: X | AT32: X | AW32: 1 | AX32: 1 | AY32: 1 | AZ32: 0 | BA32: 0 | BB32: 0 | BC32: 0 | BD32: 0 | BE32: 0 | BF32: 0 | BG32: 0 | BH32: 0 | BI32: 0 | BJ32: 2
A33: 29 | B33: BIODIVERSITE | C33: Impact dans la chaîne de valeur | D33: Alimentation | E33: Proposer une alimentation responsable et diversifiée | F33: Présence de boissons locales : bières, vins, jus de saison... (originaux si possible, les producteurs à la ferme ont de l'imagination). | G33: 3 | N33: X | O33: X | Z33: X | AA33: X | AB33: X | AC33: X | AD33: X | AE33: X | AF33: X | AG33: X | AH33: X | AI33: X | AJ33: X | AK33: X | AL33: X | AM33: X | AN33: O | AO33: X | AT33: X | AW33: 1 | AX33: 1 | AY33: 1 | AZ33: 0 | BA33: 0 | BB33: 0 | BC33: 0 | BD33: 0 | BE33: 0 | BF33: 0 | BG33: 0 | BH33: 0 | BI33: 0 | BJ33: 2
A34: 30 | B34: BIODIVERSITE | C34: Impact dans la chaîne de valeur | D34: Loyauté des pratiques | E34: Etablir des partenariats entreprises en fonction de l'impact de leur activité sur la biodiversité | F34: Se renseigner sur les engagement des partenaires en faveur de la protection de la biodiversité (type écolabel, chartes d'engagements…) | G34: 1 | O34: X | Z34: X | AA34: X | AB34: X | AC34: X | AD34: X | AE34: X | AF34: X | AG34: X | AH34: X | AI34: X | AJ34: X | AK34: X | AL34: X | AM34: X | AN34: X | AP34: X | AT34: X | AW34: 0 | AX34: 0 | AY34: 0 | AZ34: 0 | BA34: 0 | BB34: 0 | BC34: 0 | BD34: 0 | BE34: 0 | BF34: 0 | BG34: 0 | BH34: 0 | BI34: 0 | BJ34: 0
A35: 31 | B35: BIODIVERSITE | C35: Impact dans la chaîne de valeur | D35: Loyauté des pratiques | E35: Mettre en valeur des solutions urbaines pour la préservation de la biodiversité | F35: Relayer des actions en faveur du bon développement des écosystèmes (mise en place de toits verts, de ruches,…) | G35: 1 | M35: Exemple du service « un toit pour les abeilles » : http://www.untoitpourlesabeilles.fr/ (système de parrainage de ruches, vente de miel/réception). | O35: X | Z35: X | AA35: X | AB35: X | AC35: X | AD35: X | AE35: X | AF35: X | AG35: X | AH35: X | AI35: X | AJ35: X | AK35: X | AL35: X | AM35: X | AN35: X | AP35: X | AT35: X | AW35: 0 | AX35: 0 | AY35: 0 | AZ35: 0 | BA35: 0 | BB35: 0 | BC35: 0 | BD35: 0 | BE35: 0 | BF35: 0 | BG35: 0 | BH35: 0 | BI35: 0 | BJ35: 0
A36: 32 | B36: BIODIVERSITE | C36: Impact dans la chaîne de valeur | D36: Loyauté des pratiques | E36: Mettre en valeur des solutions urbaines pour la préservation de la biodiversité | F36: Contacter des porteurs de projets liés à la biodiversité, comme des projets étudiants d'apiculture, afin de reproduire l'initiative. | G36: 1 | O36: X | Z36: X | AA36: X | AB36: X | AC36: X | AD36: X | AE36: X | AF36: X | AG36: X | AH36: X | AI36: X | AJ36: X | AK36: X | AL36: X | AM36: X | AN36: X | AP36: X | AT36: X | AW36: 0 | AX36: 0 | AY36: 0 | AZ36: 0 | BA36: 0 | BB36: 0 | BC36: 0 | BD36: 0 | BE36: 0 | BF36: 0 | BG36: 0 | BH36: 0 | BI36: 0 | BJ36: 0
A37: 33 | B37: BIODIVERSITE | C37: Impact sur l'éco système | D37: Déplacements | E37: limiter le déclin d'espèces importantes pour l'éco système en place | F37: Privilégier les transport en commun et les modes de déplacements doux pour éviter l'utilisation des voitures qui sont responsables de la mort de centaines d'insectes et d'autres problèmes à chaque kilomètre parcouru. | G37: 1 | O37: X | Z37: X | AA37: O | AB37: X | AC37: X | AD37: X | AE37: X | AF37: X | AG37: X | AH37: X | AI37: X | AJ37: X | AK37: X | AL37: X | AM37: X | AN37: X | AP37: X | AT37: X | AW37: 0 | AX37: 0 | AY37: 0 | AZ37: 0 | BA37: 0 | BB37: 0 | BC37: 0 | BD37: 0 | BE37: 0 | BF37: 0 | BG37: 0 | BH37: 0 | BI37: 0 | BJ37: 0
A38: 34 | B38: BIODIVERSITE | C38: Impact sur l'éco système | D38: Espace naturel | E38: S'informer en tant qu'organisateur | F38: Prendre connaissance des enjeux locaux de préservation grâce à la prise de contact avec les associations locales. | G38: 1 | O38: X | Z38: X | AA38: X | AB38: X | AC38: X | AD38: X | AE38: X | AF38: X | AG38: X | AH38: X | AI38: X | AJ38: X | AK38: X | AL38: X | AM38: X | AN38: X | AP38: X | AT38: X | AW38: 0 | AX38: 0 | AY38: 0 | AZ38: 0 | BA38: 0 | BB38: 0 | BC38: 0 | BD38: 0 | BE38: 0 | BF38: 0 | BG38: 0 | BH38: 0 | BI38: 0 | BJ38: 0
A39: 35 | B39: BIODIVERSITE | C39: Impact sur l'éco système | D39: Espace naturel | E39: Intégrer l'évènement dans son éco système. | F39: Choisir le lieu de l'organisation de l'évènement en fonction de ses effets sur la faune et la flore locales. | G39: 2 | O39: X | Z39: X | AA39: X | AB39: X | AC39: X | AD39: X | AE39: X | AF39: X | AG39: X | AH39: X | AI39: X | AJ39: X | AK39: X | AL39: X | AM39: X | AN39: X | AP39: X | AS39: X | AW39: 0 | AX39: 0 | AY39: 0 | AZ39: 0 | BA39: 0 | BB39: 0 | BC39: 0 | BD39: 0 | BE39: 0 | BF39: 0 | BG39: 0 | BH39: 0 | BI39: 0 | BJ39: 0
A40: 36 | B40: BIODIVERSITE | C40: Impact sur l'éco système | D40: Management/ Gestion | E40: Intégrer l'évènement dans son éco système. | F40: Identifier les impacts indirects de l'évènement sur les écosystèmes d'autres territoires. | G40: 1 | O40: X | Z40: X | AA40: X | AB40: X | AC40: X | AD40: X | AE40: X | AF40: X | AG40: X | AH40: X | AI40: X | AJ40: X | AK40: X | AL40: X | AM40: X | AN40: X | AP40: X | AS40: X | AW40: 0 | AX40: 0 | AY40: 0 | AZ40: 0 | BA40: 0 | BB40: 0 | BC40: 0 | BD40: 0 | BE40: 0 | BF40: 0 | BG40: 0 | BH40: 0 | BI40: 0 | BJ40: 0
A41: 37 | B41: BIODIVERSITE | C41: Impact sur l'éco système | D41: Management/ Gestion | E41: Intégrer l'évènement dans son éco système. | F41: Choisir la date d'organisation de l'évènement de façon à prévenir au mieux les atteintes à la biodiversité locale et en respectant les cycles biologiques. | G41: 1 | O41: X | Z41: X | AA41: X | AB41: X | AC41: X | AD41: X | AE41: X | AF41: X | AG41: X | AH41: X | AI41: X | AJ41: X | AK41: X | AL41: X | AM41: X | AN41: X | AP41: X | AS41: X | AW41: 0 | AX41: 0 | AY41: 0 | AZ41: 0 | BA41: 0 | BB41: 0 | BC41: 0 | BD41: 0 | BE41: 0 | BF41: 0 | BG41: 0 | BH41: 0 | BI41: 0 | BJ41: 0
A42: 38 | B42: BIODIVERSITE | C42: Impact sur l'éco système | D42: Produits / équipements | E42: Intégrer l'évènement dans son éco système. | F42: Utiliser / privilégier les structures bois à la place de bloc de ciment pour structure portante, d'exposition... (empreinte carbone et coût environnemental global moindre). | G42: 1 | O42: X | R42: X | Z42: X | AA42: X | AB42: X | AC42: X | AD42: X | AE42: X | AF42: X | AG42: X | AH42: X | AI42: X | AJ42: X | AK42: X | AL42: X | AM42: X | AN42: X | AO42: X | AS42: X | AW42: 0 | AX42: 0 | AY42: 0 | AZ42: 0 | BA42: 0 | BB42: 0 | BC42: 0 | BD42: 0 | BE42: 0 | BF42: 0 | BG42: 0 | BH42: 0 | BI42: 0 | BJ42: 0
A43: 39 | B43: BIODIVERSITE | C43: Impact sur l'éco système | D43: Produits / équipements | E43: Intégrer l'évènement dans son éco système. | F43: Ne pas apporter d'éléments qui pourraient nuire à l'équilibre des écosystèmes (ex : plantes décoratives invasives…). | G43: 1 | O43: X | Z43: X | AA43: X | AB43: X | AC43: X | AD43: X | AE43: X | AF43: X | AG43: X | AH43: X | AI43: X | AJ43: X | AK43: X | AL43: X | AM43: X | AN43: X | AP43: X | AT43: X | AW43: 0 | AX43: 0 | AY43: 0 | AZ43: 0 | BA43: 0 | BB43: 0 | BC43: 0 | BD43: 0 | BE43: 0 | BF43: 0 | BG43: 0 | BH43: 0 | BI43: 0 | BJ43: 0
A44: 40 | B44: BIODIVERSITE | C44: Impact sur l'éco système | D44: Respect des règles | E44: Etre en accord avec les régulations et la législation de protection de l'envrionnement | F44: Se renseigner sur la réglementation en vigueur concernant la protection de la biodiversité. | G44: 1 | M44: Renvoyer vers où se renseigner ou s'informer. http://www.developpement-durable.gouv.fr/, site de la ville, de la région,… | O44: X | Z44: X | AA44: X | AB44: X | AC44: X | AD44: X | AE44: X | AF44: X | AG44: X | AH44: X | AI44: X | AJ44: X | AK44: X | AL44: X | AM44: X | AN44: X | AP44: X | AT44: X | AW44: 0 | AX44: 0 | AY44: 0 | AZ44: 0 | BA44: 0 | BB44: 0 | BC44: 0 | BD44: 0 | BE44: 0 | BF44: 0 | BG44: 0 | BH44: 0 | BI44: 0 | BJ44: 0
A45: 41 | B45: CULTURE | C45: Apport culturel | D45: Communication | E45: Encourager la curiosité | F45: Utiliser des moyens d'échanges adaptés au public étudiant (boîte à questions, forum/réseau social, questions/réponses en direct sur Twitter,…). | G45: 3 | P45: X | Z45: X | AA45: X | AB45: X | AC45: X | AD45: X | AE45: X | AF45: X | AG45: X | AH45: X | AI45: X | AJ45: X | AK45: X | AL45: X | AM45: X | AN45: X | AP45: X | AT45: X | AW45: 1 | AX45: 0 | AY45: 0 | AZ45: 1 | BA45: 0 | BB45: 0 | BC45: 0 | BD45: 0 | BE45: 0 | BF45: 0 | BG45: 0 | BH45: 0 | BI45: 0 | BJ45: 1
A46: 42 | B46: CULTURE | C46: Apport culturel | D46: Communication | E46: Encourager la curiosité | F46: Privilégier une approche originale en proposant des activités peu communes (ex. : conférences gesticulées, repas insolent,…). | G46: 1 | P46: X | Z46: X | AA46: X | AB46: X | AC46: X | AD46: X | AE46: X | AF46: X | AG46: X | AH46: X | AI46: X | AJ46: X | AK46: X | AL46: X | AM46: X | AN46: X | AO46: CA DEPEND | AS46: X | AW46: 0 | AX46: 0 | AY46: 0 | AZ46: 0 | BA46: 0 | BB46: 0 | BC46: 0 | BD46: 0 | BE46: 0 | BF46: 0 | BG46: 0 | BH46: 0 | BI46: 0 | BJ46: 0
A47: 43 | B47: CULTURE | C47: Apport culturel | D47: Communication | E47: Encourager la curiosité | F47: Mettre en œuvre des campagnes de com sexy, accrocheuses. | G47: 1 | P47: X | Z47: X | AA47: X | AB47: X | AC47: X | AD47: X | AE47: X | AF47: X | AG47: X | AH47: X | AI47: X | AJ47: X | AK47: X | AL47: X | AM47: X | AN47: X | AP47: X | AT47: X | AW47: 0 | AX47: 0 | AY47: 0 | AZ47: 0 | BA47: 0 | BB47: 0 | BC47: 0 | BD47: 0 | BE47: 0 | BF47: 0 | BG47: 0 | BH47: 0 | BI47: 0 | BJ47: 0
A48: 44 | B48: CULTURE | C48: Apport culturel | D48: Communication | E48: Mettre en place une démarche pédagogique | F48: Favoriser le partage de connaissances, intégrer les participants dans l'apprentissage de connaissances. | G48: 1 | P48: X | Z48: X | AA48: X | AB48: X | AC48: X | AD48: X | AE48: X | AF48: X | AG48: X | AH48: X | AI48: X | AJ48: X | AK48: X | AL48: X | AM48: X | AN48: X | AP48: X | AT48: X | AW48: 0 | AX48: 0 | AY48: 0 | AZ48: 0 | BA48: 0 | BB48: 0 | BC48: 0 | BD48: 0 | BE48: 0 | BF48: 0 | BG48: 0 | BH48: 0 | BI48: 0 | BJ48: 0
A49: 45 | B49: CULTURE | C49: Apport culturel | D49: Communication | E49: Mettre en place une démarche pédagogique | F49: Définir un/des intérêt(s)/objectif(s) éducatifs pour chaque activité. | G49: 1 | P49: X | Z49: X | AA49: X | AB49: X | AC49: X | AD49: X | AE49: X | AF49: X | AG49: X | AH49: X | AI49: X | AJ49: X | AK49: X | AL49: X | AM49: X | AN49: X | AP49: X | AT49: X | AW49: 0 | AX49: 0 | AY49: 0 | AZ49: 0 | BA49: 0 | BB49: 0 | BC49: 0 | BD49: 0 | BE49: 0 | BF49: 0 | BG49: 0 | BH49: 0 | BI49: 0 | BJ49: 0
A50: 46 | B50: CULTURE | C50: Apport culturel | D50: Communication | E50: Mettre en place une démarche pédagogique | F50: Adapter le discours et les supports aux différents publics (population rurale ≠ population urbaine / enfants ≠ adultes par exemple). | G50: 3 | N50: X | P50: X | Z50: X | AA50: X | AB50: X | AC50: X | AD50: X | AE50: X | AF50: X | AG50: X | AH50: X | AI50: X | AJ50: X | AK50: X | AL50: X | AM50: X | AN50: X | AP50: X | AT50: X | AW50: 1 | AX50: 1 | AY50: 0 | AZ50: 1 | BA50: 0 | BB50: 0 | BC50: 0 | BD50: 0 | BE50: 0 | BF50: 0 | BG50: 0 | BH50: 0 | BI50: 0 | BJ50: 2
A51: 47 | B51: CULTURE | C51: Apport culturel | D51: Communication | E51: Mettre en place une démarche pédagogique | F51: Créer une plateforme dédiée à l'évènement et rapporter le contenu des échanges. | G51: 1 | P51: X | Z51: X | AA51: X | AB51: X | AC51: X | AD51: X | AE51: X | AF51: X | AG51: X | AH51: X | AI51: X | AJ51: X | AK51: ? | AL51: X | AM51: X | AN51: X | AO51: ? | AS51: x | AW51: 0 | AX51: 0 | AY51: 0 | AZ51: 0 | BA51: 0 | BB51: 0 | BC51: 0 | BD51: 0 | BE51: 0 | BF51: 0 | BG51: 0 | BH51: 0 | BI51: 0 | BJ51: 0
A52: 48 | B52: CULTURE | C52: Apport culturel | D52: Management/ Gestion | E52: Avoir une richesse dans les débats | F52: Sensibiliser l'équipe d'organisateurs et de bénévoles aux pratiques d'échange avec le public. Prévoir un temps de parole avec les participants, questions / réponses etc. | G52: 2 | P52: X | V52: X | Z52: X | AA52: X | AB52: X | AC52: X | AD52: X | AE52: X | AF52: X | AG52: X | AH52: X | AI52: X | AJ52: X | AK52: X | AL52: X | AM52: X | AN52: X | AT52: X | AW52: 0 | AX52: 0 | AY52: 0 | AZ52: 0 | BA52: 0 | BB52: 0 | BC52: 0 | BD52: 0 | BE52: 0 | BF52: 0 | BG52: 0 | BH52: 0 | BI52: 0 | BJ52: 0
A53: 49 | B53: CULTURE | C53: Apport culturel | D53: Management/ Gestion | E53: Avoir une richesse dans les débats | F53: Favoriser la diversité des compétences, les feedbacks et backgrounds des organisateurs | G53: 1 | P53: X | U53: X | Z53: X | AA53: X | AB53: X | AC53: X | AD53: X | AE53: X | AF53: X | AG53: X | AH53: X | AI53: X | AJ53: X | AK53: X | AL53: X | AM53: X | AN53: X | AP53: X | AS53: CA DEPEND | AW53: 0 | AX53: 0 | AY53: 0 | AZ53: 0 | BA53: 0 | BB53: 0 | BC53: 0 | BD53: 0 | BE53: 0 | BF53: 0 | BG53: 0 | BH53: 0 | BI53: 0 | BJ53: 0
A54: 50 | B54: CULTURE | C54: Apport culturel | D54: Management/ Gestion | E54: Avoir une richesse dans les débats | F54: En amont de l'évènement, s'assurer d'avoir les connaissances suffisantes, se renseigner et créer un dossier de synthèse à destination des organisateurs (règles de jeu pour un tournoi sportif, histoire pour visite guidée, théories pour un débat,…). | G54: 1 | P54: X | Z54: X | AA54: X | AB54: X | AC54: X | AD54: X | AE54: X | AF54: X | AG54: X | AH54: X | AI54: X | AJ54: X | AK54: X | AL54: X | AM54: X | AN54: X | AP54: X | AT54: X | AW54: 0 | AX54: 0 | AY54: 0 | AZ54: 0 | BA54: 0 | BB54: 0 | BC54: 0 | BD54: 0 | BE54: 0 | BF54: 0 | BG54: 0 | BH54: 0 | BI54: 0 | BJ54: 0
A55: 51 | B55: CULTURE | C55: Apport culturel | D55: Management/ Gestion | E55: Avoir une richesse dans les débats | F55: Assurer la diversité des intervenants, activités et thématiques. | G55: 1 | P55: X | Z55: X | AA55: X | AB55: X | AC55: X | AD55: X | AE55: X | AF55: X | AG55: X | AH55: X | AI55: X | AJ55: X | AK55: X | AL55: X | AM55: X | AN55: X | AP55: X | AT55: X | AW55: 0 | AX55: 0 | AY55: 0 | AZ55: 0 | BA55: 0 | BB55: 0 | BC55: 0 | BD55: 0 | BE55: 0 | BF55: 0 | BG55: 0 | BH55: 0 | BI55: 0 | BJ55: 0
A56: 52 | B56: CULTURE | C56: Echanges culturels | D56: Attentes des PP | E56: Favoriser les échanges avec la population locale | F56: Mettre en valeur la culture locale via des stands sur l'évènement (musique, terroir,…). | G56: 1 | N56: X | P56: X | Z56: X | AA56: X | AB56: X | AC56: X | AD56: X | AE56: X | AF56: X | AG56: X | AH56: X | AI56: X | AJ56: X | AK56: X | AL56: X | AM56: X | AN56: X | AP56: X | AS56: X | AW56: 0 | AX56: 0 | AY56: 0 | AZ56: 0 | BA56: 0 | BB56: 0 | BC56: 0 | BD56: 0 | BE56: 0 | BF56: 0 | BG56: 0 | BH56: 0 | BI56: 0 | BJ56: 0
A57: 53 | B57: CULTURE | C57: Echanges culturels | D57: Attentes des PP | E57: Favoriser les échanges avec la population locale | F57: Mettre en valeur la culture locale via des partenariats locaux (musées, réducs, etc.). | G57: 1 | N57: X | P57: X | Z57: X | AA57: X | AB57: X | AC57: X | AD57: X | AE57: X | AF57: X | AG57: X | AH57: X | AI57: X | AJ57: X | AK57: X | AL57: X | AM57: X | AN57: X | AO57: CA DEPEND | AS57: X | AW57: 0 | AX57: 0 | AY57: 0 | AZ57: 0 | BA57: 0 | BB57: 0 | BC57: 0 | BD57: 0 | BE57: 0 | BF57: 0 | BG57: 0 | BH57: 0 | BI57: 0 | BJ57: 0
A58: 54 | B58: CULTURE | C58: Echanges culturels | D58: Attentes des PP | E58: Favoriser les échanges avec la population locale | F58: Inviter la population locale (communication,…). | G58: 1 | P58: X | Z58: X | AA58: X | AB58: X | AC58: X | AD58: X | AE58: X | AF58: X | AG58: X | AH58: ? | AI58: X | AJ58: X | AK58: X | AL58: X | AM58: X | AN58: X | AP58: X | AT58: X | AW58: 0 | AX58: 0 | AY58: 0 | AZ58: 0 | BA58: 0 | BB58: 0 | BC58: 0 | BD58: 0 | BE58: 0 | BF58: 0 | BG58: 0 | BH58: 0 | BI58: 0 | BJ58: 0
A59: 55 | B59: CULTURE | C59: Echanges culturels | D59: Relations humaines | E59: Chercher à attirer sur l'événement un public hétérogène (études poursuivies, situations sociales, culturelles et géographiques) | F59: Favoriser une communication multicanale et intergénérationnelle (réseaux sociaux, porte à porte, flying,…). | G59: 1 | P59: X | Z59: X | AA59: X | AB59: X | AC59: X | AD59: X | AE59: X | AF59: X | AG59: X | AH59: X | AI59: X | AJ59: X | AK59: X | AL59: X | AM59: X | AN59: X | AO59: CA DEPEND DES SUPPORTS DE COM | AW59: 0 | AX59: 0 | AY59: 0 | AZ59: 0 | BA59: 0 | BB59: 0 | BC59: 0 | BD59: 0 | BE59: 0 | BF59: 0 | BG59: 0 | BH59: 0 | BI59: 0 | BJ59: 0
A60: 56 | B60: CULTURE | C60: Echanges culturels | D60: Relations humaines | E60: Favoriser les échanges entre les participants/participants et participants/organisateurs | F60: Prévoir des jeux brise-glaces, energizers, des jeux coopératifs,… | G60: 1 | P60: X | Z60: X | AA60: X | AB60: X | AC60: X | AD60: X | AE60: X | AF60: X | AG60: X | AH60: X | AI60: X | AJ60: X | AK60: X | AL60: X | AM60: X | AN60: X | AP60: X | AT60: X | AW60: 0 | AX60: 0 | AY60: 0 | AZ60: 0 | BA60: 0 | BB60: 0 | BC60: 0 | BD60: 0 | BE60: 0 | BF60: 0 | BG60: 0 | BH60: 0 | BI60: 0 | BJ60: 0
A61: 57 | B61: CULTURE | C61: Echanges culturels | D61: Relations humaines | E61: Favoriser les échanges entre les participants/participants et participants/organisateurs | F61: Prévoir / concevoir des badges ou des éléments permettant d'identifier des personnes particulières comme les organisateurs. | G61: 1 | P61: X | Z61: X | AA61: X | AB61: X | AC61: X | AD61: X | AE61: X | AF61: X | AG61: X | AH61: X | AI61: X | AJ61: X | AK61: X | AL61: X | AM61: X | AN61: X | AO61: X | AT61: X | AW61: 0 | AX61: 0 | AY61: 0 | AZ61: 0 | BA61: 0 | BB61: 0 | BC61: 0 | BD61: 0 | BE61: 0 | BF61: 0 | BG61: 0 | BH61: 0 | BI61: 0 | BJ61: 0
A62: 58 | B62: CULTURE | C62: Echanges culturels | D62: Relations humaines | E62: Favoriser les échanges entre les participants/participants et participants/organisateurs | F62: Diffuser la liste des participants avant l'évènement et/ ou après avec les adresses emails si accord obtenu auprès des participants. | G62: 1 | P62: X | Z62: X | AA62: X | AB62: X | AC62: X | AD62: X | AE62: X | AF62: X | AG62: X | AH62: X | AI62: X | AJ62: X | AK62: X | AL62: X | AM62: X | AN62: X | AP62: X | AT62: X | AW62: 0 | AX62: 0 | AY62: 0 | AZ62: 0 | BA62: 0 | BB62: 0 | BC62: 0 | BD62: 0 | BE62: 0 | BF62: 0 | BG62: 0 | BH62: 0 | BI62: 0 | BJ62: 0
A63: 59 | B63: CULTURE | C63: Echanges culturels | D63: Relations humaines | E63: Favoriser les échanges entre les participants/participants et participants/organisateurs | F63: Définir les interlocuteurs privilégiés et présenter l'équipe organisatrice en amont de l'évènement. | G63: 1 | P63: X | Z63: X | AA63: X | AB63: X | AC63: X | AD63: X | AE63: X | AF63: X | AG63: X | AH63: X | AI63: X | AJ63: X | AK63: X | AL63: X | AM63: X | AN63: X | AP63: X | AT63: X | AW63: 0 | AX63: 0 | AY63: 0 | AZ63: 0 | BA63: 0 | BB63: 0 | BC63: 0 | BD63: 0 | BE63: 0 | BF63: 0 | BG63: 0 | BH63: 0 | BI63: 0 | BJ63: 0
A64: 60 | B64: CULTURE | C64: Echanges culturels | D64: Relations humaines | E64: Favoriser les échanges entre les participants/participants et participants/organisateurs | F64: Aménager des temps de rencontre informels (cocktail, café, jeux,…). | G64: 1 | P64: X | Z64: X | AA64: X | AB64: X | AC64: X | AD64: X | AE64: X | AF64: X | AG64: X | AH64: X | AI64: X | AJ64: X | AK64: X | AL64: X | AM64: X | AN64: X | AO64: CA DEPEND | AT64: X | AW64: 0 | AX64: 0 | AY64: 0 | AZ64: 0 | BA64: 0 | BB64: 0 | BC64: 0 | BD64: 0 | BE64: 0 | BF64: 0 | BG64: 0 | BH64: 0 | BI64: 0 | BJ64: 0
A65: 61 | B65: CULTURE | C65: Sensibilisation au DD | D65: Communication | E65: Faire contribuer les participants à la responsabilisation de l'événement | F65: Organiser un concours pour challenger les participants, comme un jeu fil rouge. | G65: 1 | P65: X | Z65: X | AA65: X | AB65: X | AC65: X | AD65: X | AE65: X | AF65: X | AG65: X | AH65: X | AI65: X | AJ65: X | AK65: X | AL65: X | AM65: X | AN65: X | AO65: CA DEPEND | AS65: X | AW65: 0 | AX65: 0 | AY65: 0 | AZ65: 0 | BA65: 0 | BB65: 0 | BC65: 0 | BD65: 0 | BE65: 0 | BF65: 0 | BG65: 0 | BH65: 0 | BI65: 0 | BJ65: 0
A66: 62 | B66: CULTURE | C66: Sensibilisation au DD | D66: Communication | E66: Informer les participants sur leur moyen de contribuer à la responsabilisation de l'événement | F66: Invitation/passeport personnalisé, responsabilisant et fun pour les personnes concernées. | G66: 1 | M66: En matière recyclable, bracelet hand made, relayant des campagnes. | P66: X | Z66: X | AA66: X | AB66: X | AC66: X | AD66: X | AE66: X | AF66: X | AG66: X | AH66: X | AI66: X | AJ66: X | AK66: X | AL66: X | AM66: X | AN66: X | AO66: X | AS66: X | AW66: 0 | AX66: 0 | AY66: 0 | AZ66: 0 | BA66: 0 | BB66: 0 | BC66: 0 | BD66: 0 | BE66: 0 | BF66: 0 | BG66: 0 | BH66: 0 | BI66: 0 | BJ66: 0
A67: 63 | B67: CULTURE | C67: Sensibilisation au DD | D67: Communication | E67: Informer les participants sur leur moyen de contribuer à la responsabilisation de l'événement | F67: Affichage des éco-gestes possibles sur place (tri, consommation d'eau,…). | G67: 1 | P67: X | Z67: X | AA67: X | AB67: X | AC67: X | AD67: X | AE67: X | AF67: X | AG67: X | AH67: X | AI67: X | AJ67: X | AK67: X | AL67: X | AM67: X | AN67: X | AP67: X | AT67: X | AW67: 0 | AX67: 0 | AY67: 0 | AZ67: 0 | BA67: 0 | BB67: 0 | BC67: 0 | BD67: 0 | BE67: 0 | BF67: 0 | BG67: 0 | BH67: 0 | BI67: 0 | BJ67: 0
A68: 64 | B68: CULTURE | C68: Sensibilisation au DD | D68: Communication | E68: Se montrer exemplaire en matière de développement durable | F68: Faire appel à un label ou un logo pour signifier l'évènement comme responsable. | G68: 1 | M68: Ecofest | P68: X | Z68: X | AA68: X | AB68: X | AC68: X | AD68: X | AE68: X | AF68: X | AG68: X | AH68: X | AI68: X | AJ68: X | AK68: X | AL68: X | AM68: X | AN68: X | AP68: X | AS68: X | AW68: 0 | AX68: 0 | AY68: 0 | AZ68: 0 | BA68: 0 | BB68: 0 | BC68: 0 | BD68: 0 | BE68: 0 | BF68: 0 | BG68: 0 | BH68: 0 | BI68: 0 | BJ68: 0
A69: 65 | B69: CULTURE | C69: Sensibilisation au DD | D69: Communication | E69: Se montrer exemplaire en matière de développement durable | F69: Dans les articles de presse, mettre en valeur les actions mises en œuvre. | G69: 1 | P69: X | Z69: X | AA69: X | AB69: X | AC69: X | AD69: X | AE69: X | AF69: X | AG69: X | AH69: X | AI69: X | AJ69: X | AK69: X | AL69: X | AM69: X | AN69: X | AP69: X | AS69: CA DEPEND QUELLE TYPE DE PRESSE,PLUS OU MOINS FACILE D Y ACCEDER | AW69: 0 | AX69: 0 | AY69: 0 | AZ69: 0 | BA69: 0 | BB69: 0 | BC69: 0 | BD69: 0 | BE69: 0 | BF69: 0 | BG69: 0 | BH69: 0 | BI69: 0 | BJ69: 0
A70: 66 | B70: CULTURE | C70: Sensibilisation au DD | D70: Communication | E70: Se montrer exemplaire en matière de développement durable | F70: Créer une charte d'engagement ou signer une charte existante de l'évènement et la diffuser. | G70: 2 | P70: X | Z70: X | AA70: X | AB70: X | AC70: X | AD70: X | AE70: X | AF70: X | AG70: X | AH70: X | AI70: X | AJ70: X | AK70: X | AL70: X | AM70: X | AN70: X | AP70: X | AT70: X | AW70: 0 | AX70: 0 | AY70: 0 | AZ70: 0 | BA70: 0 | BB70: 0 | BC70: 0 | BD70: 0 | BE70: 0 | BF70: 0 | BG70: 0 | BH70: 0 | BI70: 0 | BJ70: 0
A71: 67 | B71: CULTURE | C71: Sensibilisation au DD | D71: Compensation | E71: Levée de fonds | F71: Relayer une campagne de levée de fonds d'ONG/association sous forme de contribution libre. | G71: 1 | P71: X | Q71: X | Z71: X | AA71: X | AB71: X | AC71: X | AD71: X | AE71: X | AF71: X | AG71: X | AH71: X | AI71: X | AJ71: X | AK71: X | AL71: X | AM71: X | AN71: X | AP71: X | AT71: X | AW71: 0 | AX71: =IF(AND(N71="X",$G71>=AX$471),1,0) -> 0 | AY71: =IF(AND(O71="X",$G71>=AY$471),1,0) -> 0 | AZ71: =IF(AND(P71="X",$G71>=AZ$471),1,0) -> 0 | BA71: =IF(AND(Q71="X",$G71>=BA$471),1,0) -> 0 | BB71: =IF(AND(R71="X",$G71>=BB$471),1,0) -> 0 | BC71: =IF(AND(S71="X",$G71>=BC$471),1,0) -> 0 | BD71: =IF(AND(T71="X",$G71>=BD$471),1,0) -> 0 | BE71: =IF(AND(U71="X",$G71>=BE$471),1,0) -> 0 | BF71: =IF(AND(V71="X",$G71>=BF$471),1,0) -> 0 | BG71: =IF(AND(W71="X",$G71>=BG$471),1,0) -> 0 | BH71: =IF(AND(X71="X",$G71>=BH$471),1,0) -> 0 | BI71: =IF(AND(Y71="X",$G71>=BI$471),1,0) -> 0 | BJ71: 0
A72: 68 | B72: CULTURE | C72: Sensibilisation au DD | D72: Sensibilisation des participants | E72: Familiariser les participants avec les enjeux généraux du développement durable | F72: Prévoir des animations et jeux sur les thématiques du développement durable (éco-gestes, alimentation responsable, biodiversité, gouvernance,…), des jeux de rôles. | G72: 1 | P72: X | Z72: X | AA72: X | AB72: X | AC72: X | AD72: X | AE72: X | AF72: X | AG72: X | AH72: X | AI72: X | AJ72: X | AK72: X | AL72: X | AM72: X | AN72: X | AP72: X | AT72: X | AW72: 0 | AX72: 0 | AY72: 0 | AZ72: 0 | BA72: 0 | BB72: 0 | BC72: 0 | BD72: 0 | BE72: 0 | BF72: 0 | BG72: 0 | BH72: 0 | BI72: 0 | BJ72: 0
A73: 69 | B73: CULTURE | C73: Sensibilisation au DD | D73: Sensibilisation des participants | E73: Familiariser les participants avec les enjeux généraux du développement durable | F73: Organiser un village associatif. | G73: 1 | P73: X | X73: X | Z73: X | AA73: X | AB73: X | AC73: X | AD73: X | AE73: X | AF73: X | AG73: X | AH73: X | AI73: X | AJ73: X | AK73: X | AL73: X | AM73: X | AN73: X | AP73: X | AS73: X | AW73: 0 | AX73: 0 | AY73: 0 | AZ73: 0 | BA73: 0 | BB73: 0 | BC73: 0 | BD73: 0 | BE73: 0 | BF73: 0 | BG73: 0 | BH73: 0 | BI73: 0 | BJ73: 0
A74: 70 | B74: CULTURE | C74: Sensibilisation au DD | D74: Sensibilisation des participants | E74: Familiariser les participants avec les enjeux généraux du développement durable | F74: Inviter les acteurs locaux et nationaux du développement durable (ex : conférence, forum, stand…). | G74: 1 | N74: X | P74: X | Z74: X | AA74: X | AB74: X | AC74: X | AD74: X | AE74: X | AF74: X | AG74: X | AH74: X | AI74: X | AJ74: X | AK74: X | AL74: X | AM74: X | AN74: X | AP74: X | AS74: X | AW74: 0 | AX74: 0 | AY74: 0 | AZ74: 0 | BA74: 0 | BB74: 0 | BC74: 0 | BD74: 0 | BE74: 0 | BF74: 0 | BG74: 0 | BH74: 0 | BI74: 0 | BJ74: 0
A75: 71 | B75: CULTURE | C75: Sensibilisation au DD | D75: Sensibilisation des participants | E75: Familiariser les participants avec les enjeux généraux du développement durable | F75: Faire appel à une compagnie d'art de rue. | G75: 1 | P75: X | Z75: X | AA75: X | AB75: X | AC75: X | AD75: X | AE75: X | AF75: X | AG75: X | AH75: X | AI75: X | AJ75: X | AK75: X | AL75: X | AM75: X | AN75: X | AO75: CA DEPEND | AS75: X | AW75: 0 | AX75: 0 | AY75: 0 | AZ75: 0 | BA75: 0 | BB75: 0 | BC75: 0 | BD75: 0 | BE75: 0 | BF75: 0 | BG75: 0 | BH75: 0 | BI75: 0 | BJ75: 0
A76: 72 | B76: CULTURE | C76: Sensibilisation au DD | D76: Sensibilisation des participants | E76: Familiariser les participants avec les enjeux généraux du développement durable | F76: Créer un "office du tourisme" ou un annuaire du développement durable recensant les bons plans DD du territoire. | G76: 1 | P76: X | Z76: X | AA76: X | AB76: X | AC76: X | AD76: X | AE76: X | AF76: X | AG76: X | AH76: X | AI76: X | AJ76: X | AK76: X | AL76: X | AM76: X | AN76: X | AP76: X | AS76: X | AW76: 0 | AX76: 0 | AY76: 0 | AZ76: 0 | BA76: 0 | BB76: 0 | BC76: 0 | BD76: 0 | BE76: 0 | BF76: 0 | BG76: 0 | BH76: 0 | BI76: 0 | BJ76: 0
A77: 73 | B77: ECONOMIE | C77: Gestion du budget | D77: Alimentation | E77: Limiter les coûts | F77: Prévoir les quantités de consommables adéquates. | G77: 3 | Q77: X | Z77: X | AA77: X | AB77: X | AC77: X | AD77: X | AE77: X | AF77: X | AG77: X | AH77: X | AI77: X | AJ77: X | AK77: X | AL77: X | AM77: X | AN77: O | AO77: X | AS77: X | AT77: X | AW77: 1 | AX77: 0 | AY77: 0 | AZ77: 0 | BA77: 1 | BB77: 0 | BC77: 0 | BD77: 0 | BE77: 0 | BF77: 0 | BG77: 0 | BH77: 0 | BI77: 0 | BJ77: 1
A78: 74 | B78: ECONOMIE | C78: Gestion du budget | D78: Bâtiments/ Structures | E78: Limiter les coûts | F78: Estimer au plus juste le nombre de participants et définir un lieu optimal pour éviter de multiplier les espaces inoccupés. | G78: 2 | Q78: X | R78: X | Z78: X | AA78: X | AB78: X | AC78: X | AD78: X | AE78: X | AF78: X | AG78: X | AH78: X | AI78: X | AJ78: X | AK78: X | AL78: X | AM78: X | AN78: X | AO78: X | AS78: X | AW78: 0 | AX78: 0 | AY78: 0 | AZ78: 0 | BA78: 0 | BB78: 0 | BC78: 0 | BD78: 0 | BE78: 0 | BF78: 0 | BG78: 0 | BH78: 0 | BI78: 0 | BJ78: 0
A79: 75 | B79: ECONOMIE | C79: Gestion du budget | D79: Déchets | E79: Créer des recettes pour l'organisation | F79: Revendre les déchets produits durant l'évènement à un prestataire qui pourra les revaloriser. | G79: 1 | Q79: X | T79: X | Z79: X | AA79: X | AB79: X | AC79: X | AD79: X | AE79: X | AF79: X | AG79: X | AH79: X | AI79: X | AJ79: X | AK79: X | AL79: X | AM79: X | AN79: X | AW79: 0 | AX79: 0 | AY79: 0 | AZ79: 0 | BA79: 0 | BB79: 0 | BC79: 0 | BD79: 0 | BE79: 0 | BF79: 0 | BG79: 0 | BH79: 0 | BI79: 0 | BJ79: 0
A80: 76 | B80: ECONOMIE | C80: Gestion du budget | D80: Loyauté des pratiques | E80: Limiter les coûts | F80: Négocier des tarifs de groupes pour les transports, l'hébergement et la restauration. | G80: 1 | Q80: X | Z80: X | AA80: X | AB80: X | AC80: X | AD80: X | AE80: X | AF80: X | AG80: X | AH80: x | AI80: X | AJ80: X | AK80: X | AL80: X | AM80: X | AN80: X | AO80: X | AS80: X | AW80: =IF(OR(BJ80=0,AU80="Non applicable"),0,1) -> 0 | AX80: 0 | AY80: 0 | AZ80: 0 | BA80: 0 | BB80: 0 | BC80: 0 | BD80: 0 | BE80: 0 | BF80: 0 | BG80: 0 | BH80: 0 | BI80: 0 | BJ80: =SUM(AX80:BI80) -> 0
A81: 77 | B81: ECONOMIE | C81: Gestion du budget | D81: Management/ Gestion | E81: Anticiper et plannifier sa trésorerie | F81: Respecter le budget prévisionnel indiqué aux partenaires financiers de l'évènement. | G81: 2 | Q81: X | Z81: X | AA81: X | AB81: X | AC81: X | AD81: X | AE81: X | AF81: X | AG81: X | AH81: X | AI81: X | AJ81: X | AK81: X | AL81: X | AM81: X | AN81: X | AO81: X | AS81: X | AW81: 0 | AX81: 0 | AY81: 0 | AZ81: 0 | BA81: 0 | BB81: 0 | BC81: 0 | BD81: 0 | BE81: 0 | BF81: 0 | BG81: 0 | BH81: 0 | BI81: 0 | BJ81: 0
A82: 78 | B82: ECONOMIE | C82: Gestion du budget | D82: Management/ Gestion | E82: Anticiper et plannifier sa trésorerie | F82: Faire un prévisionnel de trésorerie et contrôler ses dépenses. | G82: 3 | Q82: X | Z82: X | AA82: X | AB82: X | AC82: X | AD82: X | AE82: X | AF82: X | AG82: X | AH82: X | AI82: X | AJ82: X | AK82: X | AL82: X | AM82: X | AN82: X | AO82: X | AP82: X | AS82: X | AT82: X | AW82: 1 | AX82: 0 | AY82: 0 | AZ82: 0 | BA82: 1 | BB82: 0 | BC82: 0 | BD82: 0 | BE82: 0 | BF82: 0 | BG82: 0 | BH82: 0 | BI82: 0 | BJ82: 1
A83: 79 | B83: ECONOMIE | C83: Gestion du budget | D83: Management/ Gestion | E83: Avoir un bilan équilibré | F83: Bien définir son budget prévisionnel et mettre en place des outils de suivi efficaces. | G83: 2 | Q83: X | Z83: X | AA83: X | AB83: X | AC83: X | AD83: X | AE83: X | AF83: X | AG83: X | AH83: X | AI83: X | AJ83: X | AK83: X | AL83: X | AM83: X | AN83: X | AO83: X | AS83: X | AT83: X | AW83: 0 | AX83: 0 | AY83: 0 | AZ83: 0 | BA83: 0 | BB83: 0 | BC83: 0 | BD83: 0 | BE83: 0 | BF83: 0 | BG83: 0 | BH83: 0 | BI83: 0 | BJ83: 0
A84: 80 | B84: ECONOMIE | C84: Gestion du budget | D84: Management/ Gestion | E84: Limiter les coûts | F84: Privilégier des dépenses bien proportionnées, ne pas faire d'excès. | G84: 2 | Q84: X | Z84: X | AA84: X | AB84: X | AC84: X | AD84: X | AE84: X | AF84: X | AG84: X | AH84: X | AI84: X | AJ84: X | AK84: X | AL84: X | AM84: X | AN84: X | AO84: X | AP84: X | AS84: X | AT84: X | AW84: 0 | AX84: 0 | AY84: 0 | AZ84: 0 | BA84: 0 | BB84: 0 | BC84: 0 | BD84: 0 | BE84: 0 | BF84: 0 | BG84: 0 | BH84: 0 | BI84: 0 | BJ84: 0
A85: 81 | B85: ECONOMIE | C85: Gestion du budget | D85: Management/ Gestion | E85: Suivre et contrôler ses dépenses | F85: S'intéresser aux coûts globaux (sur l'ensemble du cycle de vie des produits). | G85: 1 | Q85: X | Z85: X | AA85: X | AB85: X | AC85: X | AD85: X | AE85: X | AF85: X | AG85: X | AH85: X | AI85: X | AJ85: X | AK85: X | AL85: X | AM85: X | AN85: X | AO85: X | AW85: 0 | AX85: 0 | AY85: 0 | AZ85: 0 | BA85: 0 | BB85: 0 | BC85: 0 | BD85: 0 | BE85: 0 | BF85: 0 | BG85: 0 | BH85: 0 | BI85: 0 | BJ85: 0
A86: 82 | B86: ECONOMIE | C86: Impacts économiques indirects | D86: Déplacements | E86: Anticiper les coûts induits | F86: Choisir le lieu de l'évènement de manière à limiter les frais liés au transport et à l'hébergement des participants et organisateurs. | G86: 3 | Q86: X | Z86: X | AA86: O | AB86: X | AC86: X | AD86: X | AE86: X | AF86: X | AG86: X | AH86: X | AI86: X | AJ86: X | AK86: X | AL86: X | AM86: X | AN86: X | AO86: X | AS86: X | AW86: 1 | AX86: 0 | AY86: 0 | AZ86: 0 | BA86: 1 | BB86: 0 | BC86: 0 | BD86: 0 | BE86: 0 | BF86: 0 | BG86: 0 | BH86: 0 | BI86: 0 | BJ86: 1
A87: 83 | B87: ECONOMIE | C87: Impacts économiques indirects | D87: Management/ Gestion | E87: Gérer le placement de son argent | F87: Ouvrir le ou les comptes associés à l'organisation de l'évènement dans une banque au fonctionnement coopératif, transparent dans l'usage des épargnes, s'appliquant la taxe carbone / financière. | G87: 1 | M87: Exemples : Nef, Crédit Coopératif | Q87: X | X87: X | Z87: X | AA87: X | AB87: X | AC87: X | AD87: X | AE87: X | AF87: X | AG87: X | AH87: X | AI87: X | AJ87: X | AK87: X | AL87: X | AM87: X | AN87: X | AO87: X | AS87: X | AW87: 0 | AX87: 0 | AY87: 0 | AZ87: 0 | BA87: 0 | BB87: 0 | BC87: 0 | BD87: 0 | BE87: 0 | BF87: 0 | BG87: 0 | BH87: 0 | BI87: 0 | BJ87: 0
A88: 84 | B88: ECONOMIE | C88: Investissement juste | D88: Management/ Gestion | E88: Choisir des partenaires responsables | F88: Rechercher des subventions auprès d'organismes ou sponsors présentant un réel engagement dans le développement durable. | G88: 2 | Q88: X | Z88: X | AA88: X | AB88: X | AC88: X | AD88: X | AE88: X | AF88: X | AG88: X | AH88: X | AI88: X | AJ88: X | AK88: X | AL88: X | AM88: X | AN88: X | AO88: X | AS88: X | AW88: 0 | AX88: 0 | AY88: 0 | AZ88: 0 | BA88: 0 | BB88: 0 | BC88: 0 | BD88: 0 | BE88: 0 | BF88: 0 | BG88: 0 | BH88: 0 | BI88: 0 | BJ88: 0
A89: 85 | B89: ECONOMIE | C89: Investissement juste | D89: Management/ Gestion | E89: Créer des recettes pour l'organisation | F89: Lever des fonds en toute transparence. | G89: 3 | Q89: X | Z89: X | AA89: X | AB89: X | AC89: X | AD89: X | AE89: X | AF89: X | AG89: X | AH89: X | AI89: X | AJ89: X | AK89: X | AL89: X | AM89: X | AN89: X | AO89: X | AS89: X | AW89: 1 | AX89: 0 | AY89: 0 | AZ89: 0 | BA89: 1 | BB89: 0 | BC89: 0 | BD89: 0 | BE89: 0 | BF89: 0 | BG89: 0 | BH89: 0 | BI89: 0 | BJ89: 1
A90: 86 | B90: ECONOMIE | C90: Investissement juste | D90: Management/ Gestion | E90: Créer des recettes pour l'organisation | F90: Envisager les investissements à consentir pour organiser l'évènement sur le long terme. | G90: 1 | Q90: X | Z90: X | AA90: X | AB90: X | AC90: X | AD90: X | AE90: X | AF90: X | AG90: X | AH90: X | AI90: X | AJ90: X | AK90: X | AL90: X | AM90: X | AN90: X | AO90: X | AS90: X | AW90: 0 | AX90: 0 | AY90: 0 | AZ90: 0 | BA90: 0 | BB90: 0 | BC90: 0 | BD90: 0 | BE90: 0 | BF90: 0 | BG90: 0 | BH90: 0 | BI90: 0 | BJ90: 0
A91: 87 | B91: ECONOMIE | C91: Rémunération et subordination | D91: Conditions de travail | E91: Gérer les bénévoles/organisateurs | F91: Si pertinent, privilégier l'emploi de personnes en situation précaire dans l'organisation de l'évènement pour tout travail rémunéré. | G91: 1 | Q91: X | X91: X | Z91: X | AA91: X | AB91: X | AC91: X | AD91: X | AE91: x | AF91: X | AG91: x | AH91: X | AI91: X | AJ91: X | AK91: X | AL91: X | AM91: X | AN91: X | AO91: X | AS91: X | AW91: 0 | AX91: 0 | AY91: 0 | AZ91: 0 | BA91: 0 | BB91: 0 | BC91: 0 | BD91: 0 | BE91: 0 | BF91: 0 | BG91: 0 | BH91: 0 | BI91: 0 | BJ91: 0
A92: 88 | B92: ECONOMIE | C92: Rémunération et subordination | D92: Conditions de travail | E92: Gérer les bénévoles/organisateurs | F92: Prendre en charge en totalité ou en partie, selon les possibilités, les frais éventuels d'hébergement et de transport des organisateurs. | G92: 1 | Q92: X | Z92: X | AA92: X | AB92: X | AC92: X | AD92: X | AE92: X | AF92: X | AG92: X | AH92: X | AI92: X | AJ92: X | AK92: X | AL92: X | AM92: X | AN92: X | AW92: 0 | AX92: 0 | AY92: 0 | AZ92: 0 | BA92: 0 | BB92: 0 | BC92: 0 | BD92: 0 | BE92: 0 | BF92: 0 | BG92: 0 | BH92: 0 | BI92: 0 | BJ92: 0
A93: 89 | B93: EMPREINTE CARBONE | C93: Communication | D93: Communication | E93: Adapter les supports et les moyens aux cibles | F93: Choisir le moyen de communication le plus adapté au public visé. Il n'est pas nécessaire de multiplier les supports (affiches, flyers, application smartphone…) si vous estimez qu'ils ne toucheront pas votre cible de manière efficace. | G93: 3 | R93: X | Z93: X | AA93: X | AB93: X | AC93: X | AD93: X | AE93: X | AF93: X | AG93: X | AH93: X | AI93: X | AJ93: X | AK93: X | AL93: X | AM93: X | AN93: X | AW93: 1 | AX93: 0 | AY93: 0 | AZ93: 0 | BA93: 0 | BB93: 1 | BC93: 0 | BD93: 0 | BE93: 0 | BF93: 0 | BG93: 0 | BH93: 0 | BI93: 0 | BJ93: 1
A94: 90 | B94: EMPREINTE CARBONE | C94: Communication | D94: Communication | E94: Adapter les supports et les moyens aux cibles | F94: Choisir des endroits stratégiques pour poser les affiches : 5 affiches bien placées valent mieux que 30 au fond du couloir ! Proposer un panneau réservé à la communication associative, en respectant un emplacement par association. Ainsi, les étudiants savent où regarder pour connaître vos actualités. | G94: 3 | R94: X | Z94: X | AA94: X | AB94: X | AC94: X | AD94: X | AE94: X | AF94: X | AG94: X | AH94: X | AI94: X | AJ94: X | AK94: X | AL94: X | AM94: X | AN94: X | AW94: 1 | AX94: 0 | AY94: 0 | AZ94: 0 | BA94: 0 | BB94: 1 | BC94: 0 | BD94: 0 | BE94: 0 | BF94: 0 | BG94: 0 | BH94: 0 | BI94: 0 | BJ94: 1
A95: 91 | B95: EMPREINTE CARBONE | C95: Communication | D95: Communication | E95: Bien concevoir la signalétique | F95: Utiliser des supports intemporels (pas de notion d'année ou de lieu). | G95: 1 | R95: X | Z95: X | AA95: X | AB95: X | AC95: X | AD95: X | AE95: X | AF95: X | AG95: X | AH95: X | AI95: X | AJ95: X | AK95: X | AL95: X | AM95: X | AN95: X | AW95: 0 | AX95: 0 | AY95: 0 | AZ95: 0 | BA95: 0 | BB95: 0 | BC95: 0 | BD95: 0 | BE95: 0 | BF95: 0 | BG95: 0 | BH95: 0 | BI95: 0 | BJ95: 0
A96: 92 | B96: EMPREINTE CARBONE | C96: Communication | D96: Communication | E96: Utiliser des goodies éco-conçu | F96: Privilégier des matériaux recyclés et/ou recyclables : crayon en bois certifié, stylo en amidon de maïs, bloc notes en papier recyclé… Des exemples sur le site http://www.remarkable.co.uk/ | G96: 1 | R96: X | T96: X | Z96: X | AA96: X | AB96: X | AC96: X | AD96: X | AE96: X | AF96: X | AG96: X | AH96: X | AI96: X | AJ96: X | AK96: X | AL96: X | AM96: X | AN96: X | AW96: 0 | AX96: 0 | AY96: 0 | AZ96: 0 | BA96: 0 | BB96: 0 | BC96: 0 | BD96: 0 | BE96: 0 | BF96: 0 | BG96: 0 | BH96: 0 | BI96: 0 | BJ96: 0
A97: 93 | B97: EMPREINTE CARBONE | C97: Communication | D97: Communication | E97: Utiliser des goodies éco-conçu | F97: Elaborer un annuaire des entreprises responsables et travailler en priorité avec celles-ci. | G97: 1 | R97: X | X97: X | Z97: X | AA97: X | AB97: X | AC97: X | AD97: X | AE97: X | AF97: X | AG97: X | AH97: X | AI97: X | AJ97: X | AK97: X | AL97: X | AM97: X | AN97: X | AW97: 0 | AX97: 0 | AY97: 0 | AZ97: 0 | BA97: 0 | BB97: 0 | BC97: 0 | BD97: 0 | BE97: 0 | BF97: 0 | BG97: 0 | BH97: 0 | BI97: 0 | BJ97: 0
A98: 94 | B98: EMPREINTE CARBONE | C98: Communication | D98: Communication | E98: Utiliser des goodies utiles | F98: Sensibiliser les partenaires à ce sujet : prévenez vos partenaires que vous êtes dans une démarche responsable et que vous souhaiteriez sélectionner ensemble un ou deux goodies, les plus utiles aux étudiants. | G98: 3 | R98: X | U98: X | Z98: X | AA98: X | AB98: X | AC98: X | AD98: X | AE98: X | AF98: X | AG98: X | AH98: X | AI98: X | AJ98: X | AK98: X | AL98: X | AM98: X | AN98: X | AW98: 1 | AX98: 0 | AY98: 0 | AZ98: 0 | BA98: 0 | BB98: 1 | BC98: 0 | BD98: 0 | BE98: 1 | BF98: 0 | BG98: 0 | BH98: 0 | BI98: 0 | BJ98: 2
A99: 95 | B99: EMPREINTE CARBONE | C99: Communication | D99: Communication | E99: Utiliser des goodies utiles | F99: Laisser le choix des goodies aux participants : disposer quelques goodies sur une table au lieu de distribuer des sacs tout faits ; rester devant pour expliquer l'utilité des goodies. Ainsi chacun repartira avec ce dont il a besoin et n'accumulera pas les objets inutiles chez soi ! | G99: 2 | R99: X | Z99: X | AA99: X | AB99: X | AC99: X | AD99: X | AE99: X | AF99: X | AG99: X | AH99: X | AI99: X | AJ99: X | AK99: X | AL99: X | AM99: X | AN99: X | AW99: 0 | AX99: 0 | AY99: 0 | AZ99: 0 | BA99: 0 | BB99: 0 | BC99: 0 | BD99: 0 | BE99: 0 | BF99: 0 | BG99: 0 | BH99: 0 | BI99: 0 | BJ99: 0
A100: 96 | B100: EMPREINTE CARBONE | C100: Communication | D100: Communication | E100: Utiliser des goodies utiles | F100: Evaluer les besoins des participants afin de leur proposer des objets qui leur seront utiles lors de l'évènement ou dans leur vie quotidienne. | G100: 2 | R100: X | Z100: X | AA100: X | AB100: X | AC100: X | AD100: X | AE100: X | AF100: X | AG100: X | AH100: X | AI100: X | AJ100: X | AK100: X | AL100: X | AM100: X | AN100: X | AW100: 0 | AX100: 0 | AY100: 0 | AZ100: 0 | BA100: 0 | BB100: 0 | BC100: 0 | BD100: 0 | BE100: 0 | BF100: 0 | BG100: 0 | BH100: 0 | BI100: 0 | BJ100: 0
A101: 97 | B101: EMPREINTE CARBONE | C101: Communication | D101: Communication | E101: Utiliser des supports de communication réutilisables | F101: Privilégier les supports de type bâches et kakemonos et les récupérer avec soin après chaque évènement afin de les réutiliser. | G101: 1 | R101: X | Z101: X | AA101: X | AB101: X | AC101: X | AD101: X | AE101: X | AF101: X | AG101: X | AH101: X | AI101: X | AJ101: X | AK101: X | AL101: X | AM101: X | AN101: X | AW101: 0 | AX101: 0 | AY101: 0 | AZ101: 0 | BA101: 0 | BB101: 0 | BC101: 0 | BD101: 0 | BE101: 0 | BF101: 0 | BG101: 0 | BH101: 0 | BI101: 0 | BJ101: 0
A102: 98 | B102: EMPREINTE CARBONE | C102: Communication | D102: Communication | E102: Utiliser des supports d'information responsables | F102: Utiliser du papier recyclé ou issu de forêts gérées durablement : orienter les participants en restant cohérent dans votre démarche responsable. Le papier issu de forêts gérées durablement peut être certifié FSC ou PEFC. | G102: 1 | M102: Commander les supports de com' chez des fournisseurs labellisés « imprim'vert », organiser une réduction graduelle des quantités. | O102: x | R102: X | Z102: X | AA102: X | AB102: X | AC102: X | AD102: X | AE102: X | AF102: X | AG102: X | AH102: X | AI102: X | AJ102: X | AK102: X | AL102: X | AM102: X | AN102: X | AW102: 0 | AX102: 0 | AY102: 0 | AZ102: 0 | BA102: 0 | BB102: 0 | BC102: 0 | BD102: 0 | BE102: 0 | BF102: 0 | BG102: 0 | BH102: 0 | BI102: 0 | BJ102: 0
A103: 99 | B103: EMPREINTE CARBONE | C103: Communication | D103: Communication | E103: Utiliser des supports d'information responsables | F103: Etablir un partenariat de communication avec une autre association vous permet par exemple de partager un flyer (recto/verso). De cette façon, vous réduisez votre consommation de papier ainsi que vos frais d'impression. | G103: 1 | N103: X | R103: X | X103: X | Z103: X | AA103: X | AB103: X | AC103: X | AD103: X | AE103: X | AF103: X | AG103: X | AH103: X | AI103: X | AJ103: X | AK103: X | AL103: X | AM103: X | AN103: X | AW103: 0 | AX103: 0 | AY103: 0 | AZ103: 0 | BA103: 0 | BB103: 0 | BC103: 0 | BD103: 0 | BE103: 0 | BF103: 0 | BG103: 0 | BH103: 0 | BI103: 0 | BJ103: 0
A104: 100 | B104: EMPREINTE CARBONE | C104: Communication | D104: Communication | E104: Utiliser des supports d'information responsables | F104: Choisir un imprimeur labellisé Imprim'vert ou mettre en place un accord avec votre partenaire (souvent une banque en école) afin de produire des impressions qui soient les plus responsables possible. | G104: 1 | R104: X | T104: X | Z104: X | AA104: X | AB104: X | AC104: X | AD104: X | AE104: X | AF104: X | AG104: X | AH104: X | AI104: X | AJ104: X | AK104: X | AL104: X | AM104: X | AN104: X | AW104: 0 | AX104: 0 | AY104: 0 | AZ104: 0 | BA104: 0 | BB104: 0 | BC104: 0 | BD104: 0 | BE104: 0 | BF104: 0 | BG104: 0 | BH104: 0 | BI104: 0 | BJ104: 0
A105: 101 | B105: EMPREINTE CARBONE | C105: Communication | D105: Communication | E105: Utiliser des vêtements et accesoires responsables | F105: Récupérer des vieux t-shirts, casquettes, lunettes… et customiser soi-même à l'aide de matériaux recyclés/recyclables et de produits non toxiques. | G105: 1 | R105: X | Z105: X | AA105: X | AB105: X | AC105: X | AD105: X | AE105: X | AF105: X | AG105: X | AH105: X | AI105: X | AJ105: X | AK105: X | AL105: X | AM105: X | AN105: X | AW105: 0 | AX105: 0 | AY105: 0 | AZ105: 0 | BA105: 0 | BB105: 0 | BC105: 0 | BD105: 0 | BE105: 0 | BF105: 0 | BG105: 0 | BH105: 0 | BI105: 0 | BJ105: 0
A106: 102 | B106: EMPREINTE CARBONE | C106: Communication | D106: Communication | E106: Utiliser des vêtements et accesoires responsables | F106: Privilégier des vêtements et accessoires en textiles recyclés, en coton bio et/ou issu du commerce équitable. | G106: 1 | R106: X | Z106: X | AA106: X | AB106: X | AC106: X | AD106: X | AE106: X | AF106: X | AG106: X | AH106: X | AI106: X | AJ106: X | AK106: X | AL106: X | AM106: X | AN106: X | AW106: =IF(OR(BJ106=0,AU106="Non applicable"),0,1) -> 0 | AX106: 0 | AY106: 0 | AZ106: 0 | BA106: 0 | BB106: 0 | BC106: 0 | BD106: 0 | BE106: 0 | BF106: 0 | BG106: 0 | BH106: 0 | BI106: 0 | BJ106: 0
A107: 103 | B107: EMPREINTE CARBONE | C107: Communication | D107: Déchets | E107: Collecter les affiches et la signalétiques et assurer leur fin de vie | F107: Récupérer la signalétique : la garder avec soin si elle peut être réutilisée ou la jeter dans les poubelles prévues à cet effet. | G107: 2 | R107: X | Z107: X | AA107: X | AB107: X | AC107: X | AD107: X | AE107: X | AF107: X | AG107: X | AH107: X | AI107: X | AJ107: X | AK107: X | AL107: X | AM107: X | AN107: X | AW107: 0 | AX107: 0 | AY107: 0 | AZ107: 0 | BA107: 0 | BB107: 0 | BC107: 0 | BD107: 0 | BE107: 0 | BF107: 0 | BG107: 0 | BH107: 0 | BI107: 0 | BJ107: 0
A108: 104 | B108: EMPREINTE CARBONE | C108: Communication | D108: Déchets | E108: Collecter les affiches et la signalétiques et assurer leur fin de vie | F108: Chercher qui peut reprendre vos affiches : demandez à votre imprimeur s'il reprend les affiches pour les recycler ou jetez ce papier dans les poubelles prévues à cet effet. | G108: 1 | R108: X | Z108: X | AA108: X | AB108: X | AC108: X | AD108: X | AE108: X | AF108: X | AG108: X | AH108: X | AI108: X | AJ108: X | AK108: X | AL108: X | AM108: X | AN108: X | AW108: 0 | AX108: 0 | AY108: 0 | AZ108: 0 | BA108: 0 | BB108: 0 | BC108: 0 | BD108: 0 | BE108: 0 | BF108: 0 | BG108: 0 | BH108: 0 | BI108: 0 | BJ108: 0
A109: 105 | B109: EMPREINTE CARBONE | C109: Communication | D109: Déchets | E109: Trier et recycler le papier | F109: Repérer les containers prévus pour accueillir les déchets recyclables sur le lieu de l'évènement et y jeter le papier non récupérable. Si vous n'en avez pas à disposition, prévoir un bac de tri. | G109: 2 | R109: X | T109: X | Z109: X | AA109: X | AB109: X | AC109: X | AD109: X | AE109: X | AF109: X | AG109: X | AH109: X | AI109: X | AJ109: X | AK109: X | AL109: X | AM109: X | AN109: X | AW109: 0 | AX109: 0 | AY109: 0 | AZ109: 0 | BA109: 0 | BB109: 0 | BC109: 0 | BD109: 0 | BE109: 0 | BF109: 0 | BG109: 0 | BH109: 0 | BI109: 0 | BJ109: 0
A110: 106 | B110: EMPREINTE CARBONE | C110: Communication | D110: Déchets | E110: Trier et recycler les cartouches d'encre | F110: Installer des bacs de récupération sur le campus. | G110: 1 | R110: X | T110: X | Z110: X | AA110: X | AB110: X | AC110: X | AD110: X | AE110: X | AF110: X | AG110: X | AH110: X | AI110: X | AJ110: X | AK110: X | AL110: X | AM110: X | AN110: X | AW110: 0 | AX110: 0 | AY110: 0 | AZ110: 0 | BA110: 0 | BB110: 0 | BC110: 0 | BD110: 0 | BE110: 0 | BF110: 0 | BG110: 0 | BH110: 0 | BI110: 0 | BJ110: 0
A111: 107 | B111: EMPREINTE CARBONE | C111: Communication | D111: Déchets | E111: Trier et recycler les cartouches d'encre | F111: Contacter une association locale | G111: 1 | M111: De nombreux réseaux associatifs proposent de récupérer vos cartouches vides afin de les recycler. Ils collectent ainsi des fonds pour soutenir des projets associatifs solidaires. Quelques clics dans un moteur de recherche suffisent pour trouver ce type d'action près de chez vous. Sinon, certaines entreprises de reconditionnement rachètent les cartouches vides. http://www.eco-collecte.fr/ http://www.amomp.com/recyclage-cartouche-encre.php http://www.recupcartouches.com/ | R111: X | Z111: X | AA111: X | AB111: X | AC111: X | AD111: X | AE111: X | AF111: X | AG111: X | AH111: X | AI111: X | AJ111: X | AK111: X | AL111: X | AM111: X | AN111: X | AW111: 0 | AX111: 0 | AY111: 0 | AZ111: 0 | BA111: 0 | BB111: 0 | BC111: 0 | BD111: 0 | BE111: 0 | BF111: 0 | BG111: 0 | BH111: 0 | BI111: 0 | BJ111: 0
A112: 108 | B112: EMPREINTE CARBONE | C112: Communication | D112: Déchets | E112: Utiliser une billeterie dématérialisée | F112: Réaliser une application smartphone pour communiquer (pas de papier). | G112: 1 | Q112: X | R112: X | Z112: X | AA112: X | AB112: X | AC112: X | AD112: X | AE112: X | AF112: X | AG112: X | AH112: X | AI112: X | AJ112: X | AK112: X | AL112: X | AM112: X | AN112: X | AW112: 0 | AX112: 0 | AY112: 0 | AZ112: 0 | BA112: 0 | BB112: 0 | BC112: 0 | BD112: 0 | BE112: 0 | BF112: 0 | BG112: 0 | BH112: 0 | BI112: 0 | BJ112: 0
A113: 109 | B113: EMPREINTE CARBONE | C113: Communication | D113: Déchets | E113: Utiliser une billeterie dématérialisée | F113: Utiliser Internet pour la billetterie ou les invitations. Il existe des systèmes de paiement par internet accessibles aux associations (pas de papier). | G113: 1 | Q113: X | R113: X | Z113: X | AA113: X | AB113: X | AC113: X | AD113: X | AE113: X | AF113: X | AG113: X | AH113: X | AI113: X | AJ113: X | AK113: X | AL113: X | AM113: X | AN113: X | AW113: 0 | AX113: 0 | AY113: 0 | AZ113: 0 | BA113: 0 | BB113: 0 | BC113: 0 | BD113: 0 | BE113: 0 | BF113: 0 | BG113: 0 | BH113: 0 | BI113: 0 | BJ113: 0
A114: 110 | B114: EMPREINTE CARBONE | C114: Communication | D114: Transports | E114: Bien organiser ses déplacements | F114: Si vous avez un véhicule particulier ou un camion, prévoir un lieu de stationnement. | G114: 1 | R114: X | Z114: X | AA114: X | AB114: X | AC114: X | AD114: X | AE114: X | AF114: X | AG114: X | AH114: X | AI114: X | AJ114: X | AK114: X | AL114: X | AM114: X | AN114: X | AW114: 0 | AX114: 0 | AY114: 0 | AZ114: 0 | BA114: 0 | BB114: 0 | BC114: 0 | BD114: 0 | BE114: 0 | BF114: 0 | BG114: 0 | BH114: 0 | BI114: 0 | BJ114: 0
A115: 111 | B115: EMPREINTE CARBONE | C115: Communication | D115: Transports | E115: Bien organiser ses déplacements | F115: Planifier et optimiser ses déplacements pour éviter les transports à vide . | G115: 2 | R115: X | Z115: X | AA115: O | AB115: X | AC115: X | AD115: X | AE115: X | AF115: X | AG115: X | AH115: X | AI115: X | AJ115: X | AK115: X | AL115: X | AM115: X | AN115: X | AW115: 0 | AX115: 0 | AY115: 0 | AZ115: 0 | BA115: 0 | BB115: 0 | BC115: 0 | BD115: 0 | BE115: 0 | BF115: 0 | BG115: 0 | BH115: 0 | BI115: 0 | BJ115: 0
A116: 112 | B116: EMPREINTE CARBONE | C116: Communication | D116: Transports | E116: Bien organiser ses déplacements | F116: Dans la mesure du possible, profiter des déplacements de personnes pour faire coïncider le transport de matériel. | G116: 2 | Q116: X | R116: X | Z116: X | AA116: O | AB116: X | AC116: X | AD116: X | AE116: X | AF116: X | AG116: X | AH116: X | AI116: X | AJ116: X | AK116: X | AL116: X | AM116: X | AN116: X | AW116: 0 | AX116: 0 | AY116: 0 | AZ116: 0 | BA116: 0 | BB116: 0 | BC116: 0 | BD116: 0 | BE116: 0 | BF116: 0 | BG116: 0 | BH116: 0 | BI116: 0 | BJ116: 0
A117: 113 | B117: EMPREINTE CARBONE | C117: Communication | D117: Transports | E117: Diminuer la distance de transport | F117: Travailler avec des partenaires locaux. | G117: 1 | N117: X | R117: X | Z117: X | AA117: X | AB117: X | AC117: X | AD117: X | AE117: X | AF117: X | AG117: X | AH117: X | AI117: X | AJ117: X | AK117: X | AL117: X | AM117: X | AN117: X | AW117: 0 | AX117: 0 | AY117: 0 | AZ117: 0 | BA117: 0 | BB117: 0 | BC117: 0 | BD117: 0 | BE117: 0 | BF117: 0 | BG117: 0 | BH117: 0 | BI117: 0 | BJ117: 0
A118: 114 | B118: EMPREINTE CARBONE | C118: Communication | D118: Transports | E118: Diminuer la distance de transport | F118: Stocker le matériel dans un lieu proche : demander à l'école/université ou à la mairie de vous mettre un local à disposition. | G118: 1 | R118: X | Z118: X | AA118: X | AB118: X | AC118: X | AD118: X | AE118: X | AF118: X | AG118: X | AH118: X | AI118: X | AJ118: X | AK118: X | AL118: X | AM118: X | AN118: X | AW118: 0 | AX118: 0 | AY118: 0 | AZ118: 0 | BA118: 0 | BB118: 0 | BC118: 0 | BD118: 0 | BE118: 0 | BF118: 0 | BG118: 0 | BH118: 0 | BI118: 0 | BJ118: 0
A119: 115 | B119: EMPREINTE CARBONE | C119: Déplacement de personnes | D119: Déplacements | E119: Donner les bonnes indications pour éviter de se perdre | F119: Proposer des plans afin d'éviter les détours inutiles et de se perdre : vous gagnerez du temps, limiterez vos émissions de CO2 si vous êtes motorisés et arriverez de meilleur humeur ! | G119: 1 | R119: X | Z119: X | AA119: O | AB119: X | AC119: X | AD119: X | AE119: X | AF119: X | AG119: X | AH119: X | AI119: X | AJ119: X | AK119: X | AL119: X | AM119: X | AN119: X | AW119: 0 | AX119: 0 | AY119: 0 | AZ119: 0 | BA119: 0 | BB119: 0 | BC119: 0 | BD119: 0 | BE119: 0 | BF119: 0 | BG119: 0 | BH119: 0 | BI119: 0 | BJ119: 0
A120: 116 | B120: EMPREINTE CARBONE | C120: Déplacement de personnes | D120: Déplacements | E120: Donner les bonnes indications pour éviter de se perdre | F120: Mettre en place une signalisation adaptée. | G120: 2 | R120: X | Z120: X | AA120: O | AB120: X | AC120: X | AD120: X | AE120: X | AF120: X | AG120: X | AH120: X | AI120: X | AJ120: X | AK120: X | AL120: X | AM120: X | AN120: X | AW120: 0 | AX120: 0 | AY120: 0 | AZ120: 0 | BA120: 0 | BB120: 0 | BC120: 0 | BD120: 0 | BE120: 0 | BF120: 0 | BG120: 0 | BH120: 0 | BI120: 0 | BJ120: 0
A121: 117 | B121: EMPREINTE CARBONE | C121: Déplacement de personnes | D121: Déplacements | E121: Favoriser l'utilisation du train | F121: Prévoir des navettes entre la gare et l'évènement pour encourager les participants à venir en train. | G121: 1 | R121: X | Z121: X | AA121: O | AB121: X | AC121: X | AD121: X | AE121: X | AF121: X | AG121: X | AH121: X | AI121: X | AJ121: X | AK121: X | AL121: X | AM121: X | AN121: X | AW121: 0 | AX121: 0 | AY121: 0 | AZ121: 0 | BA121: 0 | BB121: 0 | BC121: 0 | BD121: 0 | BE121: 0 | BF121: 0 | BG121: 0 | BH121: 0 | BI121: 0 | BJ121: 0
A122: 118 | B122: EMPREINTE CARBONE | C122: Déplacement de personnes | D122: Déplacements | E122: Favoriser l'utilisation du train | F122: Mettre en place des réductions ou remboursements pour les personnes venant en train et pas pour celles venant en voiture. | G122: 1 | M122: Valoriser les déplacements "propres" par des boissons offertes, cadeaux, goodies… | R122: X | Z122: X | AA122: O | AB122: X | AC122: X | AD122: X | AE122: X | AF122: X | AG122: X | AH122: X | AI122: X | AJ122: X | AK122: X | AL122: X | AM122: X | AN122: X | AW122: 0 | AX122: 0 | AY122: 0 | AZ122: 0 | BA122: 0 | BB122: 0 | BC122: 0 | BD122: 0 | BE122: 0 | BF122: 0 | BG122: 0 | BH122: 0 | BI122: 0 | BJ122: 0
A123: 119 | B123: EMPREINTE CARBONE | C123: Déplacement de personnes | D123: Déplacements | E123: Mettre en place des systèmes de visio-conférence | F123: Etudier la possibilité, en fonction du lieu et des moyens techniques, de mettre en placec des visioconférences. | G123: 1 | R123: X | Z123: X | AA123: O | AB123: X | AC123: X | AD123: X | AE123: X | AF123: X | AG123: X | AH123: X | AI123: X | AJ123: X | AK123: X | AL123: X | AM123: X | AN123: X | AW123: 0 | AX123: 0 | AY123: 0 | AZ123: 0 | BA123: 0 | BB123: 0 | BC123: 0 | BD123: 0 | BE123: 0 | BF123: 0 | BG123: 0 | BH123: 0 | BI123: 0 | BJ123: 0
A124: 120 | B124: EMPREINTE CARBONE | C124: Déplacement de personnes | D124: Déplacements | E124: Optimiser l'organisation des déplacements | F124: Se renseigner sur les réseaux de transports locaux, informer les participants sur les moyens de transports locaux. | G124: 3 | M124: Plans, tarifs, lien vers le site du transporteur local. | N124: X | R124: X | Z124: X | AA124: O | AB124: X | AC124: X | AD124: X | AE124: X | AF124: X | AG124: X | AH124: X | AI124: X | AJ124: X | AK124: X | AL124: X | AM124: X | AN124: X | AW124: 1 | AX124: 1 | AY124: 0 | AZ124: 0 | BA124: 0 | BB124: 1 | BC124: 0 | BD124: 0 | BE124: 0 | BF124: 0 | BG124: 0 | BH124: 0 | BI124: 0 | BJ124: 2
A125: 121 | B125: EMPREINTE CARBONE | C125: Déplacement de personnes | D125: Déplacements | E125: Optimiser l'organisation des déplacements | F125: Prévoir un planning avec le nombre de voyages à faire pour optimiser les chargements. | G125: 1 | R125: X | Z125: X | AA125: O | AB125: X | AC125: X | AD125: X | AE125: X | AF125: X | AG125: X | AH125: X | AI125: X | AJ125: X | AK125: X | AL125: X | AM125: X | AN125: X | AW125: 0 | AX125: 0 | AY125: 0 | AZ125: 0 | BA125: 0 | BB125: 0 | BC125: 0 | BD125: 0 | BE125: 0 | BF125: 0 | BG125: 0 | BH125: 0 | BI125: 0 | BJ125: 0
A126: 122 | B126: EMPREINTE CARBONE | C126: Déplacement de personnes | D126: Déplacements | E126: Optimiser l'organisation des déplacements | F126: Demander à l'inscription des renseignements sur les transports : lieu de départ, moyen envisagé… | G126: 2 | R126: X | Z126: X | AA126: O | AB126: X | AC126: X | AD126: X | AE126: X | AF126: X | AG126: X | AH126: X | AI126: X | AJ126: X | AK126: X | AL126: X | AM126: X | AN126: X | AW126: 0 | AX126: 0 | AY126: 0 | AZ126: 0 | BA126: 0 | BB126: 0 | BC126: 0 | BD126: 0 | BE126: 0 | BF126: 0 | BG126: 0 | BH126: 0 | BI126: 0 | BJ126: 0
A127: 123 | B127: EMPREINTE CARBONE | C127: Déplacement de personnes | D127: Déplacements | E127: Permettre le co-voiturage | F127: Organiser soi-même le covoiturage en prenant les lieux de départ des participants et en proposant à ceux partant d'un même lieu d'envisager un départ commun. | G127: 1 | R127: X | X127: X | Z127: X | AA127: O | AB127: X | AC127: X | AD127: X | AE127: X | AF127: X | AG127: X | AH127: X | AI127: X | AJ127: X | AK127: X | AL127: X | AM127: X | AN127: X | AW127: 0 | AX127: 0 | AY127: 0 | AZ127: 0 | BA127: 0 | BB127: 0 | BC127: 0 | BD127: 0 | BE127: 0 | BF127: 0 | BG127: 0 | BH127: 0 | BI127: 0 | BJ127: 0
A128: 124 | B128: EMPREINTE CARBONE | C128: Déplacement de personnes | D128: Déplacements | E128: Permettre le co-voiturage | F128: Mettre en place une plateforme de covoiturage éventuellement en passant par un site partenaire. | G128: 1 | R128: X | X128: X | Z128: X | AA128: O | AB128: X | AC128: X | AD128: X | AE128: X | AF128: X | AG128: X | AH128: X | AI128: X | AJ128: X | AK128: X | AL128: X | AM128: X | AN128: X | AW128: 0 | AX128: 0 | AY128: 0 | AZ128: 0 | BA128: 0 | BB128: 0 | BC128: 0 | BD128: 0 | BE128: 0 | BF128: 0 | BG128: 0 | BH128: 0 | BI128: 0 | BJ128: 0
A129: 125 | B129: EMPREINTE CARBONE | C129: Déplacement de personnes | D129: Déplacements | E129: Privilégier les moyens de transport doux | F129: Renseigner sur les alternatives possibles : vélo en libre-service, partage de véhicules électriques,… | G129: 2 | R129: X | Z129: X | AA129: O | AB129: X | AC129: X | AD129: X | AE129: X | AF129: X | AG129: X | AH129: X | AI129: X | AJ129: X | AK129: X | AL129: X | AM129: X | AN129: X | AW129: 0 | AX129: 0 | AY129: 0 | AZ129: 0 | BA129: 0 | BB129: 0 | BC129: 0 | BD129: 0 | BE129: 0 | BF129: 0 | BG129: 0 | BH129: 0 | BI129: 0 | BJ129: 0
A130: 126 | B130: EMPREINTE CARBONE | C130: Déplacement de personnes | D130: Déplacements | E130: Privilégier les moyens de transport doux | F130: Proposer des trajets groupés en vélo pour certaines manifestations. | G130: 1 | R130: X | Z130: X | AA130: O | AB130: X | AC130: X | AD130: X | AE130: X | AF130: X | AG130: X | AH130: X | AI130: X | AJ130: X | AK130: X | AL130: X | AM130: X | AN130: X | AW130: 0 | AX130: 0 | AY130: 0 | AZ130: 0 | BA130: 0 | BB130: 0 | BC130: 0 | BD130: 0 | BE130: 0 | BF130: 0 | BG130: 0 | BH130: 0 | BI130: 0 | BJ130: 0
A131: 127 | B131: EMPREINTE CARBONE | C131: Déplacement de personnes | D131: Déplacements | E131: Privilégier les moyens de transport doux | F131: Mettre en place un parc à vélos, si possible surveillé. | G131: 1 | R131: X | Z131: X | AA131: O | AB131: X | AC131: X | AD131: X | AE131: X | AF131: X | AG131: X | AH131: X | AI131: X | AJ131: X | AK131: X | AL131: X | AM131: X | AN131: X | AW131: 0 | AX131: 0 | AY131: 0 | AZ131: 0 | BA131: 0 | BB131: 0 | BC131: 0 | BD131: 0 | BE131: 0 | BF131: 0 | BG131: 0 | BH131: 0 | BI131: 0 | BJ131: 0
A132: 128 | B132: EMPREINTE CARBONE | C132: Déplacement de personnes | D132: Déplacements | E132: Privilégier l'utilisation de transport en commun | F132: Négocier des réductions sur les transports locaux afin d'inciter les étudiants à les emprunter et diminuer les émissions de CO2 liées au transport. | G132: 1 | R132: X | Z132: X | AA132: O | AB132: X | AC132: X | AD132: X | AE132: X | AF132: X | AG132: X | AH132: X | AI132: X | AJ132: X | AK132: X | AL132: X | AM132: X | AN132: X | AW132: 0 | AX132: 0 | AY132: 0 | AZ132: 0 | BA132: 0 | BB132: 0 | BC132: 0 | BD132: 0 | BE132: 0 | BF132: 0 | BG132: 0 | BH132: 0 | BI132: 0 | BJ132: 0
A133: 129 | B133: EMPREINTE CARBONE | C133: Déplacement de personnes | D133: Déplacements | E133: Privilégier l'utilisation de transport en commun | F133: Indiquer les lignes de transport utiles lors de l'inscription des participants avec un comparatif prévisionnel du temps et des émissions de CO2. | G133: 1 | R133: X | Z133: X | AA133: O | AB133: X | AC133: X | AD133: X | AE133: X | AF133: X | AG133: X | AH133: X | AI133: X | AJ133: X | AK133: X | AL133: X | AM133: X | AN133: X | AW133: 0 | AX133: 0 | AY133: 0 | AZ133: 0 | BA133: 0 | BB133: 0 | BC133: 0 | BD133: 0 | BE133: 0 | BF133: 0 | BG133: 0 | BH133: 0 | BI133: 0 | BJ133: 0
A134: 130 | B134: EMPREINTE CARBONE | C134: Lieu | D134: Bâtiments/ Structures | E134: Choisir un hébergement proche du lieu | F134: Vérifier le réseau de transports pour être sûr de l'accessibilité entre le lieu de l'évènement et l'hébergement. | G134: 2 | R134: X | Z134: X | AA134: X | AB134: X | AC134: X | AD134: O | AE134: X | AF134: X | AG134: X | AH134: X | AI134: X | AJ134: X | AK134: X | AL134: X | AM134: X | AN134: X | AW134: 0 | AX134: 0 | AY134: 0 | AZ134: 0 | BA134: 0 | BB134: 0 | BC134: 0 | BD134: 0 | BE134: 0 | BF134: 0 | BG134: 0 | BH134: 0 | BI134: 0 | BJ134: 0
A135: 131 | B135: EMPREINTE CARBONE | C135: Lieu | D135: Bâtiments/ Structures | E135: Choisir un hébergement proche du lieu | F135: Se renseigner au préalable sur les distances avec des sites tels que Google map, Mappy... | G135: 1 | R135: X | Z135: X | AA135: X | AB135: X | AC135: X | AD135: O | AE135: X | AF135: X | AG135: X | AH135: X | AI135: X | AJ135: X | AK135: X | AL135: X | AM135: X | AN135: X | AW135: 0 | AX135: =IF(AND(N135="X",$G135>=AX$471),1,0) -> 0 | AY135: =IF(AND(O135="X",$G135>=AY$471),1,0) -> 0 | AZ135: =IF(AND(P135="X",$G135>=AZ$471),1,0) -> 0 | BA135: =IF(AND(Q135="X",$G135>=BA$471),1,0) -> 0 | BB135: =IF(AND(R135="X",$G135>=BB$471),1,0) -> 0 | BC135: =IF(AND(S135="X",$G135>=BC$471),1,0) -> 0 | BD135: =IF(AND(T135="X",$G135>=BD$471),1,0) -> 0 | BE135: =IF(AND(U135="X",$G135>=BE$471),1,0) -> 0 | BF135: =IF(AND(V135="X",$G135>=BF$471),1,0) -> 0 | BG135: =IF(AND(W135="X",$G135>=BG$471),1,0) -> 0 | BH135: =IF(AND(X135="X",$G135>=BH$471),1,0) -> 0 | BI135: =IF(AND(Y135="X",$G135>=BI$471),1,0) -> 0 | BJ135: 0
A136: 132 | B136: EMPREINTE CARBONE | C136: Lieu | D136: Bâtiments/ Structures | E136: Choisir un lieu adapté au nombre de participants | F136: Estimer au plus juste le nombre de participants et définir un lieu optimal pour éviter de multiplier les espaces inoccupés. | G136: 2 | Q136: X | R136: X | Z136: X | AA136: X | AB136: X | AC136: X | AD136: X | AE136: X | AF136: X | AG136: X | AH136: X | AI136: X | AJ136: X | AK136: X | AL136: X | AM136: X | AN136: X | AW136: 0 | AX136: 0 | AY136: 0 | AZ136: 0 | BA136: 0 | BB136: 0 | BC136: 0 | BD136: 0 | BE136: 0 | BF136: 0 | BG136: 0 | BH136: 0 | BI136: 0 | BJ136: 0
A137: 133 | B137: EMPREINTE CARBONE | C137: Lieu | D137: Bâtiments/ Structures | E137: Choisir un lieu possédant les installations adéquates | F137: Evaluer vos besoins précis en terme de structures et d'équipements (nombre de pièces, surface, cuisine, sanitaires,…). | G137: 2 | R137: X | Z137: X | AA137: X | AB137: X | AC137: X | AD137: X | AE137: X | AF137: X | AG137: X | AH137: X | AI137: X | AJ137: X | AK137: X | AL137: X | AM137: X | AN137: X | AW137: 0 | AX137: 0 | AY137: 0 | AZ137: 0 | BA137: 0 | BB137: 0 | BC137: 0 | BD137: 0 | BE137: 0 | BF137: 0 | BG137: 0 | BH137: 0 | BI137: 0 | BJ137: 0
A138: 134 | B138: EMPREINTE CARBONE | C138: Lieu | D138: Bâtiments/ Structures | E138: Eco-concevoir les lieux d'hébergement provisoires | F138: Faire appel à des entreprises/organismes labellisés ou spécialisés dans la conception de villages écolos (tentes, tipis,…). | G138: 1 | R138: X | Z138: X | AA138: X | AB138: X | AC138: X | AD138: X | AE138: X | AF138: X | AG138: X | AH138: X | AI138: X | AJ138: X | AK138: X | AL138: X | AM138: X | AN138: X | AW138: 0 | AX138: 0 | AY138: 0 | AZ138: 0 | BA138: 0 | BB138: 0 | BC138: 0 | BD138: 0 | BE138: 0 | BF138: 0 | BG138: 0 | BH138: 0 | BI138: 0 | BJ138: 0
A139: 135 | B139: EMPREINTE CARBONE | C139: Lieu | D139: Bâtiments/ Structures | E139: Eco-concevoir les structures provisoires | F139: Faire appel à des entreprises/organismes labellisés ou spécialisés dans les structures provisoires écologiques. | G139: 1 | M139: Par exemple, voir la marque Mobibois sur le site de l'Office National des Forêts pour les évènements en milieu naturel. http://www.onf.fr/produits_prestations/sommaire/besoins_reponses/loisirs_nature/espaces_naturels/reponses/20101118-161127-154846/@@index.html | R139: X | Z139: X | AA139: X | AB139: X | AC139: X | AD139: X | AE139: X | AF139: X | AG139: X | AH139: X | AI139: X | AJ139: X | AK139: X | AL139: X | AM139: X | AN139: X | AW139: 0 | AX139: 0 | AY139: 0 | AZ139: 0 | BA139: 0 | BB139: 0 | BC139: 0 | BD139: 0 | BE139: 0 | BF139: 0 | BG139: 0 | BH139: 0 | BI139: 0 | BJ139: 0
A140: 136 | B140: EMPREINTE CARBONE | C140: Lieu | D140: Bâtiments/ Structures | E140: Etudier la consommation énergétique du lieu d'hébergement | F140: Demander le DPE (diagnostic de performance énergétique) du lieu d'hébergement. L'affichage est obligatoire dans les hôtels et bâtiments accueillant du public. | G140: 2 | R140: X | Z140: X | AA140: X | AB140: X | AC140: X | AD140: X | AE140: X | AF140: X | AG140: X | AH140: X | AI140: X | AJ140: X | AK140: X | AL140: X | AM140: X | AN140: X | AW140: 0 | AX140: 0 | AY140: 0 | AZ140: 0 | BA140: 0 | BB140: 0 | BC140: 0 | BD140: 0 | BE140: 0 | BF140: 0 | BG140: 0 | BH140: 0 | BI140: 0 | BJ140: 0
A141: 137 | B141: EMPREINTE CARBONE | C141: Lieu | D141: Bâtiments/ Structures | E141: Gérer la fin de vie des lieux d'hébergement provisoires | F141: S'assurer de la reprise des structures par le prestataire. | G141: 1 | R141: X | Z141: X | AA141: X | AB141: X | AC141: X | AD141: O | AE141: X | AF141: X | AG141: X | AH141: X | AI141: X | AJ141: X | AK141: X | AL141: X | AM141: X | AN141: X | AW141: 0 | AX141: 0 | AY141: 0 | AZ141: 0 | BA141: 0 | BB141: 0 | BC141: 0 | BD141: 0 | BE141: 0 | BF141: 0 | BG141: 0 | BH141: 0 | BI141: 0 | BJ141: 0
A142: 138 | B142: EMPREINTE CARBONE | C142: Lieu | D142: Bâtiments/ Structures | E142: Gérer la fin de vie des lieux d'hébergement provisoires | F142: Récupérer le matériel qui peut être laissé sur place après un évènement par les participants (tentes lors de festivals de musique). | G142: 2 | R142: X | Z142: X | AA142: X | AB142: X | AC142: X | AD142: O | AE142: X | AF142: X | AG142: X | AH142: X | AI142: X | AJ142: X | AK142: X | AL142: X | AM142: X | AN142: X | AW142: 0 | AX142: 0 | AY142: 0 | AZ142: 0 | BA142: 0 | BB142: 0 | BC142: 0 | BD142: 0 | BE142: 0 | BF142: 0 | BG142: 0 | BH142: 0 | BI142: 0 | BJ142: 0
A143: 139 | B143: EMPREINTE CARBONE | C143: Lieu | D143: Bâtiments/ Structures | E143: Gérer la fin de vie des structures provisoires | F143: S'assurer de la reprise de la structure par le prestataire. | G143: 1 | R143: X | Z143: X | AA143: X | AB143: X | AC143: X | AD143: X | AE143: X | AF143: X | AG143: X | AH143: X | AI143: X | AJ143: X | AK143: X | AL143: X | AM143: X | AN143: X | AW143: 0 | AX143: 0 | AY143: 0 | AZ143: 0 | BA143: 0 | BB143: 0 | BC143: 0 | BD143: 0 | BE143: 0 | BF143: 0 | BG143: 0 | BH143: 0 | BI143: 0 | BJ143: 0
A144: 140 | B144: EMPREINTE CARBONE | C144: Lieu | D144: Bâtiments/ Structures | E144: Gérer la fin de vie des structures provisoires | F144: Prévoir un lieu de stockage pour réutiliser la/les structure(s) lors des prochains évènements. | G144: 1 | R144: X | Z144: X | AA144: X | AB144: X | AC144: X | AD144: X | AE144: X | AF144: X | AG144: X | AH144: X | AI144: X | AJ144: X | AK144: X | AL144: X | AM144: X | AN144: X | AW144: =IF(OR(BJ144=0,AU144="Non applicable"),0,1) -> 0 | AX144: 0 | AY144: 0 | AZ144: 0 | BA144: 0 | BB144: 0 | BC144: 0 | BD144: 0 | BE144: 0 | BF144: 0 | BG144: 0 | BH144: 0 | BI144: 0 | BJ144: =SUM(AX144:BI144) -> 0
A145: 141 | B145: EMPREINTE CARBONE | C145: Lieu | D145: Consommation d'énergie | E145: Choisir un lieu à faible consommation | F145: Privilégier un lieu HQE ou BBC qui permette une consommation énergétique moindre par rapport aux lieux classiques. | G145: 1 | R145: X | Z145: X | AA145: X | AB145: X | AC145: X | AD145: X | AE145: X | AF145: X | AG145: X | AH145: X | AI145: X | AJ145: X | AK145: X | AL145: X | AM145: X | AN145: X | AW145: 0 | AX145: 0 | AY145: 0 | AZ145: 0 | BA145: 0 | BB145: 0 | BC145: 0 | BD145: 0 | BE145: 0 | BF145: 0 | BG145: 0 | BH145: 0 | BI145: 0 | BJ145: 0
A146: 142 | B146: EMPREINTE CARBONE | C146: Lieu | D146: Consommation d'énergie | E146: Choisir un lieu à faible consommation | F146: Privilégier un lieu éclairé naturellement et orienté au Sud : avoir des grandes fenêtres, baies vitrées, velux... permet de laisser passer la lumière du jour et évite ainsi d'utiliser trop de lumière artificielle. | G146: 1 | R146: X | Z146: X | AA146: X | AB146: X | AC146: X | AD146: X | AE146: X | AF146: X | AG146: X | AH146: X | AI146: X | AJ146: X | AK146: X | AL146: X | AM146: X | AN146: X | AW146: 0 | AX146: 0 | AY146: 0 | AZ146: 0 | BA146: 0 | BB146: 0 | BC146: 0 | BD146: 0 | BE146: 0 | BF146: 0 | BG146: 0 | BH146: 0 | BI146: 0 | BJ146: 0
A147: 143 | B147: EMPREINTE CARBONE | C147: Lieu | D147: Consommation d'énergie | E147: Choisir un lieu à faible consommation | F147: Privilégier un lieu bien isolé : revêtu de matériaux isolants, des habitations mitoyennes… | G147: 1 | R147: X | Z147: X | AA147: X | AB147: X | AC147: X | AD147: X | AE147: X | AF147: X | AG147: X | AH147: X | AI147: X | AJ147: X | AK147: X | AL147: X | AM147: X | AN147: X | AW147: 0 | AX147: 0 | AY147: 0 | AZ147: 0 | BA147: 0 | BB147: 0 | BC147: 0 | BD147: 0 | BE147: 0 | BF147: 0 | BG147: 0 | BH147: 0 | BI147: 0 | BJ147: 0
A148: 144 | B148: EMPREINTE CARBONE | C148: Lieu | D148: Consommation d'énergie | E148: Contrôler sa consommation | F148: Mettre en place des compteurs de consommation pour mesurer votre consommation électrique en temps réel. | G148: 1 | R148: X | Z148: X | AA148: X | AB148: X | AC148: X | AD148: X | AE148: X | AF148: X | AG148: X | AH148: X | AI148: X | AJ148: X | AK148: X | AL148: X | AM148: X | AN148: X | AW148: 0 | AX148: 0 | AY148: 0 | AZ148: 0 | BA148: 0 | BB148: 0 | BC148: 0 | BD148: 0 | BE148: 0 | BF148: 0 | BG148: 0 | BH148: 0 | BI148: 0 | BJ148: 0
A149: 145 | B149: EMPREINTE CARBONE | C149: Lieu | D149: Consommation d'énergie | E149: Contrôler sa consommation | F149: Faire un bilan de votre consommation lors de chaque évènement et repérer les lieux qui vous permettent de moins consommer. | G149: 2 | R149: X | Z149: X | AA149: X | AB149: X | AC149: X | AD149: X | AE149: X | AF149: X | AG149: X | AH149: X | AI149: X | AJ149: X | AK149: X | AL149: X | AM149: X | AN149: X | AW149: 0 | AX149: 0 | AY149: 0 | AZ149: 0 | BA149: 0 | BB149: 0 | BC149: 0 | BD149: 0 | BE149: 0 | BF149: 0 | BG149: 0 | BH149: 0 | BI149: 0 | BJ149: 0
A150: 146 | B150: EMPREINTE CARBONE | C150: Lieu | D150: Consommation d'énergie | E150: Eviter ou contrôler l'utilisation de groupes électrogènes | F150: Privilégier les groupes électrogènes solaires plutôt que les groupes électrogènes à combustion. | G150: 1 | R150: X | Z150: X | AA150: X | AB150: X | AC150: X | AD150: X | AE150: X | AF150: X | AG150: X | AH150: X | AI150: X | AJ150: X | AK150: X | AL150: X | AM150: X | AN150: X | AW150: 0 | AX150: 0 | AY150: 0 | AZ150: 0 | BA150: 0 | BB150: 0 | BC150: 0 | BD150: 0 | BE150: 0 | BF150: 0 | BG150: 0 | BH150: 0 | BI150: 0 | BJ150: 0
A151: 147 | B151: EMPREINTE CARBONE | C151: Lieu | D151: Consommation d'énergie | E151: Eviter ou contrôler l'utilisation de groupes électrogènes | F151: Préférer utiliser le groupe électrogène comme source d'alimentation de remplacement, en cas de défaillance de votre source principale. | G151: 1 | R151: X | Z151: X | AA151: X | AB151: X | AC151: X | AD151: X | AE151: X | AF151: X | AG151: X | AH151: X | AI151: X | AJ151: X | AK151: X | AL151: X | AM151: X | AN151: X | AW151: 0 | AX151: 0 | AY151: 0 | AZ151: 0 | BA151: 0 | BB151: 0 | BC151: 0 | BD151: 0 | BE151: 0 | BF151: 0 | BG151: 0 | BH151: 0 | BI151: 0 | BJ151: 0
A152: 148 | B152: EMPREINTE CARBONE | C152: Lieu | D152: Consommation d'énergie | E152: Gérer de manière responsable l'éclairage | F152: Privilégier l'utilisation d'ampoules basse consommation. | G152: 1 | R152: X | Z152: X | AA152: X | AB152: X | AC152: X | AD152: X | AE152: X | AF152: X | AG152: X | AH152: X | AI152: X | AJ152: X | AK152: X | AL152: X | AM152: X | AN152: X | AW152: 0 | AX152: 0 | AY152: 0 | AZ152: 0 | BA152: 0 | BB152: 0 | BC152: 0 | BD152: 0 | BE152: 0 | BF152: 0 | BG152: 0 | BH152: 0 | BI152: 0 | BJ152: 0
A153: 149 | B153: EMPREINTE CARBONE | C153: Lieu | D153: Consommation d'énergie | E153: Gérer de manière responsable l'éclairage | F153: Eviter de faire fonctionner l'éclairage artificiel lorsqu'il peut être remplacé par un éclairage naturel. | G153: 3 | R153: X | Z153: X | AA153: X | AB153: X | AC153: X | AD153: X | AE153: X | AF153: X | AG153: X | AH153: X | AI153: X | AJ153: X | AK153: X | AL153: X | AM153: X | AN153: X | AW153: 1 | AX153: 0 | AY153: 0 | AZ153: 0 | BA153: 0 | BB153: 1 | BC153: 0 | BD153: 0 | BE153: 0 | BF153: 0 | BG153: 0 | BH153: 0 | BI153: 0 | BJ153: 1
A154: 150 | B154: EMPREINTE CARBONE | C154: Lieu | D154: Consommation d'énergie | E154: Gérer de manière responsable l'éclairage | F154: Avoir de bons réflexes : une pièce inoccupée n'a pas besoin d'être éclairée. | G154: 2 | R154: X | Z154: X | AA154: X | AB154: X | AC154: X | AD154: X | AE154: X | AF154: X | AG154: X | AH154: X | AI154: X | AJ154: X | AK154: X | AL154: X | AM154: X | AN154: X | AW154: 0 | AX154: 0 | AY154: 0 | AZ154: 0 | BA154: 0 | BB154: 0 | BC154: 0 | BD154: 0 | BE154: 0 | BF154: 0 | BG154: 0 | BH154: 0 | BI154: 0 | BJ154: 0
A155: 151 | B155: EMPREINTE CARBONE | C155: Lieu | D155: Consommation d'énergie | E155: Minimiser l'utilisation de la climatisation | F155: Prévoir de l'eau et des boissons fraîches pour minimiser la sensation de chaleur. | G155: 1 | R155: X | Z155: X | AA155: X | AB155: X | AC155: X | AD155: X | AE155: X | AF155: X | AG155: X | AH155: X | AI155: X | AJ155: X | AK155: X | AL155: X | AM155: X | AN155: X | AW155: 0 | AX155: 0 | AY155: 0 | AZ155: 0 | BA155: 0 | BB155: 0 | BC155: 0 | BD155: 0 | BE155: 0 | BF155: 0 | BG155: 0 | BH155: 0 | BI155: 0 | BJ155: 0
A156: 152 | B156: EMPREINTE CARBONE | C156: Lieu | D156: Consommation d'énergie | E156: Minimiser l'utilisation de la climatisation | F156: Fermer les volets des fenêtres orientées vers le soleil lorsqu'il tape trop fort, cela vous évitera de vous trouvez dans une fournaise. | G156: 1 | R156: X | Z156: X | AA156: X | AB156: X | AC156: X | AD156: X | AE156: X | AF156: X | AG156: X | AH156: X | AI156: X | AJ156: X | AK156: X | AL156: X | AM156: X | AN156: X | AW156: 0 | AX156: 0 | AY156: 0 | AZ156: 0 | BA156: 0 | BB156: 0 | BC156: 0 | BD156: 0 | BE156: 0 | BF156: 0 | BG156: 0 | BH156: 0 | BI156: 0 | BJ156: 0
A157: 153 | B157: EMPREINTE CARBONE | C157: Lieu | D157: Consommation d'énergie | E157: Minimiser l'utilisation de la climatisation | F157: Aérer le lieu en créant des courants d'air. | G157: 1 | R157: X | V157: X | Z157: X | AA157: X | AB157: X | AC157: X | AD157: X | AE157: X | AF157: X | AG157: X | AH157: X | AI157: X | AJ157: X | AK157: X | AL157: X | AM157: X | AN157: X | AW157: 0 | AX157: 0 | AY157: 0 | AZ157: 0 | BA157: 0 | BB157: 0 | BC157: 0 | BD157: 0 | BE157: 0 | BF157: 0 | BG157: 0 | BH157: 0 | BI157: 0 | BJ157: 0
A158: 154 | B158: EMPREINTE CARBONE | C158: Lieu | D158: Consommation d'énergie | E158: Minimiser l'utilisation du chauffage | F158: Utiliser un thermostat afin de gérer la température du lieu et de pouvoir utiliser le chauffage de manière raisonnée. | G158: 1 | R158: X | Z158: X | AA158: X | AB158: X | AC158: X | AD158: X | AE158: X | AF158: X | AG158: X | AH158: X | AI158: X | AJ158: X | AK158: X | AL158: X | AM158: X | AN158: X | AW158: 0 | AX158: 0 | AY158: 0 | AZ158: 0 | BA158: 0 | BB158: 0 | BC158: 0 | BD158: 0 | BE158: 0 | BF158: 0 | BG158: 0 | BH158: 0 | BI158: 0 | BJ158: 0
A159: 155 | B159: EMPREINTE CARBONE | C159: Lieu | D159: Consommation d'énergie | E159: Minimiser l'utilisation du chauffage | F159: Etre cohérents. Fermer les fenêtres quand vous allumez le chauffage et éteindre le chauffage quand vous souhaitez aérer. | G159: 3 | R159: X | Z159: X | AA159: X | AB159: X | AC159: X | AD159: X | AE159: X | AF159: X | AG159: X | AH159: X | AI159: X | AJ159: X | AK159: X | AL159: X | AM159: X | AN159: X | AW159: 1 | AX159: 0 | AY159: 0 | AZ159: 0 | BA159: 0 | BB159: 1 | BC159: 0 | BD159: 0 | BE159: 0 | BF159: 0 | BG159: 0 | BH159: 0 | BI159: 0 | BJ159: 1
A160: 156 | B160: EMPREINTE CARBONE | C160: Lieu | D160: Consommation d'énergie | E160: Minimiser l'utilisation du chauffage | F160: Calfeutrer les aérations afin que la chaleur ne s'échappe pas : au niveau des rebords de fenêtres et des portes notamment. | G160: 1 | R160: X | Z160: X | AA160: X | AB160: X | AC160: X | AD160: X | AE160: X | AF160: X | AG160: X | AH160: X | AI160: X | AJ160: X | AK160: X | AL160: X | AM160: X | AN160: X | AW160: 0 | AX160: 0 | AY160: 0 | AZ160: 0 | BA160: 0 | BB160: 0 | BC160: 0 | BD160: 0 | BE160: 0 | BF160: 0 | BG160: 0 | BH160: 0 | BI160: 0 | BJ160: 0
A161: 157 | B161: EMPREINTE CARBONE | C161: Lieu | D161: Consommation d'énergie | E161: Minimiser l'utilisation du chauffage | F161: Bien se couvrir : avant de mettre le chauffage, mettre un pull plutôt que rester en t-shirt à l'intérieur. | G161: 1 | R161: X | Z161: X | AA161: X | AB161: X | AC161: X | AD161: X | AE161: X | AF161: X | AG161: X | AH161: X | AI161: X | AJ161: X | AK161: X | AL161: X | AM161: X | AN161: X | AW161: 0 | AX161: 0 | AY161: 0 | AZ161: 0 | BA161: 0 | BB161: 0 | BC161: 0 | BD161: 0 | BE161: 0 | BF161: 0 | BG161: 0 | BH161: 0 | BI161: 0 | BJ161: 0
A162: 158 | B162: EMPREINTE CARBONE | C162: Lieu | D162: Consommation d'énergie | E162: Optimiser la consommation des structures montées | F162: Etudier la consommation énergétique des structures montées et mettre en place des actions pour les réduire. | G162: 1 | R162: X | Z162: X | AA162: X | AB162: X | AC162: X | AD162: X | AE162: X | AF162: X | AG162: X | AH162: X | AI162: X | AJ162: X | AK162: X | AL162: X | AM162: X | AN162: X | AW162: 0 | AX162: 0 | AY162: 0 | AZ162: 0 | BA162: 0 | BB162: 0 | BC162: 0 | BD162: 0 | BE162: 0 | BF162: 0 | BG162: 0 | BH162: 0 | BI162: 0 | BJ162: 0
A163: 159 | B163: EMPREINTE CARBONE | C163: Lieu | D163: Consommation d'énergie | E163: Privilégier un approvisionnement issu d'énergies renouvellables | F163: Proposer à votre école/université de poser des panneaux solaires. | G163: 1 | R163: X | Z163: X | AA163: X | AB163: X | AC163: X | AD163: X | AE163: X | AF163: X | AG163: X | AH163: X | AI163: X | AJ163: X | AK163: X | AL163: X | AM163: X | AN163: X | AW163: 0 | AX163: 0 | AY163: 0 | AZ163: 0 | BA163: 0 | BB163: 0 | BC163: 0 | BD163: 0 | BE163: 0 | BF163: 0 | BG163: 0 | BH163: 0 | BI163: 0 | BJ163: 0
A164: 160 | B164: EMPREINTE CARBONE | C164: Lieu | D164: Consommation d'énergie | E164: Privilégier un approvisionnement issu d'énergies renouvellables | F164: Proposer à votre école/université de poser des mini éoliennes. | G164: 1 | R164: X | Z164: X | AA164: X | AB164: X | AC164: X | AD164: X | AE164: X | AF164: X | AG164: X | AH164: X | AI164: X | AJ164: X | AK164: X | AL164: X | AM164: X | AN164: X | AW164: 0 | AX164: 0 | AY164: 0 | AZ164: 0 | BA164: 0 | BB164: 0 | BC164: 0 | BD164: 0 | BE164: 0 | BF164: 0 | BG164: 0 | BH164: 0 | BI164: 0 | BJ164: 0
A165: 161 | B165: EMPREINTE CARBONE | C165: Lieu | D165: Consommation d'énergie | E165: Privilégier un approvisionnement issu d'énergies renouvellables | F165: Privilégier un lieu qui s'alimente avec des énergies renouvelables. | G165: 1 | R165: X | Z165: X | AA165: X | AB165: X | AC165: X | AD165: X | AE165: X | AF165: X | AG165: X | AH165: X | AI165: X | AJ165: X | AK165: X | AL165: X | AM165: X | AN165: X | AW165: 0 | AX165: 0 | AY165: 0 | AZ165: 0 | BA165: 0 | BB165: 0 | BC165: 0 | BD165: 0 | BE165: 0 | BF165: 0 | BG165: 0 | BH165: 0 | BI165: 0 | BJ165: 0
A166: 162 | B166: EMPREINTE CARBONE | C166: Matériels | D166: Déchets | E166: Privilégier des consommables non jetables | F166: Nettoyer à l'aide de chiffons, éponges, ou serpillières plutôt qu'avec des essuie-tout ou des lingettes qui multiplient vos déchets. Vous pourrez ainsi les laver et les réutiliser. Il existe des serpillères (…) faites en coton recyclé. | G166: 3 | R166: X | Z166: X | AA166: X | AB166: X | AC166: X | AD166: X | AE166: X | AF166: X | AG166: X | AH166: X | AI166: X | AJ166: X | AK166: X | AL166: X | AM166: X | AN166: X | AW166: 1 | AX166: 0 | AY166: 0 | AZ166: 0 | BA166: 0 | BB166: 1 | BC166: 0 | BD166: 0 | BE166: 0 | BF166: 0 | BG166: 0 | BH166: 0 | BI166: 0 | BJ166: 1
A167: 163 | B167: EMPREINTE CARBONE | C167: Matériels | D167: Déchets | E167: Privilégier des consommables non jetables | F167: Choisir des marques respectueuses de l'environnement. | G167: 2 | M167: Ecover, L'arbre vert, etc. | R167: X | Z167: X | AA167: X | AB167: X | AC167: X | AD167: X | AE167: X | AF167: X | AG167: X | AH167: X | AI167: X | AJ167: X | AK167: X | AL167: X | AM167: X | AN167: X | AW167: 0 | AX167: 0 | AY167: 0 | AZ167: 0 | BA167: 0 | BB167: 0 | BC167: 0 | BD167: 0 | BE167: 0 | BF167: 0 | BG167: 0 | BH167: 0 | BI167: 0 | BJ167: 0
A168: 164 | B168: EMPREINTE CARBONE | C168: Matériels | D168: Déchets | E168: trier les déchets de consommables | F168: Autant que possible, utiliser des consommables qui se recyclent. | G168: 2 | R168: X | Z168: X | AA168: X | AB168: X | AC168: X | AD168: X | AE168: X | AF168: X | AG168: X | AH168: X | AI168: X | AJ168: X | AK168: X | AL168: X | AM168: X | AN168: X | AW168: 0 | AX168: 0 | AY168: 0 | AZ168: 0 | BA168: 0 | BB168: 0 | BC168: 0 | BD168: 0 | BE168: 0 | BF168: 0 | BG168: 0 | BH168: 0 | BI168: 0 | BJ168: 0
A169: 165 | B169: EMPREINTE CARBONE | C169: Matériels | D169: Déchets | E169: Utiliser des stands démontables ou réutilisables | F169: Penser votre stand pour le construire de manière utile : utiliser des matériaux solides, la structure doit pouvoir être démontée, remontée et stockée facilement. | G169: 1 | R169: X | Z169: X | AA169: X | AB169: X | AC169: X | AD169: X | AE169: X | AF169: X | AG169: X | AH169: X | AI169: X | AJ169: X | AK169: X | AL169: X | AM169: X | AN169: X | AW169: 0 | AX169: 0 | AY169: 0 | AZ169: 0 | BA169: 0 | BB169: 0 | BC169: 0 | BD169: 0 | BE169: 0 | BF169: 0 | BG169: 0 | BH169: 0 | BI169: 0 | BJ169: 0
A170: 166 | B170: EMPREINTE CARBONE | C170: Matériels | D170: Lieu de vie/décors | E170: Eco-concevoir les stands et décors | F170: Utiliser des matériaux recyclés et/ou recyclables (papier et carton recyclé, coton, bois, …). | G170: 1 | R170: X | Z170: X | AA170: X | AB170: X | AC170: X | AD170: X | AE170: X | AF170: X | AG170: X | AH170: X | AI170: X | AJ170: X | AK170: X | AL170: X | AM170: X | AN170: X | AW170: 0 | AX170: 0 | AY170: 0 | AZ170: 0 | BA170: 0 | BB170: 0 | BC170: 0 | BD170: 0 | BE170: 0 | BF170: 0 | BG170: 0 | BH170: 0 | BI170: 0 | BJ170: 0
A171: 167 | B171: EMPREINTE CARBONE | C171: Matériels | D171: Lieu de vie/décors | E171: Eco-concevoir les stands et décors | F171: Se fournir en objet de déco éco-conçus (guirlandes en papier recyclé, ballons biodégradables…). | G171: 1 | R171: X | Z171: X | AA171: X | AB171: X | AC171: X | AD171: X | AE171: X | AF171: X | AG171: X | AH171: X | AI171: X | AJ171: X | AK171: X | AL171: X | AM171: X | AN171: X | AW171: 0 | AX171: 0 | AY171: 0 | AZ171: 0 | BA171: 0 | BB171: 0 | BC171: 0 | BD171: 0 | BE171: 0 | BF171: 0 | BG171: 0 | BH171: 0 | BI171: 0 | BJ171: 0
A172: 168 | B172: EMPREINTE CARBONE | C172: Matériels | D172: Lieu de vie/décors | E172: Faire de la récupération | F172: Récupérer du matériel déjà utilisé. En regardant autour de soi, dans son appart, à l'école ou dans la rue, on se rend compte que beaucoup d'objets/matériaux peuvent resservir au lieu d'être jetés ! | G172: 1 | R172: X | Z172: X | AA172: X | AB172: X | AC172: X | AD172: X | AE172: X | AF172: X | AG172: X | AH172: X | AI172: X | AJ172: X | AK172: X | AL172: X | AM172: X | AN172: X | AW172: 0 | AX172: 0 | AY172: 0 | AZ172: 0 | BA172: 0 | BB172: 0 | BC172: 0 | BD172: 0 | BE172: 0 | BF172: 0 | BG172: 0 | BH172: 0 | BI172: 0 | BJ172: 0
A173: 169 | B173: EMPREINTE CARBONE | C173: Matériels | D173: Lieu de vie/décors | E173: Faire de la récupération | F173: Démarcher les invendus/chutes auprès des entreprises locales. Privilégier les magasins de bricolage tels que Leroy Merlin et Castorama qui utilisent des matériaux pour leurs démonstrations et animations en magasins puis les jettent ! Ou bien parfois certains produits sont ouverts par mégarde et ne peuvent pas être vendus. Evitons-leur de faire du gâchis et servons-nous de ces produits ! Pour cela, réaliser un partenariat avec une entreprise en rédigeant ensemble les clauses du contrat afin que le don soit formalisé. | G173: 1 | N173: X | R173: X | T173: X | Z173: X | AA173: X | AB173: X | AC173: X | AD173: X | AE173: X | AF173: X | AG173: X | AH173: X | AI173: X | AJ173: X | AK173: X | AL173: X | AM173: X | AN173: X | AW173: 0 | AX173: 0 | AY173: 0 | AZ173: 0 | BA173: 0 | BB173: 0 | BC173: 0 | BD173: 0 | BE173: 0 | BF173: 0 | BG173: 0 | BH173: 0 | BI173: 0 | BJ173: 0
A174: 170 | B174: EMPREINTE CARBONE | C174: Matériels | D174: Lieu de vie/décors | E174: Privilégier l'utilisation de stand et décors existants | F174: Nouer des partenariats avec des écoles, collectivités et associations locales pour utiliser leurs locaux, leur matériel,.... | G174: 1 | N174: X | R174: X | Z174: X | AA174: X | AB174: X | AC174: X | AD174: X | AE174: X | AF174: X | AG174: X | AH174: X | AI174: X | AJ174: X | AK174: X | AL174: X | AM174: X | AN174: X | AW174: 0 | AX174: 0 | AY174: 0 | AZ174: 0 | BA174: 0 | BB174: 0 | BC174: 0 | BD174: 0 | BE174: 0 | BF174: 0 | BG174: 0 | BH174: 0 | BI174: 0 | BJ174: 0
A175: 171 | B175: EMPREINTE CARBONE | C175: Matériels | D175: Lieu de vie/décors | E175: Privilégier l'utilisation de stand et décors existants | F175: Etudier le lieu : il a peut-être sur place des plantes, panneaux, matériaux naturels que vous pourrez utiliser pour fabriquer les stands/décors. | G175: 2 | R175: X | Z175: X | AA175: X | AB175: X | AC175: X | AD175: X | AE175: X | AF175: X | AG175: X | AH175: X | AI175: X | AJ175: X | AK175: X | AL175: X | AM175: X | AN175: X | AW175: 0 | AX175: 0 | AY175: 0 | AZ175: 0 | BA175: 0 | BB175: 0 | BC175: 0 | BD175: 0 | BE175: 0 | BF175: 0 | BG175: 0 | BH175: 0 | BI175: 0 | BJ175: 0
A176: 172 | B176: EMPREINTE CARBONE | C176: Matériels | D176: Produits / équipements | E176: Estimer au plus juste les besoins en matériel technique | F176: Se reporter aux bilans de vos évènements précédents ou d'autres associations. | G176: 2 | R176: X | U176: X | Z176: X | AA176: X | AB176: X | AC176: X | AD176: X | AE176: X | AF176: X | AG176: X | AH176: X | AI176: X | AJ176: X | AK176: X | AL176: X | AM176: X | AN176: X | AW176: 0 | AX176: 0 | AY176: 0 | AZ176: 0 | BA176: 0 | BB176: 0 | BC176: 0 | BD176: 0 | BE176: 0 | BF176: 0 | BG176: 0 | BH176: 0 | BI176: 0 | BJ176: 0
A177: 173 | B177: EMPREINTE CARBONE | C177: Matériels | D177: Produits / équipements | E177: Estimer au plus juste les besoins en matériel technique | F177: Demander conseil aux professionnels qui vous entourent (technicien de l'école,…). | G177: 1 | R177: X | Z177: X | AA177: X | AB177: X | AC177: X | AD177: X | AE177: X | AF177: X | AG177: X | AH177: X | AI177: X | AJ177: X | AK177: X | AL177: X | AM177: X | AN177: X | AW177: 0 | AX177: 0 | AY177: 0 | AZ177: 0 | BA177: 0 | BB177: 0 | BC177: 0 | BD177: 0 | BE177: 0 | BF177: 0 | BG177: 0 | BH177: 0 | BI177: 0 | BJ177: 0
A178: 174 | B178: EMPREINTE CARBONE | C178: Matériels | D178: Produits / équipements | E178: Estimer au plus juste les besoins en matériel technique | F178: Définir avec soin chaque phase de l'évènement et le matériel nécessaire. | G178: 1 | R178: X | Z178: X | AA178: X | AB178: X | AC178: X | AD178: X | AE178: X | AF178: X | AG178: X | AH178: X | AI178: X | AJ178: X | AK178: X | AL178: X | AM178: X | AN178: X | AW178: 0 | AX178: 0 | AY178: 0 | AZ178: 0 | BA178: 0 | BB178: 0 | BC178: 0 | BD178: 0 | BE178: 0 | BF178: 0 | BG178: 0 | BH178: 0 | BI178: 0 | BJ178: 0
A179: 175 | B179: EMPREINTE CARBONE | C179: Matériels | D179: Produits / équipements | E179: Privilégier du matériel économe en énergie | F179: Utiliser autant que possible du matériel électronique labellisé économe en énergie. | G179: 1 | R179: X | Z179: X | AA179: X | AB179: X | AC179: X | AD179: X | AE179: X | AF179: X | AG179: X | AH179: X | AI179: X | AJ179: X | AK179: X | AL179: X | AM179: X | AN179: X | AW179: 0 | AX179: 0 | AY179: 0 | AZ179: 0 | BA179: 0 | BB179: 0 | BC179: 0 | BD179: 0 | BE179: 0 | BF179: 0 | BG179: 0 | BH179: 0 | BI179: 0 | BJ179: 0
A180: 176 | B180: EMPREINTE CARBONE | C180: Matériels | D180: Produits / équipements | E180: Privilégier du matériel économe en énergie | F180: Privilégier les lampes, guirlandes, lumières de boule… à LED. | G180: 1 | R180: X | Z180: X | AA180: X | AB180: X | AC180: X | AD180: X | AE180: X | AF180: X | AG180: X | AH180: X | AI180: X | AJ180: X | AK180: X | AL180: X | AM180: X | AN180: X | AW180: 0 | AX180: 0 | AY180: 0 | AZ180: 0 | BA180: 0 | BB180: 0 | BC180: 0 | BD180: 0 | BE180: 0 | BF180: 0 | BG180: 0 | BH180: 0 | BI180: 0 | BJ180: 0
A181: 177 | B181: EMPREINTE CARBONE | C181: Matériels | D181: Produits / équipements | E181: Privilégier du matériel économe en énergie | F181: Uitliser une piste de danse durable : elle permet de récupérer l'énergie générée par les mouvements des danseurs. | G181: 1 | R181: X | Z181: X | AA181: X | AB181: O | AC181: X | AD181: X | AE181: X | AF181: X | AG181: X | AH181: X | AI181: X | AJ181: X | AK181: X | AL181: X | AM181: X | AN181: X | AW181: 0 | AX181: 0 | AY181: 0 | AZ181: 0 | BA181: 0 | BB181: 0 | BC181: 0 | BD181: 0 | BE181: 0 | BF181: 0 | BG181: 0 | BH181: 0 | BI181: 0 | BJ181: 0
A182: 178 | B182: EMPREINTE CARBONE | C182: Matériels | D182: Produits / équipements | E182: Privilégier le matériel existant et déjà présent sur le lieu | F182: Voir si le lieu de votre évènement ne possède pas déjà le matériel dont vous avez besoin. | G182: 3 | R182: X | Z182: X | AA182: X | AB182: X | AC182: X | AD182: X | AE182: X | AF182: X | AG182: X | AH182: X | AI182: X | AJ182: X | AK182: X | AL182: X | AM182: X | AN182: X | AW182: 1 | AX182: 0 | AY182: 0 | AZ182: 0 | BA182: 0 | BB182: 1 | BC182: 0 | BD182: 0 | BE182: 0 | BF182: 0 | BG182: 0 | BH182: 0 | BI182: 0 | BJ182: 1
A183: 179 | B183: EMPREINTE CARBONE | C183: Matériels | D183: Produits / équipements | E183: Privilégier le matériel existant et déjà présent sur le lieu | F183: Mutualiser le matériel utilisé d'une année à l'autre (pour évènement annuel), ou géographiquement faire une base de données d'une année sur l'autre avec les autres associations ou autres écoles. | G183: 1 | R183: X | Z183: X | AA183: X | AB183: X | AC183: X | AD183: X | AE183: X | AF183: X | AG183: X | AH183: X | AI183: X | AJ183: X | AK183: X | AL183: X | AM183: X | AN183: X | AW183: 0 | AX183: 0 | AY183: 0 | AZ183: 0 | BA183: 0 | BB183: 0 | BC183: 0 | BD183: 0 | BE183: 0 | BF183: 0 | BG183: 0 | BH183: 0 | BI183: 0 | BJ183: 0
A184: 180 | B184: EMPREINTE CARBONE | C184: Matériels | D184: Produits / équipements | E184: Utiliser le matériel de manière adéquat | F184: Régler le volume sonore et l'éclairage en fonction des besoins en temps réel. | G184: 2 | M184: Par exemple, animer un repas ne nécessite pas le même volume sonore que faire danser les participants. | R184: X | Y184: X | Z184: X | AA184: X | AB184: X | AC184: X | AD184: X | AE184: X | AF184: X | AG184: X | AH184: X | AI184: X | AJ184: X | AK184: X | AL184: X | AM184: X | AN184: X | AW184: 0 | AX184: 0 | AY184: 0 | AZ184: 0 | BA184: 0 | BB184: 0 | BC184: 0 | BD184: 0 | BE184: 0 | BF184: 0 | BG184: 0 | BH184: 0 | BI184: 0 | BJ184: 0
A185: 181 | B185: EMPREINTE CARBONE | C185: Matériels | D185: Produits / équipements | E185: Utiliser le matériel de manière adéquat | F185: Penser a mettre en veille les appareils lorsqu'ils ne sont pas actifs et à les éteindre lorsque vous n'en avez plus besoin. | G185: 2 | R185: X | Z185: X | AA185: X | AB185: X | AC185: X | AD185: X | AE185: X | AF185: X | AG185: X | AH185: X | AI185: X | AJ185: X | AK185: X | AL185: X | AM185: X | AN185: X | AW185: 0 | AX185: 0 | AY185: 0 | AZ185: 0 | BA185: 0 | BB185: 0 | BC185: 0 | BD185: 0 | BE185: 0 | BF185: 0 | BG185: 0 | BH185: 0 | BI185: 0 | BJ185: 0
A186: 182 | B186: EMPREINTE CARBONE | C186: Matériels | D186: Transports | E186: Bien organiser ses déplacements | F186: Si vous avez un véhicule particulier ou un camion, prévoir un lieu de stationnement. | G186: 2 | R186: X | Z186: X | AA186: X | AB186: X | AC186: X | AD186: X | AE186: X | AF186: X | AG186: X | AH186: X | AI186: X | AJ186: X | AK186: X | AL186: X | AM186: X | AN186: X | AW186: 0 | AX186: 0 | AY186: 0 | AZ186: 0 | BA186: 0 | BB186: 0 | BC186: 0 | BD186: 0 | BE186: 0 | BF186: 0 | BG186: 0 | BH186: 0 | BI186: 0 | BJ186: 0
A187: 183 | B187: EMPREINTE CARBONE | C187: Matériels | D187: Transports | E187: Bien organiser ses déplacements | F187: Planifier et optimiser ses déplacements pour éviter les transports à vide. | G187: 1 | R187: X | Z187: X | AA187: X | AB187: X | AC187: X | AD187: X | AE187: X | AF187: X | AG187: X | AH187: X | AI187: X | AJ187: X | AK187: X | AL187: X | AM187: X | AN187: X | AW187: 0 | AX187: 0 | AY187: 0 | AZ187: 0 | BA187: 0 | BB187: 0 | BC187: 0 | BD187: 0 | BE187: 0 | BF187: 0 | BG187: 0 | BH187: 0 | BI187: 0 | BJ187: 0
A188: 184 | B188: EMPREINTE CARBONE | C188: Restauration | D188: Alimentation | E188: Privilégier des aliments de saison | F188: Faire/trouver un calendrier de récolte des fruits et légumes. | G188: 1 | O188: X | R188: X | Z188: X | AA188: X | AB188: X | AC188: X | AD188: X | AE188: X | AF188: X | AG188: X | AH188: X | AI188: X | AJ188: X | AK188: X | AL188: X | AM188: X | AN188: O | AW188: 0 | AX188: 0 | AY188: 0 | AZ188: 0 | BA188: 0 | BB188: 0 | BC188: 0 | BD188: 0 | BE188: 0 | BF188: 0 | BG188: 0 | BH188: 0 | BI188: 0 | BJ188: 0
A189: 185 | B189: EMPREINTE CARBONE | C189: Restauration | D189: Alimentation | E189: Privilégier une alimentation à faible empreinte carbone | F189: Lire l'affichage environnemental sur les produits de grande consommation. | G189: 2 | R189: X | Z189: X | AA189: X | AB189: X | AC189: X | AD189: X | AE189: X | AF189: X | AG189: X | AH189: X | AI189: X | AJ189: X | AK189: X | AL189: X | AM189: X | AN189: O | AW189: 0 | AX189: 0 | AY189: 0 | AZ189: 0 | BA189: 0 | BB189: 0 | BC189: 0 | BD189: 0 | BE189: 0 | BF189: 0 | BG189: 0 | BH189: 0 | BI189: 0 | BJ189: 0
A190: 186 | B190: EMPREINTE CARBONE | C190: Restauration | D190: Alimentation | E190: Privilégier une alimentation bio | F190: Se renseigner sur les labels bio existants. | G190: 1 | R190: X | Z190: X | AA190: X | AB190: X | AC190: X | AD190: X | AE190: X | AF190: X | AG190: X | AH190: X | AI190: X | AJ190: X | AK190: X | AL190: X | AM190: X | AN190: O | AW190: 0 | AX190: 0 | AY190: 0 | AZ190: 0 | BA190: 0 | BB190: 0 | BC190: 0 | BD190: 0 | BE190: 0 | BF190: 0 | BG190: 0 | BH190: 0 | BI190: 0 | BJ190: 0
A191: 187 | B191: EMPREINTE CARBONE | C191: Restauration | D191: Alimentation | E191: Privilégier une alimentation bio | F191: Faire ou trouver un annuaire des commerçants bio de la région. | G191: 1 | N191: X | O191: X | R191: X | Z191: X | AA191: X | AB191: X | AC191: X | AD191: X | AE191: X | AF191: X | AG191: X | AH191: X | AI191: X | AJ191: X | AK191: X | AL191: X | AM191: X | AN191: O | AW191: 0 | AX191: 0 | AY191: 0 | AZ191: 0 | BA191: 0 | BB191: 0 | BC191: 0 | BD191: 0 | BE191: 0 | BF191: 0 | BG191: 0 | BH191: 0 | BI191: 0 | BJ191: 0
A192: 188 | B192: EMPREINTE CARBONE | C192: Restauration | D192: Alimentation | E192: Privilégier une alimentation décarnée | F192: Proposer des menus végétariens : réduire sa consommation de viande est une action dans la lutte contre le changement climatique ! | G192: 1 | M192: L'élevage bovin est un des premiers facteurs d'émissions de méthane, gaz qui contribue fortement à l'effet de serre et au réchauffement climatique. L'industrie bovine et les autres viandes ont un impact sur la biodiversité. | O192: x | R192: X | T192: x | Z192: X | AA192: X | AB192: X | AC192: X | AD192: X | AE192: X | AF192: X | AG192: X | AH192: X | AI192: X | AJ192: X | AK192: X | AL192: X | AM192: X | AN192: O | AW192: 0 | AX192: 0 | AY192: 0 | AZ192: 0 | BA192: 0 | BB192: 0 | BC192: 0 | BD192: 0 | BE192: 0 | BF192: 0 | BG192: 0 | BH192: 0 | BI192: 0 | BJ192: 0
A193: 189 | B193: EMPREINTE CARBONE | C193: Restauration | D193: Alimentation | E193: Privilégier une alimentation décarnée | F193: Faire une sensibilisation sur la traite des animaux en élevage et sur l'abattage, ainsi que sur les effets sur l'environnement de la consommation de viande (consommation d'énergie, etc.). | G193: 1 | R193: X | Z193: X | AA193: X | AB193: X | AC193: X | AD193: X | AE193: X | AF193: X | AG193: X | AH193: X | AI193: X | AJ193: X | AK193: X | AL193: X | AM193: X | AN193: O | AW193: 0 | AX193: 0 | AY193: 0 | AZ193: 0 | BA193: 0 | BB193: 0 | BC193: 0 | BD193: 0 | BE193: 0 | BF193: 0 | BG193: 0 | BH193: 0 | BI193: 0 | BJ193: 0
A194: 190 | B194: EMPREINTE CARBONE | C194: Restauration | D194: Alimentation | E194: Privilégier une alimentation décarnée | F194: Faire connaître les aliments qui peuvent remplacer la viande (quinoa...). | G194: 1 | R194: X | Z194: X | AA194: X | AB194: X | AC194: X | AD194: X | AE194: X | AF194: X | AG194: X | AH194: X | AI194: X | AJ194: X | AK194: X | AL194: X | AM194: X | AN194: O | AW194: 0 | AX194: 0 | AY194: 0 | AZ194: 0 | BA194: 0 | BB194: 0 | BC194: 0 | BD194: 0 | BE194: 0 | BF194: 0 | BG194: 0 | BH194: 0 | BI194: 0 | BJ194: 0
A195: 191 | B195: EMPREINTE CARBONE | C195: Restauration | D195: Alimentation | E195: Privilégier une alimentation locale | F195: Travailler avec des producteurs et/ou des paysans locaux. | G195: 1 | N195: x | R195: X | Z195: X | AA195: X | AB195: X | AC195: X | AD195: X | AE195: X | AF195: X | AG195: X | AH195: X | AI195: X | AJ195: X | AK195: X | AL195: X | AM195: X | AN195: O | AW195: 0 | AX195: 0 | AY195: 0 | AZ195: 0 | BA195: 0 | BB195: 0 | BC195: 0 | BD195: 0 | BE195: 0 | BF195: 0 | BG195: 0 | BH195: 0 | BI195: 0 | BJ195: 0
A196: 192 | B196: EMPREINTE CARBONE | C196: Restauration | D196: Alimentation | E196: Privilégier une alimentation locale | F196: Se renseigner auprès de l'office du tourisme pour connaître les spécialités locales. | G196: 1 | N196: x | R196: X | Z196: X | AA196: X | AB196: X | AC196: X | AD196: X | AE196: X | AF196: X | AG196: X | AH196: X | AI196: X | AJ196: X | AK196: X | AL196: X | AM196: X | AN196: O | AW196: 0 | AX196: 0 | AY196: 0 | AZ196: 0 | BA196: 0 | BB196: 0 | BC196: 0 | BD196: 0 | BE196: 0 | BF196: 0 | BG196: 0 | BH196: 0 | BI196: 0 | BJ196: 0
A197: 193 | B197: EMPREINTE CARBONE | C197: Restauration | D197: Alimentation | E197: Privilégier une alimentation locale | F197: Faire et/ou trouver un annuaire des commerçants locaux. | G197: 1 | N197: x | R197: X | Z197: X | AA197: X | AB197: X | AC197: X | AD197: X | AE197: X | AF197: X | AG197: X | AH197: X | AI197: X | AJ197: X | AK197: X | AL197: X | AM197: X | AN197: O | AW197: 0 | AX197: 0 | AY197: 0 | AZ197: 0 | BA197: 0 | BB197: 0 | BC197: 0 | BD197: 0 | BE197: 0 | BF197: 0 | BG197: 0 | BH197: 0 | BI197: 0 | BJ197: 0
A198: 194 | B198: EMPREINTE CARBONE | C198: Restauration | D198: Alimentation | E198: Privilégier une alimentation locale et de saison | F198: Faire appel aux paniers distribués par les producteurs locaux, ou mettre en place une ou plusieurs AMAP. | G198: 1 | N198: x | O198: x | R198: X | T198: x | Z198: X | AA198: X | AB198: X | AC198: X | AD198: X | AE198: X | AF198: X | AG198: X | AH198: X | AI198: X | AJ198: X | AK198: X | AL198: X | AM198: X | AN198: O | AW198: 0 | AX198: 0 | AY198: 0 | AZ198: 0 | BA198: 0 | BB198: 0 | BC198: 0 | BD198: 0 | BE198: 0 | BF198: 0 | BG198: 0 | BH198: 0 | BI198: 0 | BJ198: 0
A199: 195 | B199: EMPREINTE CARBONE | C199: Restauration | D199: Alimentation | E199: Privilégier une alimentation non industrielle | F199: Cuisiner des plats soi-même. | G199: 1 | R199: X | V199: x | Z199: X | AA199: X | AB199: X | AC199: X | AD199: X | AE199: X | AF199: X | AG199: X | AH199: X | AI199: X | AJ199: X | AK199: X | AL199: X | AM199: X | AN199: O | AW199: 0 | AX199: =IF(AND(N199="X",$G199>=AX$471),1,0) -> 0 | AY199: =IF(AND(O199="X",$G199>=AY$471),1,0) -> 0 | AZ199: =IF(AND(P199="X",$G199>=AZ$471),1,0) -> 0 | BA199: =IF(AND(Q199="X",$G199>=BA$471),1,0) -> 0 | BB199: =IF(AND(R199="X",$G199>=BB$471),1,0) -> 0 | BC199: =IF(AND(S199="X",$G199>=BC$471),1,0) -> 0 | BD199: =IF(AND(T199="X",$G199>=BD$471),1,0) -> 0 | BE199: =IF(AND(U199="X",$G199>=BE$471),1,0) -> 0 | BF199: =IF(AND(V199="X",$G199>=BF$471),1,0) -> 0 | BG199: =IF(AND(W199="X",$G199>=BG$471),1,0) -> 0 | BH199: =IF(AND(X199="X",$G199>=BH$471),1,0) -> 0 | BI199: =IF(AND(Y199="X",$G199>=BI$471),1,0) -> 0 | BJ199: 0
A200: 196 | B200: EMPREINTE CARBONE | C200: Restauration | D200: Alimentation | E200: Privilégier une alimentation non industrielle | F200: Acheter des plats fraîchement cuisinés sur le marché ou chez le traiteur. | G200: 1 | R200: X | Z200: X | AA200: X | AB200: X | AC200: X | AD200: X | AE200: X | AF200: X | AG200: X | AH200: X | AI200: X | AJ200: X | AK200: X | AL200: X | AM200: X | AN200: O | AW200: 0 | AX200: 0 | AY200: 0 | AZ200: 0 | BA200: 0 | BB200: 0 | BC200: 0 | BD200: 0 | BE200: 0 | BF200: 0 | BG200: 0 | BH200: 0 | BI200: 0 | BJ200: 0
A201: 197 | B201: EMPREINTE CARBONE | C201: Restauration | D201: Consommation d'énergie | E201: Optimiser la préparation et la cuisson | F201: Profiter d'un four déjà chaud pour enfourner d'autres préparations | G201: 1 | R201: X | Z201: X | AA201: X | AB201: X | AC201: X | AD201: X | AE201: X | AF201: X | AG201: X | AH201: X | AI201: X | AJ201: X | AK201: X | AL201: X | AM201: X | AN201: O | AW201: 0 | AX201: 0 | AY201: 0 | AZ201: 0 | BA201: 0 | BB201: 0 | BC201: 0 | BD201: 0 | BE201: 0 | BF201: 0 | BG201: 0 | BH201: 0 | BI201: 0 | BJ201: 0
A202: 198 | B202: EMPREINTE CARBONE | C202: Restauration | D202: Consommation d'énergie | E202: Optimiser la préparation et la cuisson | F202: Pensez aux astuces pour limiter la consommation d'énergie pendant la cuisson : mettre un couvercle sur les casseroles et poêles, éteignez la plaque de cuisson quelques minutes avant la fin de la cuisson (elle refroidit progressivement). | G202: 1 | R202: X | Z202: X | AA202: X | AB202: X | AC202: X | AD202: X | AE202: X | AF202: X | AG202: X | AH202: X | AI202: X | AJ202: X | AK202: X | AL202: X | AM202: X | AN202: O | AW202: 0 | AX202: 0 | AY202: 0 | AZ202: 0 | BA202: 0 | BB202: 0 | BC202: 0 | BD202: 0 | BE202: 0 | BF202: 0 | BG202: 0 | BH202: 0 | BI202: 0 | BJ202: 0
A203: 199 | B203: EMPREINTE CARBONE | C203: Restauration | D203: Consommation d'énergie | E203: Optimiser le nettoyage de la vaisselle | F203: Privilégier des produits vaisselle écologiques pour ne pas polluer les eaux. | G203: 2 | R203: X | Z203: X | AA203: X | AB203: X | AC203: X | AD203: X | AE203: X | AF203: X | AG203: X | AH203: X | AI203: X | AJ203: X | AK203: X | AL203: X | AM203: X | AN203: O | AW203: 0 | AX203: 0 | AY203: 0 | AZ203: 0 | BA203: 0 | BB203: 0 | BC203: 0 | BD203: 0 | BE203: 0 | BF203: 0 | BG203: 0 | BH203: 0 | BI203: 0 | BJ203: 0
A204: 200 | B204: EMPREINTE CARBONE | C204: Restauration | D204: Consommation d'énergie | E204: Optimiser le nettoyage de la vaisselle | F204: Essuyer la vaisselle avec des torchons et non pas de l'essuie-tout. | G204: 1 | R204: X | Z204: X | AA204: X | AB204: X | AC204: X | AD204: X | AE204: X | AF204: X | AG204: X | AH204: X | AI204: X | AJ204: X | AK204: X | AL204: X | AM204: X | AN204: O | AW204: 0 | AX204: 0 | AY204: 0 | AZ204: 0 | BA204: 0 | BB204: 0 | BC204: 0 | BD204: 0 | BE204: 0 | BF204: 0 | BG204: 0 | BH204: 0 | BI204: 0 | BJ204: 0
A205: 201 | B205: EMPREINTE CARBONE | C205: Restauration | D205: Consommation d'énergie | E205: Optimiser le service et le réchauffement | F205: Servir dans des plats qui conservent la chaleur. | G205: 1 | R205: X | Z205: X | AA205: X | AB205: X | AC205: X | AD205: X | AE205: X | AF205: X | AG205: X | AH205: X | AI205: X | AJ205: X | AK205: X | AL205: X | AM205: X | AN205: O | AW205: 0 | AX205: 0 | AY205: 0 | AZ205: 0 | BA205: 0 | BB205: 0 | BC205: 0 | BD205: 0 | BE205: 0 | BF205: 0 | BG205: 0 | BH205: 0 | BI205: 0 | BJ205: 0
... 265 more rows

Sheet Empreinte_Carbone
B6: EMPREINTE CARBONE DE L'EVENEMENT
B7: LIEU-HEBERGEMENT | E7: RESTAURATION | G7: MATERIELS | I7: DEPLACEMENT DE PERSONNES | L7: COMMUNICATION | O7: TOTALISATEUR
B10: LIEU-HEBERGEMENT
B11: NB : Si votre évènement s'est déroulé dans des lieux différents, remplir le questionnaire pour chaque lieu et reporter chacune des valeurs dans les tableaux ci-dessous.
B14: Questionnaire
B17: Connaissez-vous la valeur exacte du DPE de votre hébergement/lieu ? | G17: non
B18: Si oui : ne remplir que le tableau 1 ; si non : ne remplir que le tableau 2
B20: Tableau 1 | J20: LIEUX | N20: HEBERGEMENTS
B21: Quelle est sa valeur en kgeq.CO2/(m².an) ? | E21: à ne pas confondre avec la valeur en KWh/(m².an) | J21: NOM | K21: kgeq. C | L21: NOM | M21: kgeq. C | N21: NOM | O21: kgeq. C | P21: NOM | Q21: kgeq. C
B22: OU | E22: ICI NE REMPLIR QU'UNE SEULE CASE ! | J22: LIEU 1 | L22: LIEU 5 | N22: HEBERG. 1 | P22: HEBERG. 5
B23: Quelle lette le caractérise ? | E23: =VLOOKUP(D23,Paramètres!A116:B122,2,FALSE) ->  | F23: Kgeq.CO2/(m².an) | G23: DPE-e | J23: LIEU 2 | L23: LIEU 6 | N23: HEBERG. 2 | P23: HEBERG. 6
B24: Tableau 2 | J24: LIEU 3 | L24: LIEU 7 | N24: HEBERG. 3 | P24: HEBERG. 7
B25: Dans quel département s'est déroulé votre évènement ? | G25: =VLOOKUP(E25,Paramètres!A18:B113,2,FALSE) ->  | H25: R | J25: LIEU 4 | L25: LIEU 8 | N25: HEBERG. 4 | P25: HEBERG. 8
B27: A quelle altitude était votre hébergement/lieu ? (en mètres) | G27: =IF(E27<400,0,IF(E27<800,0.1,IF(E27>=800,0.2,))) -> 0 | H27: A | J27: TOTAL | K27: =K22+K23+K24+K25+M22+M23+M24+M25 -> 0 | N27: TOTAL | O27: =O22+O23+O24+O25+Q22+Q23+Q24+Q25 -> 0
B29: S'agit-il d'une salle de conférence ou de réunion ? | G29: =IF(E29="oui",0.2,IF(E29="non",0,0)) -> 0 | H29: B
B31: Quelle description caractérise votre hergement/lieu au mieux ? | G31: =VLOOKUP(E31,Paramètres!A124:B128,2,FALSE) -> 
B32: Enfin, remplir les 2 tableaux suivants : | E32: =IF(G17="oui", IF(D21<>0,D21,E23), IF(G17="non", G31*(G25+G27+G29),"")) ->  | G32: DPE-e
B33: A quelle saison s'est déroulé votre évènement ? | G33: =IF(E33="été",1-((MAX(E32-6,1))/E32),IF(E33="hiver",1+((MAX(E32-6,1))/E32),1)) -> 1 | H33: S | J33: NB : Ne considérer ici que l'espace utilisé pour l'évènement. Par exemple, si je n'ai besoin que de 10 chambres de 5 personnes sur les 20 chambres disponibles dans l'hôtel, je rentre 50 personnes, et non 100 (même si mon évènement n'a que 48 participants) !
B35: Combien de personnes ont participé à l'évènement ? | G35: =E35 -> 0 | H35: P
B37: Quelle est la capacité totale d'accueil des installations utilisées ? | G37: =IF(E37<>0,E35/E37,0) -> 0 | H37: t
B39: Combien de jours a duré l'évènement ? | G39: =E39 -> 0 | H39: d
B43: TYPE DE LIEU/HEBERGEMENT : | J43: =IF(G45<>0, IF(G37<>0,ROUND(E32*G33*(12/44)*(G39/365)*(G35/G45)*(1/G37),1),""),"") ->  | L43: kgeq. C
B45: Il s'agit : | G45: =VLOOKUP(C44,Paramètres!A140:B149,2,FALSE) ->  | H45: p
J46: Valeur à réporter dans le tableau ci-dessus.
B57: RESTAURATION
B59: TYPE D'ALIMENTATION
E61: Nombre de repas préparés | F61: Nombre de repas servis | G61: kg équ. C | J61: kg équ. C | K61: kg équ. C
B62: REPAS | G62: par tonne | H62: a | I62: b | J62: par repas | K62: total
B63: Repas végétarien | J63: 0.12 | K63: =J63*E63 -> 0 | L63: =F63*J63 -> 0
B64: Repas à dominante végétale avec | D64: Veau | G64: =VLOOKUP(D64,Paramètres!A2:B14,2,FALSE) -> 12802 | H64: =(0.16-0.45)/(640-4744) -> 7.066276803e-05 | I64: =0.45-H64*4744 -> 0.1147758285 | J64: =H64*G64+I64 -> 1.019400585 | K64: =J64*E64 -> 0 | L64: =F64*J64 -> 0
B65: Repas classique avec | D65: Veau | G65: =VLOOKUP(D65,Paramètres!A2:B14,2,FALSE) -> 12802 | H65: =(0.3-1.23)/(640-4744) -> 0.0002266081871 | I65: =1.23-H65*4744 -> 0.1549707602 | J65: =H65*G65+I65 -> 3.056008772 | K65: =J65*E65 -> 0 | L65: 0
B66: Repas à dominante animale avec | D66: Veau | G66: =VLOOKUP(D66,Paramètres!A2:B14,2,FALSE) -> 12802 | H66: =(0.36-1.54)/(640-4744) -> 0.0002875243665 | I66: =1.54-H66*4744 -> 0.1759844055 | J66: =H66*G66+I66 -> 3.856871345 | K66: =J66*E66 -> 0 | L66: 0
E68: Nombre de sandwichs préparés | F68: Nombre de sandwichs servis | J68: kg équ. C | K68: kg équ. C
B69: SANDWICH | H69: a | I69: b | J69: par sandwich | K69: total
B70: ½ baguette + | C70: jambon + légume + fromage | J70: 0.175 | K70: =J70*E70 -> 0 | L70: 0
C71: thon + légume + fromage | J71: 0.155 | K71: =J71*E71 -> 0 | L71: 0
C72: légume + fromage | J72: 0.135 | K72: =J72*E72 -> 0 | L72: 0
E74: Nombre de baguettes achetées | F74: Nombre de baguettes servies | J74: kg équ. C | K74: kg équ. C
B75: PAIN | J75: par kg de pain | K75: total
B76: 1 baguette = 250 g | J76: 0.133 | K76: =J76*E76/4 -> 0 | L76: 0
B79: DECHETS
E81: Quantité de bouteilles/canettes servies | J81: kg équ. C | K81: kg équ. C
B82: EMBALLAGES | J82: par litre | K82: total
B83: Bouteilles en plastique d'un litre | J83: =0.129*12/44 -> 0.03518181818 | K83: =J83*E83 -> 0
B84: Bouteilles en verre d'un litre | J84: =0.345*12/44 -> 0.09409090909 | K84: =J84*E84 -> 0
B85: Bouteille cartonnée d'un litre | J85: =(12/44)*70/1000 -> 0.01909090909 | K85: =J85*E85 -> 0
B86: Canettes de 33 cL | J86: =(12/44)*0.345/8 -> 0.01176136364 | K86: =J86*E86 -> 0
E88: Quantité estimée jetée (en nombre de repas) | J88: kg équ. C | K88: kg équ. C
B89: DECHETS ALIMENTAIRES | J89: par litre | K89: total
B90: sur la quantité servie | J90: 0.096 | K90: =J90*E90 -> 0
B91: sur la quantité achetée en trop | J91: 0.096 | K91: =J91*E91 -> 0
B93: ENERGIE
E95: Puissance de l'appareil en Watt | F95: Durée d'utilisation en heure | J95: kg équ. C | K95: kg équ. C
B96: APPAREILS UTILISES | J96: par kW.h | K96: total
B97: Appareil 1 | J97: 0.023 | K97: =J97*E97*F97 -> 0
B98: Appareil 2 | J98: 0.023 | K98: =J98*E98*F98 -> 0
B99: Appareil 3 | J99: 0.023 | K99: =J99*E99*F99 -> 0
B100: Appareil 4 | J100: 0.023 | K100: =J100*E100*F100 -> 0
B102: TRANSPORT
E104: Moyen de transport utilisé | F104: Nombre de kilomètres parcourus | J104: kg équ. C | K104: kg équ. C
B105: APPAREILS UTILISES | J105: par km | K105: total
B106: Transport 1 | E106: Autobus urbain | G106: ATTENTION ! Si la nourriture a été transportée avec des personnes, ne pas compter son transport. | J106: =VLOOKUP(E106,Paramètres!$A$155:$B$165,2,FALSE) -> 0.02769 | K106: =J106*F106 -> 0
B107: Transport 2 | E107: Train en France, moyenne | J107: =VLOOKUP(E107,Paramètres!$A$155:$B$165,2,FALSE) -> 0.002629286623 | K107: =J107*F107 -> 0
B108: Transport 3 | E108: Voiture en parcours mixte | J108: =VLOOKUP(E108,Paramètres!$A$155:$B$165,2,FALSE) -> 0.067 | K108: =J108*F108 -> 0
B109: Transport 4 | E109: Avion court courrier | J109: =VLOOKUP(E109,Paramètres!$A$155:$B$165,2,FALSE) -> 0.071 | K109: =J109*F109 -> 0
B116: MATERIELS
B118: TYPE DE MATERIEL
E120: Euros dépensés | J120: kg équ. C | K120: kg équ. C
B121: MATERIEL | J121: par € | K121: total
B122: Petites fournitures | J122: 0.1 | K122: =J122*E122 -> 0
B123: Matériel informatique | J123: 0.25 | K123: =J123*E123 -> 0
E125: Masse en kg | J125: kg équ. C | K125: kg équ. C
B126: MATERIEL (quand la composition est connue) | J126: par kg | K126: total
B127: Plastique | J127: 0.65 | K127: =J127*E127 -> 0
B128: Acier | J128: 0.87 | K128: 0
B129: Aluminum | J129: 2.8 | K129: 0
B130: Papier | J130: 0.55 | K130: 0
B131: Carton | J131: 0.5 | K131: 0
B132: Verre | J132: 0.26 | K132: 0
B135: DECHETS
E137: Masse en kg | J137: kg équ. C | K137: kg équ. C
B138: EMBALLAGES | J138: par kg | K138: total
B139: Matériels jetés (estimation) | J139: 0.004 | K139: =J139*E139 -> 0
B142: ENERGIE
E144: Puissance de l'appareil en kW | F144: Durée d'utilisation en heure | J144: kg équ. C | K144: kg équ. C
B145: APPAREILS HI-FI | J145: par kW.h | K145: total
B146: Sono | J146: 0.079 | K146: =J146*E146 -> 0
B147: Lumière | J147: 0.039 | K147: =J147*E147 -> 0
E149: Puissance de l'appareil en Watt | F149: Durée d'utilisation en heure | J149: kg équ. C | K149: kg équ. C
B150: APPAREILS UTILISES | J150: par kW.h | K150: total
B151: Appareil 1 | J151: 0.023 | K151: =J151*E151*F151 -> 0
B152: Appareil 2 | J152: 0.023 | K152: =J152*E152*F152 -> 0
B153: Appareil 3 | J153: 0.023 | K153: =J153*E153*F153 -> 0
B154: Appareil 4 | J154: 0.023 | K154: =J154*E154*F154 -> 0
B156: TRANSPORT
E158: Moyen de transport utilisé | F158: Nombre de kilomètres parcourus | J158: kg équ. C | K158: kg équ. C
B159: APPAREILS UTILISES | J159: par km | K159: total
B160: Transport 1 | E160: Autobus interurbain | G160: ATTENTION ! Si le matériel a été transporté avec des personnes, ne pas compter son transport. | J160: =VLOOKUP(E160,Paramètres!$A$155:$B$165,2,FALSE) -> 0.01101016949 | K160: =J160*F160 -> 0
B161: Transport 2 | E161: Train en France, moyenne | J161: =VLOOKUP(E161,Paramètres!$A$155:$B$165,2,FALSE) -> 0.002629286623 | K161: =J161*F161 -> 0
B162: Transport 3 | E162: Voiture en parcours mixte | J162: =VLOOKUP(E162,Paramètres!$A$155:$B$165,2,FALSE) -> 0.067 | K162: =J162*F162 -> 0
B163: Transport 4 | E163: Avion court courrier | J163: =VLOOKUP(E163,Paramètres!$A$155:$B$165,2,FALSE) -> 0.071 | K163: =J163*F163 -> 0
B170: DEPLACEMENTS DE PERSONNES
B172: PARTICIPANTS
E174: PARTICIPANTS (déplacements aller-retour) | K174: kg équ. C | L174: kg équ. C
B175: TYPE DE TRANSPORT | E175: nombre de kms total (véhicules) | F175: nombre de personnes | G175: nombre de véhicules | K175: par km parcouru | N175: TOTAL
B176: Voiture | C176: Voiture en parcours Extra-urbain | K176: 0.065 | N176: =$E176*$K176 -> 0
C177: Voiture en parcours urbain | K177: 0.07 | N177: =$E177*$K177 -> 0
C178: Voiture en parcours mixte | K178: 0.067 | N178: 0
B179: 2 roues | C179: Cyclomoteurs 50 cm3 | K179: 0.04 | N179: 0
B180: TYPE DE TRANSPORT | E180: nombre de kms total (personnes) | F180: nombre de personnes | K180: par km parcouru | N180: TOTAL
B181: Train | C181: Train en France, moyenne | K181: 0.002629286623 | N181: 0
C182: TGV | K182: 0.000699769637 | N182: 0
C183: TER | K183: 0.01020195184 | N183: 0
B184: Bus | C184: Autobus urbain | K184: 0.02769 | N184: 0
C185: Autobus interurbain | K185: 0.01101016949 | N185: 0
B186: Avion | C186: Court courrier classe inconnue | K186: =0.037+0.034 -> 0.071 | N186: 0
C187: Long courrier classe inconnue | K187: =0.038+0.035 -> 0.073 | N187: 0
B188: TOTAL | N188: =SUM(N181:N187,N176:N179) -> 0
B191: INTERVENANTS si déplacements spécifiques
E193: INTERVENANTS (déplacements aller-retour) | K193: kg équ. C | L193: kg équ. C
B194: TYPE DE TRANSPORT | E194: nombre de kms total (véhicules) | F194: nombre de personnes | G194: nombre de véhicules | K194: par km parcouru | N194: TOTAL
B195: Voiture | C195: Voiture en parcours Extra-urbain | K195: 0.065 | N195: =$E195*$K195 -> 0
C196: Voiture en parcours urbain | K196: 0.07 | N196: =$E196*$K196 -> 0
C197: Voiture en parcours mixte | K197: 0.067 | N197: 0
B198: 2 roues | C198: Cyclomoteurs 50 cm3 | K198: 0.04 | N198: 0
B199: TYPE DE TRANSPORT | E199: nombre de kms total (personnes) | F199: nombre de personnes | K199: par km parcouru | N199: TOTAL
B200: Train | C200: Train en France, moyenne | K200: 0.002629286623 | N200: 0
C201: TGV | K201: 0.000699769637 | N201: 0
C202: TER | K202: 0.01020195184 | N202: 0
B203: Bus | C203: Autobus urbain | K203: 0.02769 | N203: 0
C204: Autobus interurbain | K204: 0.01101016949 | N204: 0
B205: Avion | C205: Court courrier classe inconnue | K205: =0.037+0.034 -> 0.071 | N205: 0
C206: Long courrier classe inconnue | K206: =0.038+0.035 -> 0.073 | N206: 0
B207: TOTAL | N207: =SUM(N200:N206,N195:N198) -> 0
B210: ORGANISATEURS
E212: ORGANISATEURS (déplacements aller-retour) | H212: ORGANISATEURS (déplacements en amont) | K212: kg équ. C | L212: kg équ. C
B213: TYPE DE TRANSPORT | E213: nombre de kms total (véhicules) | F213: nombre de personnes | G213: nombre de véhicules | H213: nombre de kms total (véhicules) | I213: nombre de personnes | J213: nombre de véhicules | K213: par km parcouru | L213: AR | M213: en amont | N213: TOTAL
B214: Voiture | C214: Voiture en parcours Extra-urbain | K214: 0.065 | L214: =$E214*$K214 -> 0 | M214: =$H214*$K214 -> 0 | N214: =M214+L214 -> 0
C215: Voiture en parcours urbain | K215: 0.07 | L215: =$E215*$K215 -> 0 | M215: =$H215*$K215 -> 0 | N215: =M215+L215 -> 0
C216: Voiture en parcours mixte | K216: 0.067 | L216: 0 | M216: 0 | N216: =M216+L216 -> 0
B217: 2 roues | C217: Cyclomoteurs 50 cm3 | K217: 0.04 | L217: 0 | M217: 0 | N217: =M217+L217 -> 0
B218: TYPE DE TRANSPORT | E218: nombre de kms total (personnes) | F218: nombre de personnes | H218: nombre de kms total (personnes) | I218: nombre de personnes | K218: par km parcouru | L218: AR | M218: en amont | N218: TOTAL
B219: Train | C219: Train en France, moyenne | K219: 0.002629286623 | L219: 0 | M219: 0 | N219: =M219+L219 -> 0
C220: TGV | K220: 0.000699769637 | L220: 0 | M220: 0 | N220: =M220+L220 -> 0
C221: TER | K221: 0.01020195184 | L221: 0 | M221: 0 | N221: 0
B222: Bus | C222: Autobus urbain | K222: 0.02769 | L222: 0 | M222: 0 | N222: 0
C223: Autobus interurbain | K223: 0.01101016949 | L223: 0 | M223: 0 | N223: 0
B224: Avion | C224: Court courrier classe inconnue | K224: =0.037+0.034 -> 0.071 | L224: 0 | M224: 0 | N224: 0
C225: Long courrier classe inconnue | K225: =0.038+0.035 -> 0.073 | L225: 0 | M225: 0 | N225: 0
B226: TOTAL | L226: =SUM(L219:L225,L214:L217) -> 0 | M226: =SUM(M219:M225,M214:M217) -> 0 | N226: =SUM(N219:N225,N214:N217) -> 0
B233: COMMUNICATION
B235: SUPPORTS DE COMMUNICATION
E237: Quantité | G237: kg équ. C | H237: kg équ. C
B238: AFFICHES/FLYERS | G238: par unité | H238: total
B239: Format | D239: A0 | G239: =0.36*0.135/0.47 -> 0.1034042553 | H239: =E239*G239 -> 0
D240: A1 | G240: =G239/2 -> 0.05170212766 | H240: 0
D241: A2 | G241: 0.02585106383 | H241: 0
D242: A3 | G242: 0.01292553191 | H242: 0 | J242: Avez-vous choisi une éco-impression ? | M242: Non
D243: A4 | G243: 0.006462765957 | H243: 0
D244: A5 | G244: 0.003231382979 | H244: 0
D245: A6 | G245: 0.001615691489 | H245: 0
D246: autre (en m²) | G246: =G239 -> 0.1034042553 | H246: 0
B247: KAKEMONO | G247: 0.432 | H247: 0
B248: DRAPEAU | G248: 1.851 | H248: 0
B249: BANDEROLE | G249: 0.4 | H249: 0
B250: TOTAL | H250: =IF(M242="OUI",0.7*SUM(H239:H246)+SUM(H247:H249),SUM(H239:H249)) -> 0
B252: SITE INTERNET + Mails
G254: kg équ. C | H254: kg équ. C
G255: par unité | H255: total
B256: Avez-vous créé un site web pour l'évènement ? | E256: non | H256: =IF(E256="oui",K256+K257,K257) -> 0 | K256: 0.575
B257: Combien y-a-t'il eu de consultations ? | J257: 0.00096 | K257: =E257*J257 -> 0
B258: Combien de destinataires ont reçu un mail | G258: 0.003 | H258: =E258*G258 -> 0
B259: TOTAL | H259: =SUM(H256:H258) -> 0
B262: GOODIES/ECHANTILLONS
E264: Quantité | G264: kg équ. C | H264: kg équ. C
G265: par unité | H265: total
B266: Petites fournitures | G266: 0.1 | H266: =E266*G266 -> 0
B267: Eco-cup | C267: 25 | D267: cL | G267: =0.021*C267/25 -> 0.021 | H267: =E267*G267 -> 0
B268: T-shirt | G268: 0.284 | H268: =E268*G268 -> 0
B269: Bouteilles de shampooing/gel douche | G269: 0.16 | H269: =E269*G269 -> 0
B270: TOTAL | H270: =SUM(H266:H269) -> 0
B272: REUNIONS D'INFORMATION
E274: LIEUX
B275: NB : Réutiliser la partie Lieu-Hébergement ci-dessus pour calculer les émissions de GES associées à vos lieux de réunions | E275: NOM | F275: kgeq. C | G275: NOM | H275: kgeq. C
E276: LIEU 1 | G276: LIEU 3
B277: LIEU-HEBERGEMENT | E277: LIEU 2 | G277: LIEU 4
E278: TOTAL | F278: =F276+F277+H276+H277 -> 0
B285: TOTALISATEUR
B288: RESTAURATION | D288: =SUM($D$289:$D$292) -> 0 | G288: POSTES | J288: EMISSIONS
B289: type d'alimentation | D289: =SUM(K63:K66)+SUM(K70:K72)+SUM(K76) -> 0
B290: déchets | D290: =SUM(K83:K86)+SUM(K90:K91) -> 0
B291: énergie | D291: =SUM(K97:K100) -> 0 | J291: kg équ. C | K291: kg équ. CO2 | L291: % du total
B292: transport | D292: =SUM(K106:K109) -> 0 | G292: Restauration | J292: =D288 -> 0 | K292: =J292*44/12 -> 0 | L292: =IF($J$298=0, "",J292/$J$298) -> 
G293: Lieu | J293: =D294 -> 0 | K293: 0
B294: LIEU | D294: =SUM(Empreinte_Carbone!K22:K25)+SUM(Empreinte_Carbone!M22:M25) -> 0 | G294: Hébergement | J294: =D296 -> 0 | K294: 0
G295: Matériels | J295: =D298 -> 0 | K295: 0
B296: HEBERGEMENT | D296: =SUM(Empreinte_Carbone!O22:O25)+SUM(Empreinte_Carbone!Q22:Q25) -> 0 | G296: Déplacements de personnes | J296: =D304 -> 0 | K296: 0
G297: Communication | J297: =D309 -> 0 | K297: 0
B298: MATERIELS | D298: =SUM($D$299:$D$302) -> 0 | G298: TOTAL | J298: =SUM(J292:J297) -> 0 | K298: =SUM(K292:K297) -> 0
B299: type de matériel | D299: =SUM(K122:K123)+SUM(K127:K132) -> 0
... 12 more rows

Sheet Planning
B5: CALENDRIER
B7: PLANNING | D7: NE PAS REMPLIR | G7: Année | H7: A REMPLIR | N7: Mois | O7: 1 | P7: =IF(MONTH(P9)=MONTH(O9),"",MAX($O7:O7)+1) ->  | Q7: =IF(MONTH(Q9)=MONTH(P9),"",MAX($O7:P7)+1) ->  | R7: =IF(MONTH(R9)=MONTH(Q9),"",MAX($O7:Q7)+1) ->  | S7: =IF(MONTH(S9)=MONTH(R9),"",MAX($O7:R7)+1) ->  | T7: =IF(MONTH(T9)=MONTH(S9),"",MAX($O7:S7)+1) -> 2 | U7: =IF(MONTH(U9)=MONTH(T9),"",MAX($O7:T7)+1) ->  | V7: =IF(MONTH(V9)=MONTH(U9),"",MAX($O7:U7)+1) ->  | W7: =IF(MONTH(W9)=MONTH(V9),"",MAX($O7:V7)+1) ->  | X7: =IF(MONTH(X9)=MONTH(W9),"",MAX($O7:W7)+1) -> 3 | Y7: =IF(MONTH(Y9)=MONTH(X9),"",MAX($O7:X7)+1) ->  | Z7: =IF(MONTH(Z9)=MONTH(Y9),"",MAX($O7:Y7)+1) ->  | AA7: =IF(MONTH(AA9)=MONTH(Z9),"",MAX($O7:Z7)+1) ->  | AB7: =IF(MONTH(AB9)=MONTH(AA9),"",MAX($O7:AA7)+1) -> 4 | AC7: =IF(MONTH(AC9)=MONTH(AB9),"",MAX($O7:AB7)+1) ->  | AD7: =IF(MONTH(AD9)=MONTH(AC9),"",MAX($O7:AC7)+1) ->  | AE7: =IF(MONTH(AE9)=MONTH(AD9),"",MAX($O7:AD7)+1) ->  | AF7: =IF(MONTH(AF9)=MONTH(AE9),"",MAX($O7:AE7)+1) ->  | AG7: =IF(MONTH(AG9)=MONTH(AF9),"",MAX($O7:AF7)+1) -> 5 | AH7: =IF(MONTH(AH9)=MONTH(AG9),"",MAX($O7:AG7)+1) ->  | AI7: =IF(MONTH(AI9)=MONTH(AH9),"",MAX($O7:AH7)+1) ->  | AJ7: =IF(MONTH(AJ9)=MONTH(AI9),"",MAX($O7:AI7)+1) ->  | AK7: =IF(MONTH(AK9)=MONTH(AJ9),"",MAX($O7:AJ7)+1) -> 6 | AL7: =IF(MONTH(AL9)=MONTH(AK9),"",MAX($O7:AK7)+1) ->  | AM7: =IF(MONTH(AM9)=MONTH(AL9),"",MAX($O7:AL7)+1) ->  | AN7: =IF(MONTH(AN9)=MONTH(AM9),"",MAX($O7:AM7)+1) ->  | AO7: =IF(MONTH(AO9)=MONTH(AN9),"",MAX($O7:AN7)+1) -> 7 | AP7: =IF(MONTH(AP9)=MONTH(AO9),"",MAX($O7:AO7)+1) ->  | AQ7: =IF(MONTH(AQ9)=MONTH(AP9),"",MAX($O7:AP7)+1) ->  | AR7: =IF(MONTH(AR9)=MONTH(AQ9),"",MAX($O7:AQ7)+1) ->  | AS7: =IF(MONTH(AS9)=MONTH(AR9),"",MAX($O7:AR7)+1) ->  | AT7: =IF(MONTH(AT9)=MONTH(AS9),"",MAX($O7:AS7)+1) -> 8 | AU7: =IF(MONTH(AU9)=MONTH(AT9),"",MAX($O7:AT7)+1) ->  | AV7: =IF(MONTH(AV9)=MONTH(AU9),"",MAX($O7:AU7)+1) ->  | AW7: =IF(MONTH(AW9)=MONTH(AV9),"",MAX($O7:AV7)+1) ->  | AX7: =IF(MONTH(AX9)=MONTH(AW9),"",MAX($O7:AW7)+1) -> 9 | AY7: =IF(MONTH(AY9)=MONTH(AX9),"",MAX($O7:AX7)+1) ->  | AZ7: =IF(MONTH(AZ9)=MONTH(AY9),"",MAX($O7:AY7)+1) ->  | BA7: =IF(MONTH(BA9)=MONTH(AZ9),"",MAX($O7:AZ7)+1) ->  | BB7: =IF(MONTH(BB9)=MONTH(BA9),"",MAX($O7:BA7)+1) -> 10 | BC7: =IF(MONTH(BC9)=MONTH(BB9),"",MAX($O7:BB7)+1) ->  | BD7: =IF(MONTH(BD9)=MONTH(BC9),"",MAX($O7:BC7)+1) ->  | BE7: =IF(MONTH(BE9)=MONTH(BD9),"",MAX($O7:BD7)+1) ->  | BF7: =IF(MONTH(BF9)=MONTH(BE9),"",MAX($O7:BE7)+1) ->  | BG7: =IF(MONTH(BG9)=MONTH(BF9),"",MAX($O7:BF7)+1) -> 11 | BH7: =IF(MONTH(BH9)=MONTH(BG9),"",MAX($O7:BG7)+1) ->  | BI7: =IF(MONTH(BI9)=MONTH(BH9),"",MAX($O7:BH7)+1) ->  | BJ7: =IF(MONTH(BJ9)=MONTH(BI9),"",MAX($O7:BI7)+1) ->  | BK7: =IF(MONTH(BK9)=MONTH(BJ9),"",MAX($O7:BJ7)+1) -> 12 | BL7: =IF(MONTH(BL9)=MONTH(BK9),"",MAX($O7:BK7)+1) ->  | BM7: =IF(MONTH(BM9)=MONTH(BL9),"",MAX($O7:BL7)+1) ->  | BN7: =IF(MONTH(BN9)=MONTH(BM9),"",MAX($O7:BM7)+1) ->  | BO7: =IF(MONTH(BO9)=MONTH(BN9),"",MAX($O7:BN7)+1) -> 
C8: Num. | D8: Début tâche | E8: Fin tâche | F8: Durée | G8: 2013-01-01 | H8: Précédente | I8: décalage | J8: Début tâche | K8: Fin tâche | L8: Durée | N8: Semaine | O8: 1 | P8: 2 | Q8: 3 | R8: 4 | S8: 5 | T8: 6 | U8: 7 | V8: 8 | W8: 9 | X8: 10 | Y8: 11 | Z8: 12 | AA8: 13 | AB8: 14 | AC8: 15 | AD8: 16 | AE8: 17 | AF8: 18 | AG8: 19 | AH8: 20 | AI8: 21 | AJ8: 22 | AK8: 23 | AL8: 24 | AM8: 25 | AN8: 26 | AO8: 27 | AP8: 28 | AQ8: 29 | AR8: 30 | AS8: 31 | AT8: 32 | AU8: 33 | AV8: 34 | AW8: 35 | AX8: 36 | AY8: 37 | AZ8: 38 | BA8: 39 | BB8: 40 | BC8: 41 | BD8: 42 | BE8: 43 | BF8: 44 | BG8: 45 | BH8: 46 | BI8: 47 | BJ8: 48 | BK8: 49 | BL8: 50 | BM8: 51 | BN8: 52 | BO8: 53
O9: =G8 -> 2013-01-01 | P9: =O9+7 -> 2013-01-08 | Q9: =P9+7 -> 2013-01-15 | R9: 2013-01-22 | S9: 2013-01-29 | T9: 2013-02-05 | U9: 2013-02-12 | V9: 2013-02-19 | W9: 2013-02-26 | X9: 2013-03-05 | Y9: 2013-03-12 | Z9: 2013-03-19 | AA9: 2013-03-26 | AB9: 2013-04-02 | AC9: 2013-04-09 | AD9: 2013-04-16 | AE9: 2013-04-23 | AF9: 2013-04-30 | AG9: 2013-05-07 | AH9: 2013-05-14 | AI9: 2013-05-21 | AJ9: 2013-05-28 | AK9: 2013-06-04 | AL9: 2013-06-11 | AM9: 2013-06-18 | AN9: 2013-06-25 | AO9: 2013-07-02 | AP9: 2013-07-09 | AQ9: 2013-07-16 | AR9: 2013-07-23 | AS9: 2013-07-30 | AT9: 2013-08-06 | AU9: 2013-08-13 | AV9: 2013-08-20 | AW9: 2013-08-27 | AX9: 2013-09-03 | AY9: 2013-09-10 | AZ9: 2013-09-17 | BA9: 2013-09-24 | BB9: 2013-10-01 | BC9: 2013-10-08 | BD9: 2013-10-15 | BE9: 2013-10-22 | BF9: 2013-10-29 | BG9: 2013-11-05 | BH9: 2013-11-12 | BI9: 2013-11-19 | BJ9: 2013-11-26 | BK9: 2013-12-03 | BL9: 2013-12-10 | BM9: 2013-12-17 | BN9: 2013-12-24 | BO9: 2013-12-31
B10: 0 | G10: Responsable
B11: Phase 1 | C11: =IF(OR(B11="",B11=0),"",MAX(C$7:C10)+1) -> 1 | D11: =MIN(D12:D301) -> 00:00:00 | E11: =MAX(E12:E301) -> 00:00:00 | F11: =E11-D11 -> 0 | O11: =IF(AND(O$9>=$D11,O$9<=$E11),IF(O10=0,2,1),IF($B11="","",IF($B11=0,0,""))) ->  | P11: =IF(AND(P$9>=$D11,P$9<=$E11),IF(P10=0,2,1),IF($B11="","",IF($B11=0,0,""))) -> 
B12: Etape 1 | C12: =IF(OR(B12="",B12=0),"",MAX(C$7:C11)+1) -> 2 | D12: =IF(J12<>0,J12,IF(AND(K12<>0,L12<>0),K12-L12,IF(H12<>0,VLOOKUP(H12,C:E,3,FALSE)+I12,""))) ->  | E12: =IF(K12<>0,K12,IF(L12<>0,D12+F12,"")) ->  | F12: =IF(L12<>0,L12,IF(K12<>0,E12-D12,"")) ->  | O12: =IF(AND(O$9>=$D12,O$9<=$E12),IF(O11=0,2,1),IF($B12="","",IF($B12=0,0,""))) -> 
B13: Etape 2 | C13: =IF(OR(B13="",B13=0),"",MAX(C$7:C12)+1) -> 3
B14: Etape 3 | C14: =IF(OR(B14="",B14=0),"",MAX(C$7:C13)+1) -> 4
B15: Etape 4 | C15: =IF(OR(B15="",B15=0),"",MAX(C$7:C14)+1) -> 5 | BK15: =IF(AND(BK$9>=$D15,BK$9<=$E15),IF(BK14=0,2,1),IF($B15="","",IF($B15=0,0,""))) ->  | BL15: =IF(AND(BL$9>=$D15,BL$9<=$E15),IF(BL14=0,2,1),IF($B15="","",IF($B15=0,0,""))) ->  | BM15: =IF(AND(BM$9>=$D15,BM$9<=$E15),IF(BM14=0,2,1),IF($B15="","",IF($B15=0,0,""))) ->  | BN15: =IF(AND(BN$9>=$D15,BN$9<=$E15),IF(BN14=0,2,1),IF($B15="","",IF($B15=0,0,""))) ->  | BO15: =IF(AND(BO$9>=$D15,BO$9<=$E15),IF(BO14=0,2,1),IF($B15="","",IF($B15=0,0,""))) -> 
B16: 0 | C16: =IF(OR(B16="",B16=0),"",MAX(C$7:C15)+1) ->  | O16: 0 | P16: =IF(AND(P$9>=$D16,P$9<=$E16),IF(P15=0,2,1),IF($B16="","",IF($B16=0,0,""))) -> 0 | Q16: =IF(AND(Q$9>=$D16,Q$9<=$E16),IF(Q15=0,2,1),IF($B16="","",IF($B16=0,0,""))) -> 0 | R16: =IF(AND(R$9>=$D16,R$9<=$E16),IF(R15=0,2,1),IF($B16="","",IF($B16=0,0,""))) -> 0 | S16: =IF(AND(S$9>=$D16,S$9<=$E16),IF(S15=0,2,1),IF($B16="","",IF($B16=0,0,""))) -> 0 | T16: =IF(AND(T$9>=$D16,T$9<=$E16),IF(T15=0,2,1),IF($B16="","",IF($B16=0,0,""))) -> 0 | U16: =IF(AND(U$9>=$D16,U$9<=$E16),IF(U15=0,2,1),IF($B16="","",IF($B16=0,0,""))) -> 0 | V16: =IF(AND(V$9>=$D16,V$9<=$E16),IF(V15=0,2,1),IF($B16="","",IF($B16=0,0,""))) -> 0 | W16: =IF(AND(W$9>=$D16,W$9<=$E16),IF(W15=0,2,1),IF($B16="","",IF($B16=0,0,""))) -> 0 | X16: =IF(AND(X$9>=$D16,X$9<=$E16),IF(X15=0,2,1),IF($B16="","",IF($B16=0,0,""))) -> 0 | Y16: =IF(AND(Y$9>=$D16,Y$9<=$E16),IF(Y15=0,2,1),IF($B16="","",IF($B16=0,0,""))) -> 0 | Z16: =IF(AND(Z$9>=$D16,Z$9<=$E16),IF(Z15=0,2,1),IF($B16="","",IF($B16=0,0,""))) -> 0 | AA16: =IF(AND(AA$9>=$D16,AA$9<=$E16),IF(AA15=0,2,1),IF($B16="","",IF($B16=0,0,""))) -> 0 | AB16: =IF(AND(AB$9>=$D16,AB$9<=$E16),IF(AB15=0,2,1),IF($B16="","",IF($B16=0,0,""))) -> 0 | AC16: =IF(AND(AC$9>=$D16,AC$9<=$E16),IF(AC15=0,2,1),IF($B16="","",IF($B16=0,0,""))) -> 0 | AD16: =IF(AND(AD$9>=$D16,AD$9<=$E16),IF(AD15=0,2,1),IF($B16="","",IF($B16=0,0,""))) -> 0 | AE16: =IF(AND(AE$9>=$D16,AE$9<=$E16),IF(AE15=0,2,1),IF($B16="","",IF($B16=0,0,""))) -> 0 | AF16: =IF(AND(AF$9>=$D16,AF$9<=$E16),IF(AF15=0,2,1),IF($B16="","",IF($B16=0,0,""))) -> 0 | AG16: =IF(AND(AG$9>=$D16,AG$9<=$E16),IF(AG15=0,2,1),IF($B16="","",IF($B16=0,0,""))) -> 0 | AH16: =IF(AND(AH$9>=$D16,AH$9<=$E16),IF(AH15=0,2,1),IF($B16="","",IF($B16=0,0,""))) -> 0 | AI16: =IF(AND(AI$9>=$D16,AI$9<=$E16),IF(AI15=0,2,1),IF($B16="","",IF($B16=0,0,""))) -> 0 | AJ16: =IF(AND(AJ$9>=$D16,AJ$9<=$E16),IF(AJ15=0,2,1),IF($B16="","",IF($B16=0,0,""))) -> 0 | AK16: =IF(AND(AK$9>=$D16,AK$9<=$E16),IF(AK15=0,2,1),IF($B16="","",IF($B16=0,0,""))) -> 0 | AL16: =IF(AND(AL$9>=$D16,AL$9<=$E16),IF(AL15=0,2,1),IF($B16="","",IF($B16=0,0,""))) -> 0 | AM16: =IF(AND(AM$9>=$D16,AM$9<=$E16),IF(AM15=0,2,1),IF($B16="","",IF($B16=0,0,""))) -> 0 | AN16: =IF(AND(AN$9>=$D16,AN$9<=$E16),IF(AN15=0,2,1),IF($B16="","",IF($B16=0,0,""))) -> 0 | AO16: =IF(AND(AO$9>=$D16,AO$9<=$E16),IF(AO15=0,2,1),IF($B16="","",IF($B16=0,0,""))) -> 0 | AP16: =IF(AND(AP$9>=$D16,AP$9<=$E16),IF(AP15=0,2,1),IF($B16="","",IF($B16=0,0,""))) -> 0 | AQ16: =IF(AND(AQ$9>=$D16,AQ$9<=$E16),IF(AQ15=0,2,1),IF($B16="","",IF($B16=0,0,""))) -> 0 | AR16: =IF(AND(AR$9>=$D16,AR$9<=$E16),IF(AR15=0,2,1),IF($B16="","",IF($B16=0,0,""))) -> 0 | AS16: =IF(AND(AS$9>=$D16,AS$9<=$E16),IF(AS15=0,2,1),IF($B16="","",IF($B16=0,0,""))) -> 0 | AT16: =IF(AND(AT$9>=$D16,AT$9<=$E16),IF(AT15=0,2,1),IF($B16="","",IF($B16=0,0,""))) -> 0 | AU16: =IF(AND(AU$9>=$D16,AU$9<=$E16),IF(AU15=0,2,1),IF($B16="","",IF($B16=0,0,""))) -> 0 | AV16: =IF(AND(AV$9>=$D16,AV$9<=$E16),IF(AV15=0,2,1),IF($B16="","",IF($B16=0,0,""))) -> 0 | AW16: =IF(AND(AW$9>=$D16,AW$9<=$E16),IF(AW15=0,2,1),IF($B16="","",IF($B16=0,0,""))) -> 0 | AX16: =IF(AND(AX$9>=$D16,AX$9<=$E16),IF(AX15=0,2,1),IF($B16="","",IF($B16=0,0,""))) -> 0 | AY16: =IF(AND(AY$9>=$D16,AY$9<=$E16),IF(AY15=0,2,1),IF($B16="","",IF($B16=0,0,""))) -> 0 | AZ16: =IF(AND(AZ$9>=$D16,AZ$9<=$E16),IF(AZ15=0,2,1),IF($B16="","",IF($B16=0,0,""))) -> 0 | BA16: =IF(AND(BA$9>=$D16,BA$9<=$E16),IF(BA15=0,2,1),IF($B16="","",IF($B16=0,0,""))) -> 0 | BB16: =IF(AND(BB$9>=$D16,BB$9<=$E16),IF(BB15=0,2,1),IF($B16="","",IF($B16=0,0,""))) -> 0 | BC16: =IF(AND(BC$9>=$D16,BC$9<=$E16),IF(BC15=0,2,1),IF($B16="","",IF($B16=0,0,""))) -> 0 | BD16: =IF(AND(BD$9>=$D16,BD$9<=$E16),IF(BD15=0,2,1),IF($B16="","",IF($B16=0,0,""))) -> 0 | BE16: =IF(AND(BE$9>=$D16,BE$9<=$E16),IF(BE15=0,2,1),IF($B16="","",IF($B16=0,0,""))) -> 0 | BF16: =IF(AND(BF$9>=$D16,BF$9<=$E16),IF(BF15=0,2,1),IF($B16="","",IF($B16=0,0,""))) -> 0 | BG16: =IF(AND(BG$9>=$D16,BG$9<=$E16),IF(BG15=0,2,1),IF($B16="","",IF($B16=0,0,""))) -> 0 | BH16: =IF(AND(BH$9>=$D16,BH$9<=$E16),IF(BH15=0,2,1),IF($B16="","",IF($B16=0,0,""))) -> 0 | BI16: =IF(AND(BI$9>=$D16,BI$9<=$E16),IF(BI15=0,2,1),IF($B16="","",IF($B16=0,0,""))) -> 0 | BJ16: =IF(AND(BJ$9>=$D16,BJ$9<=$E16),IF(BJ15=0,2,1),IF($B16="","",IF($B16=0,0,""))) -> 0 | BK16: 0 | BL16: 0 | BM16: 0 | BN16: 0 | BO16: 0
B17: Phase 2 | C17: =IF(OR(B17="",B17=0),"",MAX(C$7:C16)+1) -> 6 | F17: =IF(L17<>0,L17,IF(K17<>0,E17-D17,"")) -> 
B18: Etape 5 | C18: =IF(OR(B18="",B18=0),"",MAX(C$7:C17)+1) -> 7
B19: Etape 6 | C19: =IF(OR(B19="",B19=0),"",MAX(C$7:C18)+1) -> 8
C20: =IF(OR(B20="",B20=0),"",MAX(C$7:C19)+1) -> 
C21: =IF(OR(B21="",B21=0),"",MAX(C$7:C20)+1) -> 
C22: =IF(OR(B22="",B22=0),"",MAX(C$7:C21)+1) -> 
C23: =IF(OR(B23="",B23=0),"",MAX(C$7:C22)+1) -> 
C24: =IF(OR(B24="",B24=0),"",MAX(C$7:C23)+1) -> 
C25: =IF(OR(B25="",B25=0),"",MAX(C$7:C24)+1) -> 
C26: =IF(OR(B26="",B26=0),"",MAX(C$7:C25)+1) -> 
C27: =IF(OR(B27="",B27=0),"",MAX(C$7:C26)+1) -> 
C28: =IF(OR(B28="",B28=0),"",MAX(C$7:C27)+1) -> 
C29: =IF(OR(B29="",B29=0),"",MAX(C$7:C28)+1) -> 
C30: =IF(OR(B30="",B30=0),"",MAX(C$7:C29)+1) -> 
C31: =IF(OR(B31="",B31=0),"",MAX(C$7:C30)+1) -> 
C32: =IF(OR(B32="",B32=0),"",MAX(C$7:C31)+1) -> 
C33: =IF(OR(B33="",B33=0),"",MAX(C$7:C32)+1) -> 
C34: =IF(OR(B34="",B34=0),"",MAX(C$7:C33)+1) -> 
C35: =IF(OR(B35="",B35=0),"",MAX(C$7:C34)+1) ->  | D35: =IF(J35<>0,J35,IF(AND(K35<>0,L35<>0),K35-L35,IF(H35<>0,VLOOKUP(H35,C:E,3,FALSE)+I35,""))) ->  | E35: =IF(K35<>0,K35,IF(L35<>0,D35+F35,"")) ->  | F35: =IF(L35<>0,L35,IF(K35<>0,E35-D35,"")) -> 
C36: =IF(OR(B36="",B36=0),"",MAX(C$7:C35)+1) -> 
C37: =IF(OR(B37="",B37=0),"",MAX(C$7:C36)+1) -> 
C38: =IF(OR(B38="",B38=0),"",MAX(C$7:C37)+1) -> 
C39: =IF(OR(B39="",B39=0),"",MAX(C$7:C38)+1) -> 
C40: =IF(OR(B40="",B40=0),"",MAX(C$7:C39)+1) -> 
C41: =IF(OR(B41="",B41=0),"",MAX(C$7:C40)+1) -> 
C42: =IF(OR(B42="",B42=0),"",MAX(C$7:C41)+1) -> 
C43: =IF(OR(B43="",B43=0),"",MAX(C$7:C42)+1) -> 
C44: =IF(OR(B44="",B44=0),"",MAX(C$7:C43)+1) -> 
C45: =IF(OR(B45="",B45=0),"",MAX(C$7:C44)+1) -> 
C46: =IF(OR(B46="",B46=0),"",MAX(C$7:C45)+1) -> 
C47: =IF(OR(B47="",B47=0),"",MAX(C$7:C46)+1) -> 
C48: =IF(OR(B48="",B48=0),"",MAX(C$7:C47)+1) -> 
C49: =IF(OR(B49="",B49=0),"",MAX(C$7:C48)+1) -> 
C50: =IF(OR(B50="",B50=0),"",MAX(C$7:C49)+1) -> 
C51: =IF(OR(B51="",B51=0),"",MAX(C$7:C50)+1) -> 
C52: =IF(OR(B52="",B52=0),"",MAX(C$7:C51)+1) -> 
C53: =IF(OR(B53="",B53=0),"",MAX(C$7:C52)+1) -> 
C54: =IF(OR(B54="",B54=0),"",MAX(C$7:C53)+1) -> 
C55: =IF(OR(B55="",B55=0),"",MAX(C$7:C54)+1) -> 
C56: =IF(OR(B56="",B56=0),"",MAX(C$7:C55)+1) -> 
C57: =IF(OR(B57="",B57=0),"",MAX(C$7:C56)+1) -> 
C58: =IF(OR(B58="",B58=0),"",MAX(C$7:C57)+1) -> 
C59: =IF(OR(B59="",B59=0),"",MAX(C$7:C58)+1) -> 
C60: =IF(OR(B60="",B60=0),"",MAX(C$7:C59)+1) -> 
C61: =IF(OR(B61="",B61=0),"",MAX(C$7:C60)+1) -> 
C62: =IF(OR(B62="",B62=0),"",MAX(C$7:C61)+1) ->  | D62: =IF(J62<>0,J62,IF(AND(K62<>0,L62<>0),K62-L62,IF(H62<>0,VLOOKUP(H62,C:E,3,FALSE)+I62,""))) ->  | E62: =IF(K62<>0,K62,IF(L62<>0,D62+F62,"")) ->  | F62: =IF(L62<>0,L62,IF(K62<>0,E62-D62,"")) -> 
C63: =IF(OR(B63="",B63=0),"",MAX(C$7:C62)+1) -> 
C64: =IF(OR(B64="",B64=0),"",MAX(C$7:C63)+1) -> 
C65: =IF(OR(B65="",B65=0),"",MAX(C$7:C64)+1) -> 
C66: =IF(OR(B66="",B66=0),"",MAX(C$7:C65)+1) -> 
C67: =IF(OR(B67="",B67=0),"",MAX(C$7:C66)+1) -> 
C68: =IF(OR(B68="",B68=0),"",MAX(C$7:C67)+1) -> 
C69: =IF(OR(B69="",B69=0),"",MAX(C$7:C68)+1) -> 
C70: =IF(OR(B70="",B70=0),"",MAX(C$7:C69)+1) -> 
C71: =IF(OR(B71="",B71=0),"",MAX(C$7:C70)+1) -> 
C72: =IF(OR(B72="",B72=0),"",MAX(C$7:C71)+1) -> 
C73: =IF(OR(B73="",B73=0),"",MAX(C$7:C72)+1) -> 
C74: =IF(OR(B74="",B74=0),"",MAX(C$7:C73)+1) -> 
C75: =IF(OR(B75="",B75=0),"",MAX(C$7:C74)+1) -> 
C76: =IF(OR(B76="",B76=0),"",MAX(C$7:C75)+1) ->  | O76: =IF(AND(O$9>=$D76,O$9<=$E76),IF(O75=0,2,1),IF($B76="","",IF($B76=0,0,""))) -> 
C77: =IF(OR(B77="",B77=0),"",MAX(C$7:C76)+1) -> 
C78: =IF(OR(B78="",B78=0),"",MAX(C$7:C77)+1) -> 
C79: =IF(OR(B79="",B79=0),"",MAX(C$7:C78)+1) -> 
C80: =IF(OR(B80="",B80=0),"",MAX(C$7:C79)+1) ->  | AE80: =IF(AND(AE$9>=$D80,AE$9<=$E80),IF(AE79=0,2,1),IF($B80="","",IF($B80=0,0,""))) -> 
C81: =IF(OR(B81="",B81=0),"",MAX(C$7:C80)+1) -> 
C82: =IF(OR(B82="",B82=0),"",MAX(C$7:C81)+1) -> 
C83: =IF(OR(B83="",B83=0),"",MAX(C$7:C82)+1) -> 
C84: =IF(OR(B84="",B84=0),"",MAX(C$7:C83)+1) -> 
C85: =IF(OR(B85="",B85=0),"",MAX(C$7:C84)+1) -> 
C86: =IF(OR(B86="",B86=0),"",MAX(C$7:C85)+1) ->  | BL86: =IF(AND(BL$9>=$D86,BL$9<=$E86),IF(BL85=0,2,1),IF($B86="","",IF($B86=0,0,""))) -> 
C87: =IF(OR(B87="",B87=0),"",MAX(C$7:C86)+1) ->  | AE87: =IF(AND(AE$9>=$D87,AE$9<=$E87),IF(AE86=0,2,1),IF($B87="","",IF($B87=0,0,""))) -> 
C88: =IF(OR(B88="",B88=0),"",MAX(C$7:C87)+1) -> 
C89: =IF(OR(B89="",B89=0),"",MAX(C$7:C88)+1) -> 
C90: =IF(OR(B90="",B90=0),"",MAX(C$7:C89)+1) -> 
C91: =IF(OR(B91="",B91=0),"",MAX(C$7:C90)+1) -> 
C92: =IF(OR(B92="",B92=0),"",MAX(C$7:C91)+1) ->  | O92: =IF(AND(O$9>=$D92,O$9<=$E92),IF(O91=0,2,1),IF($B92="","",IF($B92=0,0,""))) -> 
C93: =IF(OR(B93="",B93=0),"",MAX(C$7:C92)+1) -> 
C94: =IF(OR(B94="",B94=0),"",MAX(C$7:C93)+1) ->  | BC94: =IF(AND(BC$9>=$D94,BC$9<=$E94),IF(BC93=0,2,1),IF($B94="","",IF($B94=0,0,""))) -> 
C95: =IF(OR(B95="",B95=0),"",MAX(C$7:C94)+1) ->  | AE95: =IF(AND(AE$9>=$D95,AE$9<=$E95),IF(AE94=0,2,1),IF($B95="","",IF($B95=0,0,""))) -> 
C96: =IF(OR(B96="",B96=0),"",MAX(C$7:C95)+1) -> 
C97: =IF(OR(B97="",B97=0),"",MAX(C$7:C96)+1) -> 
C98: =IF(OR(B98="",B98=0),"",MAX(C$7:C97)+1) -> 
C99: =IF(OR(B99="",B99=0),"",MAX(C$7:C98)+1) -> 
C100: =IF(OR(B100="",B100=0),"",MAX(C$7:C99)+1) -> 

Sheet Budget
B5: BUDGET
D7: RECETTES | G7: DEPENSES | K7: Date début | L7: 2013-12-10
B8: INTITULE | C8: CATEGORIES | D8: MONTANT | E8: DATE | G8: MONTANT | H8: DATE
B9: TOTAL | C9: =D9+G9 -> 0 | D9: =SUM(D10:D49) -> 0 | G9: =SUM(G10:G49) -> 0
F10: =IF(E10="","",YEAR(E10)+MONTH(E10)/12) ->  | I10: =IF(H10="","",YEAR(H10)+MONTH(H10)/12) ->  | K10: CATEGORIES | L10: RECETTES | M10: DEPENSES
I11: =IF(H11="","",YEAR(H11)+MONTH(H11)/12) ->  | K11: Cat 1 | L11: =SUMIF(C$10:C$49,K11,D$10:D$49) -> 0 | M11: =SUMIF(C$10:C$49,K11,G$10:G$49) -> 0
K12: Cat 2 | L12: 0 | M12: 0
K13: Cat 3 | L13: 0 | M13: 0
K14: Cat 4 | L14: 0 | M14: 0
K15: Cat 5 | L15: 0 | M15: 0
K16: Cat 6 | L16: 0 | M16: 0
K17: Cat 7 | L17: 0 | M17: 0
F18: =IF(E18="","",YEAR(E18)+MONTH(E18)/12) ->  | K18: Cat 8 | L18: 0 | M18: 0
F19: =IF(E19="","",YEAR(E19)+MONTH(E19)/12) -> 
K29: TRESORERIE | L29: RECETTES | M29: DEPENSES | N29: CUMUL | O29: NEGATIF
K30: =L7 -> 2013-12-10 | L30: =SUMIFS(D$10:D$49,F$10:F$49,YEAR(K30)+MONTH(K30)/12) -> 0 | M30: =SUMIFS(G$10:G$49,I$10:I$49,YEAR(K30)+MONTH(K30)/12) -> 0 | N30: =L30+M30 -> 0 | O30: =M30 -> 0
K31: =EDATE(K30,1) -> 2014-01-10 | L31: 0 | M31: 0 | N31: =N30+L31+M31 -> 0 | O31: =O30+L30+M31 -> 0
K32: =EDATE(K31,1) -> 2014-02-10 | L32: 0 | M32: 0 | N32: =N31+L32+M32 -> 0 | O32: 0
K33: 2014-03-10 | L33: 0 | M33: 0 | N33: 0 | O33: 0
K34: 2014-04-10 | L34: 0 | M34: 0 | N34: 0 | O34: 0
K35: 2014-05-10 | L35: 0 | M35: 0 | N35: 0 | O35: 0
K36: 2014-06-10 | L36: 0 | M36: 0 | N36: 0 | O36: 0
K37: 2014-07-10 | L37: 0 | M37: 0 | N37: 0 | O37: 0
K38: 2014-08-10 | L38: 0 | M38: 0 | N38: 0 | O38: 0
K39: 2014-09-10 | L39: 0 | M39: 0 | N39: 0 | O39: 0
K40: 2014-10-10 | L40: 0 | M40: 0 | N40: 0 | O40: 0
K41: 2014-11-10 | L41: 0 | M41: 0 | N41: 0 | O41: 0
K42: 2014-12-10 | L42: 0 | M42: 0 | N42: 0 | O42: 0
K43: 2015-01-10 | L43: 0 | M43: 0 | N43: 0 | O43: 0

Sheet Synthese
B7: TOTAL | C7: Nombre d'actions réalisées | F7: Nombre d'actions en cours | H7: Nombre d'actions non prévues | J7: Nombre totale d'actions concernées | M7: Nombre totale d'actions | P7: % d'actions prévues réalisées | R7: % d'actions réalisées
B8: Nombre d'actions indispensables | C8: =COUNTIFS(Actions!K:K,"Fait",Actions!G:G,3) -> 0 | F8: =COUNTIFS(Actions!K:K,"En cours",Actions!G:G,3) -> 0 | H8: =COUNTIFS(Actions!I:I,"Non",Actions!G:G,3) -> 0 | J8: =M8-COUNTIFS(Actions!I:I,"NA",Actions!G:G,3) -> 48 | M8: =COUNTIFS(Actions!AW:AW,1,Actions!G:G,3) -> 48 | P8: =IF((J8-H8)=0,"",C8/(J8-H8)) -> 0 | R8: =IF(J8=0,"",C8/J8) -> 0
B9: Nombre d'actions supplémentaires | C9: =COUNTIFS(Actions!K:K,"Fait",Actions!G:G,1)+COUNTIFS(Actions!K:K,"Fait",Actions!G:G,2) -> 0 | F9: =COUNTIFS(Actions!K:K,"En cours",Actions!G:G,1)+COUNTIFS(Actions!K:K,"En cours",Actions!G:G,2) -> 0 | H9: =COUNTIFS(Actions!I:I,"Non",Actions!G:G,1)+COUNTIFS(Actions!I:I,"Non",Actions!G:G,2) -> 0 | J9: =M9-COUNTIFS(Actions!I:I,"NA",Actions!G:G,1)-COUNTIFS(Actions!I:I,"NA",Actions!G:G,2) -> 0 | M9: =COUNTIFS(Actions!AW:AW,1,Actions!G:G,1)+COUNTIFS(Actions!AW:AW,1,Actions!G:G,2) -> 0 | P9: =IF((J9-H9)=0,"",C9/(J9-H9)) ->  | R9: =IF(J9=0,"",C9/J9) -> 
B11: SOUS -THEMES | C11: Nombre d'actions réalisées | D11: Nombre d'actions indispensables réalisées | E11: Nombre d'actions importantes réalisées | F11: Nombre d'actions en cours | G11: Nombre d'actions indispensables en cours | H11: Nombre d'actions non prévues | I11: Nombre d'actions indispensables non prévues | J11: Nombre totale d'actions concernées | K11: Nombre totale d'actions indispensables concernées | L11: Nombre totale d'actions importantes concernées | M11: Nombre totale d'actions | N11: Nombre totale d'actions indispensables | O11: Nombre totale d'actions importantes | P11: % d'actions indispensables réalisées | Q11: % d'actions importantes réalisées | R11: % d'actions réalisées
B13: ANCRAGE TERRITORIAL | C13: =COUNTIFS(Actions!K:K,"Fait",Actions!B:B,B13) -> 0 | D13: =COUNTIFS(Actions!K:K,"Fait",Actions!B:B,B13,Actions!G:G,3) -> 0 | E13: =COUNTIFS(Actions!K:K,"Fait",Actions!B:B,B13,Actions!G:G,3)+COUNTIFS(Actions!K:K,"Fait",Actions!B:B,B13,Actions!G:G,2) -> 0 | F13: =COUNTIFS(Actions!K:K,"En cours",Actions!B:B,B13) -> 0 | G13: =COUNTIFS(Actions!K:K,"En cours",Actions!G:G,3,Actions!B:B,B13) -> 0 | H13: =COUNTIFS(Actions!I:I,"Non",Actions!B:B,B13) -> 0 | I13: =COUNTIFS(Actions!I:I,"Non",Actions!G:G,3,Actions!B:B,B13) -> 0 | J13: =M13-COUNTIFS(Actions!I:I,"NA",Actions!B:B,B13) -> 2 | K13: =N13-COUNTIFS(Actions!I:I,"NA",Actions!G:G,3,Actions!B:B,B13) -> 2 | L13: =O13-COUNTIFS(Actions!I:I,"NA",Actions!G:G,3,Actions!B:B,B13)-COUNTIFS(Actions!I:I,"NA",Actions!G:G,2,Actions!B:B,B13) -> 2 | M13: =COUNTIFS(Actions!AW:AW,1,Actions!B:B,B13) -> 2 | N13: =COUNTIFS(Actions!AW:AW,1,Actions!G:G,3,Actions!B:B,B13) -> 2 | O13: =COUNTIFS(Actions!AW:AW,1,Actions!G:G,3,Actions!B:B,B13)+COUNTIFS(Actions!AW:AW,1,Actions!G:G,2,Actions!B:B,B13) -> 2 | P13: =IF(K13=0,0,D13/K13) -> 0 | Q13: =IF(L13=0,0,E13/L13) -> 0 | R13: =IF(J13=0,0,C13/J13) -> 0
B14: Contextualisation de l'événement | C14: =COUNTIFS(Actions!K:K,"Fait",Actions!C:C,B14) -> 0 | D14: =COUNTIFS(Actions!K:K,"Fait",Actions!C:C,B14,Actions!G:G,3) -> 0 | E14: =COUNTIFS(Actions!K:K,"Fait",Actions!C:C,B14,Actions!G:G,3)+COUNTIFS(Actions!K:K,"Fait",Actions!C:C,B14,Actions!G:G,2) -> 0 | F14: =COUNTIFS(Actions!K:K,"En cours",Actions!C:C,B14) -> 0 | G14: =COUNTIFS(Actions!K:K,"En cours",Actions!G:G,3,Actions!C:C,B14) -> 0 | H14: =COUNTIFS(Actions!I:I,"Non",Actions!C:C,B14) -> 0 | I14: =COUNTIFS(Actions!I:I,"Non",Actions!G:G,3,Actions!C:C,B14) -> 0 | J14: =M14-COUNTIFS(Actions!I:I,"NA",Actions!C:C,B14) -> 0 | K14: =N14-COUNTIFS(Actions!I:I,"NA",Actions!G:G,3,Actions!C:C,B14) -> 0 | L14: =O14-COUNTIFS(Actions!I:I,"NA",Actions!G:G,3,Actions!C:C,B14)-COUNTIFS(Actions!I:I,"NA",Actions!G:G,2,Actions!C:C,B14) -> 0 | M14: =COUNTIFS(Actions!AW:AW,1,Actions!C:C,B14) -> 0 | N14: =COUNTIFS(Actions!AW:AW,1,Actions!G:G,3,Actions!C:C,B14) -> 0 | O14: =COUNTIFS(Actions!AW:AW,1,Actions!G:G,3,Actions!C:C,B14)+COUNTIFS(Actions!AW:AW,1,Actions!G:G,2,Actions!C:C,B14) -> 0 | P14: =IF(K14=0,"",D14/K14) ->  | Q14: =IF(L14=0,"",E14/L14) ->  | R14: =IF(J14=0,"",C14/J14) -> 
B15: Economie locale | C15: =COUNTIFS(Actions!K:K,"Fait",Actions!C:C,B15) -> 0 | D15: =COUNTIFS(Actions!K:K,"Fait",Actions!C:C,B15,Actions!G:G,3) -> 0 | E15: =COUNTIFS(Actions!K:K,"Fait",Actions!C:C,B15,Actions!G:G,3)+COUNTIFS(Actions!K:K,"Fait",Actions!C:C,B15,Actions!G:G,2) -> 0 | F15: =COUNTIFS(Actions!K:K,"En cours",Actions!C:C,B15) -> 0 | G15: =COUNTIFS(Actions!K:K,"En cours",Actions!G:G,3,Actions!C:C,B15) -> 0 | H15: =COUNTIFS(Actions!I:I,"Non",Actions!C:C,B15) -> 0 | I15: =COUNTIFS(Actions!I:I,"Non",Actions!G:G,3,Actions!C:C,B15) -> 0 | J15: =M15-COUNTIFS(Actions!I:I,"NA",Actions!C:C,B15) -> 1 | K15: =N15-COUNTIFS(Actions!I:I,"NA",Actions!G:G,3,Actions!C:C,B15) -> 1 | L15: =O15-COUNTIFS(Actions!I:I,"NA",Actions!G:G,3,Actions!C:C,B15)-COUNTIFS(Actions!I:I,"NA",Actions!G:G,2,Actions!C:C,B15) -> 1 | M15: =COUNTIFS(Actions!AW:AW,1,Actions!C:C,B15) -> 1 | N15: =COUNTIFS(Actions!AW:AW,1,Actions!G:G,3,Actions!C:C,B15) -> 1 | O15: =COUNTIFS(Actions!AW:AW,1,Actions!G:G,3,Actions!C:C,B15)+COUNTIFS(Actions!AW:AW,1,Actions!G:G,2,Actions!C:C,B15) -> 1 | P15: =IF(K15=0,"",D15/K15) -> 0 | Q15: 0 | R15: 0
B16: Identification des enjeux locaux | C16: =COUNTIFS(Actions!K:K,"Fait",Actions!C:C,B16) -> 0 | D16: =COUNTIFS(Actions!K:K,"Fait",Actions!C:C,B16,Actions!G:G,3) -> 0 | E16: =COUNTIFS(Actions!K:K,"Fait",Actions!C:C,B16,Actions!G:G,3)+COUNTIFS(Actions!K:K,"Fait",Actions!C:C,B16,Actions!G:G,2) -> 0 | F16: =COUNTIFS(Actions!K:K,"En cours",Actions!C:C,B16) -> 0 | G16: =COUNTIFS(Actions!K:K,"En cours",Actions!G:G,3,Actions!C:C,B16) -> 0 | H16: =COUNTIFS(Actions!I:I,"Non",Actions!C:C,B16) -> 0 | I16: =COUNTIFS(Actions!I:I,"Non",Actions!G:G,3,Actions!C:C,B16) -> 0 | J16: =M16-COUNTIFS(Actions!I:I,"NA",Actions!C:C,B16) -> 1 | K16: =N16-COUNTIFS(Actions!I:I,"NA",Actions!G:G,3,Actions!C:C,B16) -> 1 | L16: =O16-COUNTIFS(Actions!I:I,"NA",Actions!G:G,3,Actions!C:C,B16)-COUNTIFS(Actions!I:I,"NA",Actions!G:G,2,Actions!C:C,B16) -> 1 | M16: =COUNTIFS(Actions!AW:AW,1,Actions!C:C,B16) -> 1 | N16: =COUNTIFS(Actions!AW:AW,1,Actions!G:G,3,Actions!C:C,B16) -> 1 | O16: =COUNTIFS(Actions!AW:AW,1,Actions!G:G,3,Actions!C:C,B16)+COUNTIFS(Actions!AW:AW,1,Actions!G:G,2,Actions!C:C,B16) -> 1 | P16: =IF(K16=0,"",D16/K16) -> 0 | Q16: 0 | R16: 0
B18: BIODIVERSITE | C18: =COUNTIFS(Actions!K:K,"Fait",Actions!B:B,B18) -> 0 | D18: =COUNTIFS(Actions!K:K,"Fait",Actions!B:B,B18,Actions!G:G,3) -> 0 | E18: =COUNTIFS(Actions!K:K,"Fait",Actions!B:B,B18,Actions!G:G,3)+COUNTIFS(Actions!K:K,"Fait",Actions!B:B,B18,Actions!G:G,2) -> 0 | F18: =COUNTIFS(Actions!K:K,"En cours",Actions!B:B,B18) -> 0 | G18: =COUNTIFS(Actions!K:K,"En cours",Actions!G:G,3,Actions!B:B,B18) -> 0 | H18: =COUNTIFS(Actions!I:I,"Non",Actions!B:B,B18) -> 0 | I18: =COUNTIFS(Actions!I:I,"Non",Actions!G:G,3,Actions!B:B,B18) -> 0 | J18: =M18-COUNTIFS(Actions!I:I,"NA",Actions!B:B,B18) -> 3 | K18: =N18-COUNTIFS(Actions!I:I,"NA",Actions!G:G,3,Actions!B:B,B18) -> 3 | L18: =O18-COUNTIFS(Actions!I:I,"NA",Actions!G:G,3,Actions!B:B,B18)-COUNTIFS(Actions!I:I,"NA",Actions!G:G,2,Actions!B:B,B18) -> 3 | M18: =COUNTIFS(Actions!AW:AW,1,Actions!B:B,B18) -> 3 | N18: =COUNTIFS(Actions!AW:AW,1,Actions!G:G,3,Actions!B:B,B18) -> 3 | O18: =COUNTIFS(Actions!AW:AW,1,Actions!G:G,3,Actions!B:B,B18)+COUNTIFS(Actions!AW:AW,1,Actions!G:G,2,Actions!B:B,B18) -> 3 | P18: =IF(K18=0,0,D18/K18) -> 0 | Q18: =IF(L18=0,0,E18/L18) -> 0 | R18: =IF(J18=0,0,C18/J18) -> 0
B19: Education à l'environnement | C19: =COUNTIFS(Actions!K:K,"Fait",Actions!C:C,B19) -> 0 | D19: =COUNTIFS(Actions!K:K,"Fait",Actions!C:C,B19,Actions!G:G,3) -> 0 | E19: =COUNTIFS(Actions!K:K,"Fait",Actions!C:C,B19,Actions!G:G,3)+COUNTIFS(Actions!K:K,"Fait",Actions!C:C,B19,Actions!G:G,2) -> 0 | F19: =COUNTIFS(Actions!K:K,"En cours",Actions!C:C,B19) -> 0 | G19: =COUNTIFS(Actions!K:K,"En cours",Actions!G:G,3,Actions!C:C,B19) -> 0 | H19: =COUNTIFS(Actions!I:I,"Non",Actions!C:C,B19) -> 0 | I19: =COUNTIFS(Actions!I:I,"Non",Actions!G:G,3,Actions!C:C,B19) -> 0 | J19: =M19-COUNTIFS(Actions!I:I,"NA",Actions!C:C,B19) -> 0 | K19: =N19-COUNTIFS(Actions!I:I,"NA",Actions!G:G,3,Actions!C:C,B19) -> 0 | L19: =O19-COUNTIFS(Actions!I:I,"NA",Actions!G:G,3,Actions!C:C,B19)-COUNTIFS(Actions!I:I,"NA",Actions!G:G,2,Actions!C:C,B19) -> 0 | M19: =COUNTIFS(Actions!AW:AW,1,Actions!C:C,B19) -> 0 | N19: =COUNTIFS(Actions!AW:AW,1,Actions!G:G,3,Actions!C:C,B19) -> 0 | O19: =COUNTIFS(Actions!AW:AW,1,Actions!G:G,3,Actions!C:C,B19)+COUNTIFS(Actions!AW:AW,1,Actions!G:G,2,Actions!C:C,B19) -> 0 | P19: =IF(K19=0,"",D19/K19) ->  | Q19: =IF(L19=0,"",E19/L19) -> 
B20: Gestion du lieu naturel | C20: =COUNTIFS(Actions!K:K,"Fait",Actions!C:C,B20) -> 0 | D20: =COUNTIFS(Actions!K:K,"Fait",Actions!C:C,B20,Actions!G:G,3) -> 0 | E20: =COUNTIFS(Actions!K:K,"Fait",Actions!C:C,B20,Actions!G:G,3)+COUNTIFS(Actions!K:K,"Fait",Actions!C:C,B20,Actions!G:G,2) -> 0 | F20: =COUNTIFS(Actions!K:K,"En cours",Actions!C:C,B20) -> 0 | G20: =COUNTIFS(Actions!K:K,"En cours",Actions!G:G,3,Actions!C:C,B20) -> 0 | H20: =COUNTIFS(Actions!I:I,"Non",Actions!C:C,B20) -> 0 | I20: =COUNTIFS(Actions!I:I,"Non",Actions!G:G,3,Actions!C:C,B20) -> 0 | J20: =M20-COUNTIFS(Actions!I:I,"NA",Actions!C:C,B20) -> 2 | K20: =N20-COUNTIFS(Actions!I:I,"NA",Actions!G:G,3,Actions!C:C,B20) -> 2 | L20: =O20-COUNTIFS(Actions!I:I,"NA",Actions!G:G,3,Actions!C:C,B20)-COUNTIFS(Actions!I:I,"NA",Actions!G:G,2,Actions!C:C,B20) -> 2 | M20: =COUNTIFS(Actions!AW:AW,1,Actions!C:C,B20) -> 2 | N20: =COUNTIFS(Actions!AW:AW,1,Actions!G:G,3,Actions!C:C,B20) -> 2 | O20: =COUNTIFS(Actions!AW:AW,1,Actions!G:G,3,Actions!C:C,B20)+COUNTIFS(Actions!AW:AW,1,Actions!G:G,2,Actions!C:C,B20) -> 2 | P20: =IF(K20=0,"",D20/K20) -> 0 | Q20: 0 | R20: 0
B21: Impact dans la chaîne de valeur | C21: =COUNTIFS(Actions!K:K,"Fait",Actions!C:C,B21) -> 0 | D21: =COUNTIFS(Actions!K:K,"Fait",Actions!C:C,B21,Actions!G:G,3) -> 0 | E21: =COUNTIFS(Actions!K:K,"Fait",Actions!C:C,B21,Actions!G:G,3)+COUNTIFS(Actions!K:K,"Fait",Actions!C:C,B21,Actions!G:G,2) -> 0 | F21: =COUNTIFS(Actions!K:K,"En cours",Actions!C:C,B21) -> 0 | G21: =COUNTIFS(Actions!K:K,"En cours",Actions!G:G,3,Actions!C:C,B21) -> 0 | H21: =COUNTIFS(Actions!I:I,"Non",Actions!C:C,B21) -> 0 | I21: =COUNTIFS(Actions!I:I,"Non",Actions!G:G,3,Actions!C:C,B21) -> 0 | J21: =M21-COUNTIFS(Actions!I:I,"NA",Actions!C:C,B21) -> 1 | K21: =N21-COUNTIFS(Actions!I:I,"NA",Actions!G:G,3,Actions!C:C,B21) -> 1 | L21: =O21-COUNTIFS(Actions!I:I,"NA",Actions!G:G,3,Actions!C:C,B21)-COUNTIFS(Actions!I:I,"NA",Actions!G:G,2,Actions!C:C,B21) -> 1 | M21: =COUNTIFS(Actions!AW:AW,1,Actions!C:C,B21) -> 1 | N21: =COUNTIFS(Actions!AW:AW,1,Actions!G:G,3,Actions!C:C,B21) -> 1 | O21: =COUNTIFS(Actions!AW:AW,1,Actions!G:G,3,Actions!C:C,B21)+COUNTIFS(Actions!AW:AW,1,Actions!G:G,2,Actions!C:C,B21) -> 1 | P21: =IF(K21=0,"",D21/K21) -> 0 | Q21: 0 | R21: 0
B22: Impact sur l'éco système | C22: =COUNTIFS(Actions!K:K,"Fait",Actions!C:C,B22) -> 0 | D22: =COUNTIFS(Actions!K:K,"Fait",Actions!C:C,B22,Actions!G:G,3) -> 0 | E22: =COUNTIFS(Actions!K:K,"Fait",Actions!C:C,B22,Actions!G:G,3)+COUNTIFS(Actions!K:K,"Fait",Actions!C:C,B22,Actions!G:G,2) -> 0 | F22: =COUNTIFS(Actions!K:K,"En cours",Actions!C:C,B22) -> 0 | G22: =COUNTIFS(Actions!K:K,"En cours",Actions!G:G,3,Actions!C:C,B22) -> 0 | H22: =COUNTIFS(Actions!I:I,"Non",Actions!C:C,B22) -> 0 | I22: =COUNTIFS(Actions!I:I,"Non",Actions!G:G,3,Actions!C:C,B22) -> 0 | J22: =M22-COUNTIFS(Actions!I:I,"NA",Actions!C:C,B22) -> 0 | K22: =N22-COUNTIFS(Actions!I:I,"NA",Actions!G:G,3,Actions!C:C,B22) -> 0 | L22: =O22-COUNTIFS(Actions!I:I,"NA",Actions!G:G,3,Actions!C:C,B22)-COUNTIFS(Actions!I:I,"NA",Actions!G:G,2,Actions!C:C,B22) -> 0 | M22: =COUNTIFS(Actions!AW:AW,1,Actions!C:C,B22) -> 0 | N22: =COUNTIFS(Actions!AW:AW,1,Actions!G:G,3,Actions!C:C,B22) -> 0 | O22: =COUNTIFS(Actions!AW:AW,1,Actions!G:G,3,Actions!C:C,B22)+COUNTIFS(Actions!AW:AW,1,Actions!G:G,2,Actions!C:C,B22) -> 0 | P22: =IF(K22=0,"",D22/K22) -> 
B24: CULTURE | C24: =COUNTIFS(Actions!K:K,"Fait",Actions!B:B,B24) -> 0 | D24: =COUNTIFS(Actions!K:K,"Fait",Actions!B:B,B24,Actions!G:G,3) -> 0 | E24: =COUNTIFS(Actions!K:K,"Fait",Actions!B:B,B24,Actions!G:G,3)+COUNTIFS(Actions!K:K,"Fait",Actions!B:B,B24,Actions!G:G,2) -> 0 | F24: =COUNTIFS(Actions!K:K,"En cours",Actions!B:B,B24) -> 0 | G24: =COUNTIFS(Actions!K:K,"En cours",Actions!G:G,3,Actions!B:B,B24) -> 0 | H24: =COUNTIFS(Actions!I:I,"Non",Actions!B:B,B24) -> 0 | I24: =COUNTIFS(Actions!I:I,"Non",Actions!G:G,3,Actions!B:B,B24) -> 0 | J24: =M24-COUNTIFS(Actions!I:I,"NA",Actions!B:B,B24) -> 2 | K24: =N24-COUNTIFS(Actions!I:I,"NA",Actions!G:G,3,Actions!B:B,B24) -> 2 | L24: =O24-COUNTIFS(Actions!I:I,"NA",Actions!G:G,3,Actions!B:B,B24)-COUNTIFS(Actions!I:I,"NA",Actions!G:G,2,Actions!B:B,B24) -> 2 | M24: =COUNTIFS(Actions!AW:AW,1,Actions!B:B,B24) -> 2 | N24: =COUNTIFS(Actions!AW:AW,1,Actions!G:G,3,Actions!B:B,B24) -> 2 | O24: =COUNTIFS(Actions!AW:AW,1,Actions!G:G,3,Actions!B:B,B24)+COUNTIFS(Actions!AW:AW,1,Actions!G:G,2,Actions!B:B,B24) -> 2 | P24: =IF(K24=0,0,D24/K24) -> 0 | Q24: =IF(L24=0,0,E24/L24) -> 0 | R24: =IF(J24=0,0,C24/J24) -> 0
B25: Apport culturel | C25: =COUNTIFS(Actions!K:K,"Fait",Actions!C:C,B25) -> 0 | D25: =COUNTIFS(Actions!K:K,"Fait",Actions!C:C,B25,Actions!G:G,3) -> 0 | E25: =COUNTIFS(Actions!K:K,"Fait",Actions!C:C,B25,Actions!G:G,3)+COUNTIFS(Actions!K:K,"Fait",Actions!C:C,B25,Actions!G:G,2) -> 0 | F25: =COUNTIFS(Actions!K:K,"En cours",Actions!C:C,B25) -> 0 | G25: =COUNTIFS(Actions!K:K,"En cours",Actions!G:G,3,Actions!C:C,B25) -> 0 | H25: =COUNTIFS(Actions!I:I,"Non",Actions!C:C,B25) -> 0 | I25: =COUNTIFS(Actions!I:I,"Non",Actions!G:G,3,Actions!C:C,B25) -> 0 | J25: =M25-COUNTIFS(Actions!I:I,"NA",Actions!C:C,B25) -> 2 | K25: =N25-COUNTIFS(Actions!I:I,"NA",Actions!G:G,3,Actions!C:C,B25) -> 2 | L25: =O25-COUNTIFS(Actions!I:I,"NA",Actions!G:G,3,Actions!C:C,B25)-COUNTIFS(Actions!I:I,"NA",Actions!G:G,2,Actions!C:C,B25) -> 2 | M25: =COUNTIFS(Actions!AW:AW,1,Actions!C:C,B25) -> 2 | N25: =COUNTIFS(Actions!AW:AW,1,Actions!G:G,3,Actions!C:C,B25) -> 2 | O25: =COUNTIFS(Actions!AW:AW,1,Actions!G:G,3,Actions!C:C,B25)+COUNTIFS(Actions!AW:AW,1,Actions!G:G,2,Actions!C:C,B25) -> 2 | P25: =IF(K25=0,"",D25/K25) -> 0 | Q25: =IF(L25=0,"",E25/L25) -> 0 | R25: 0
B26: Echanges culturels | C26: =COUNTIFS(Actions!K:K,"Fait",Actions!C:C,B26) -> 0 | D26: =COUNTIFS(Actions!K:K,"Fait",Actions!C:C,B26,Actions!G:G,3) -> 0 | E26: =COUNTIFS(Actions!K:K,"Fait",Actions!C:C,B26,Actions!G:G,3)+COUNTIFS(Actions!K:K,"Fait",Actions!C:C,B26,Actions!G:G,2) -> 0 | F26: =COUNTIFS(Actions!K:K,"En cours",Actions!C:C,B26) -> 0 | G26: =COUNTIFS(Actions!K:K,"En cours",Actions!G:G,3,Actions!C:C,B26) -> 0 | H26: =COUNTIFS(Actions!I:I,"Non",Actions!C:C,B26) -> 0 | I26: =COUNTIFS(Actions!I:I,"Non",Actions!G:G,3,Actions!C:C,B26) -> 0 | J26: =M26-COUNTIFS(Actions!I:I,"NA",Actions!C:C,B26) -> 0 | K26: =N26-COUNTIFS(Actions!I:I,"NA",Actions!G:G,3,Actions!C:C,B26) -> 0 | L26: =O26-COUNTIFS(Actions!I:I,"NA",Actions!G:G,3,Actions!C:C,B26)-COUNTIFS(Actions!I:I,"NA",Actions!G:G,2,Actions!C:C,B26) -> 0 | M26: =COUNTIFS(Actions!AW:AW,1,Actions!C:C,B26) -> 0 | N26: =COUNTIFS(Actions!AW:AW,1,Actions!G:G,3,Actions!C:C,B26) -> 0 | O26: =COUNTIFS(Actions!AW:AW,1,Actions!G:G,3,Actions!C:C,B26)+COUNTIFS(Actions!AW:AW,1,Actions!G:G,2,Actions!C:C,B26) -> 0 | P26: =IF(K26=0,"",D26/K26) -> 
B27: Sensibilisation au développement durable | C27: =COUNTIFS(Actions!K:K,"Fait",Actions!C:C,B27) -> 0 | D27: =COUNTIFS(Actions!K:K,"Fait",Actions!C:C,B27,Actions!G:G,3) -> 0 | E27: =COUNTIFS(Actions!K:K,"Fait",Actions!C:C,B27,Actions!G:G,3)+COUNTIFS(Actions!K:K,"Fait",Actions!C:C,B27,Actions!G:G,2) -> 0 | F27: =COUNTIFS(Actions!K:K,"En cours",Actions!C:C,B27) -> 0 | G27: =COUNTIFS(Actions!K:K,"En cours",Actions!G:G,3,Actions!C:C,B27) -> 0 | H27: =COUNTIFS(Actions!I:I,"Non",Actions!C:C,B27) -> 0 | I27: =COUNTIFS(Actions!I:I,"Non",Actions!G:G,3,Actions!C:C,B27) -> 0 | J27: =M27-COUNTIFS(Actions!I:I,"NA",Actions!C:C,B27) -> 0 | K27: =N27-COUNTIFS(Actions!I:I,"NA",Actions!G:G,3,Actions!C:C,B27) -> 0 | L27: =O27-COUNTIFS(Actions!I:I,"NA",Actions!G:G,3,Actions!C:C,B27)-COUNTIFS(Actions!I:I,"NA",Actions!G:G,2,Actions!C:C,B27) -> 0 | M27: =COUNTIFS(Actions!AW:AW,1,Actions!C:C,B27) -> 0 | N27: =COUNTIFS(Actions!AW:AW,1,Actions!G:G,3,Actions!C:C,B27) -> 0 | O27: =COUNTIFS(Actions!AW:AW,1,Actions!G:G,3,Actions!C:C,B27)+COUNTIFS(Actions!AW:AW,1,Actions!G:G,2,Actions!C:C,B27) -> 0 | P27: =IF(K27=0,"",D27/K27) -> 
B29: ECONOMIE | C29: =COUNTIFS(Actions!K:K,"Fait",Actions!B:B,B29) -> 0 | D29: =COUNTIFS(Actions!K:K,"Fait",Actions!B:B,B29,Actions!G:G,3) -> 0 | E29: =COUNTIFS(Actions!K:K,"Fait",Actions!B:B,B29,Actions!G:G,3)+COUNTIFS(Actions!K:K,"Fait",Actions!B:B,B29,Actions!G:G,2) -> 0 | F29: =COUNTIFS(Actions!K:K,"En cours",Actions!B:B,B29) -> 0 | G29: =COUNTIFS(Actions!K:K,"En cours",Actions!G:G,3,Actions!B:B,B29) -> 0 | H29: =COUNTIFS(Actions!I:I,"Non",Actions!B:B,B29) -> 0 | I29: =COUNTIFS(Actions!I:I,"Non",Actions!G:G,3,Actions!B:B,B29) -> 0 | J29: =M29-COUNTIFS(Actions!I:I,"NA",Actions!B:B,B29) -> 4 | K29: =N29-COUNTIFS(Actions!I:I,"NA",Actions!G:G,3,Actions!B:B,B29) -> 4 | L29: =O29-COUNTIFS(Actions!I:I,"NA",Actions!G:G,3,Actions!B:B,B29)-COUNTIFS(Actions!I:I,"NA",Actions!G:G,2,Actions!B:B,B29) -> 4 | M29: =COUNTIFS(Actions!AW:AW,1,Actions!B:B,B29) -> 4 | N29: =COUNTIFS(Actions!AW:AW,1,Actions!G:G,3,Actions!B:B,B29) -> 4 | O29: =COUNTIFS(Actions!AW:AW,1,Actions!G:G,3,Actions!B:B,B29)+COUNTIFS(Actions!AW:AW,1,Actions!G:G,2,Actions!B:B,B29) -> 4 | P29: =IF(K29=0,0,D29/K29) -> 0 | Q29: =IF(L29=0,0,E29/L29) -> 0 | R29: =IF(J29=0,0,C29/J29) -> 0
B30: Gestion du budget | C30: =COUNTIFS(Actions!K:K,"Fait",Actions!C:C,B30) -> 0 | D30: =COUNTIFS(Actions!K:K,"Fait",Actions!C:C,B30,Actions!G:G,3) -> 0 | E30: =COUNTIFS(Actions!K:K,"Fait",Actions!C:C,B30,Actions!G:G,3)+COUNTIFS(Actions!K:K,"Fait",Actions!C:C,B30,Actions!G:G,2) -> 0 | F30: =COUNTIFS(Actions!K:K,"En cours",Actions!C:C,B30) -> 0 | G30: =COUNTIFS(Actions!K:K,"En cours",Actions!G:G,3,Actions!C:C,B30) -> 0 | H30: =COUNTIFS(Actions!I:I,"Non",Actions!C:C,B30) -> 0 | I30: =COUNTIFS(Actions!I:I,"Non",Actions!G:G,3,Actions!C:C,B30) -> 0 | J30: =M30-COUNTIFS(Actions!I:I,"NA",Actions!C:C,B30) -> 2 | K30: =N30-COUNTIFS(Actions!I:I,"NA",Actions!G:G,3,Actions!C:C,B30) -> 2 | L30: =O30-COUNTIFS(Actions!I:I,"NA",Actions!G:G,3,Actions!C:C,B30)-COUNTIFS(Actions!I:I,"NA",Actions!G:G,2,Actions!C:C,B30) -> 2 | M30: =COUNTIFS(Actions!AW:AW,1,Actions!C:C,B30) -> 2 | N30: =COUNTIFS(Actions!AW:AW,1,Actions!G:G,3,Actions!C:C,B30) -> 2 | O30: =COUNTIFS(Actions!AW:AW,1,Actions!G:G,3,Actions!C:C,B30)+COUNTIFS(Actions!AW:AW,1,Actions!G:G,2,Actions!C:C,B30) -> 2 | P30: =IF(K30=0,"",D30/K30) -> 0 | Q30: =IF(L30=0,"",E30/L30) -> 0 | R30: 0
B31: Impacts économiques indirects | C31: =COUNTIFS(Actions!K:K,"Fait",Actions!C:C,B31) -> 0 | D31: =COUNTIFS(Actions!K:K,"Fait",Actions!C:C,B31,Actions!G:G,3) -> 0 | E31: =COUNTIFS(Actions!K:K,"Fait",Actions!C:C,B31,Actions!G:G,3)+COUNTIFS(Actions!K:K,"Fait",Actions!C:C,B31,Actions!G:G,2) -> 0 | F31: =COUNTIFS(Actions!K:K,"En cours",Actions!C:C,B31) -> 0 | G31: =COUNTIFS(Actions!K:K,"En cours",Actions!G:G,3,Actions!C:C,B31) -> 0 | H31: =COUNTIFS(Actions!I:I,"Non",Actions!C:C,B31) -> 0 | I31: =COUNTIFS(Actions!I:I,"Non",Actions!G:G,3,Actions!C:C,B31) -> 0 | J31: =M31-COUNTIFS(Actions!I:I,"NA",Actions!C:C,B31) -> 1 | K31: =N31-COUNTIFS(Actions!I:I,"NA",Actions!G:G,3,Actions!C:C,B31) -> 1 | L31: =O31-COUNTIFS(Actions!I:I,"NA",Actions!G:G,3,Actions!C:C,B31)-COUNTIFS(Actions!I:I,"NA",Actions!G:G,2,Actions!C:C,B31) -> 1 | M31: =COUNTIFS(Actions!AW:AW,1,Actions!C:C,B31) -> 1 | N31: =COUNTIFS(Actions!AW:AW,1,Actions!G:G,3,Actions!C:C,B31) -> 1 | O31: =COUNTIFS(Actions!AW:AW,1,Actions!G:G,3,Actions!C:C,B31)+COUNTIFS(Actions!AW:AW,1,Actions!G:G,2,Actions!C:C,B31) -> 1 | P31: =IF(K31=0,"",D31/K31) -> 0 | Q31: 0 | R31: 0
B32: Investissement juste | C32: =COUNTIFS(Actions!K:K,"Fait",Actions!C:C,B32) -> 0 | D32: =COUNTIFS(Actions!K:K,"Fait",Actions!C:C,B32,Actions!G:G,3) -> 0 | E32: =COUNTIFS(Actions!K:K,"Fait",Actions!C:C,B32,Actions!G:G,3)+COUNTIFS(Actions!K:K,"Fait",Actions!C:C,B32,Actions!G:G,2) -> 0 | F32: =COUNTIFS(Actions!K:K,"En cours",Actions!C:C,B32) -> 0 | G32: =COUNTIFS(Actions!K:K,"En cours",Actions!G:G,3,Actions!C:C,B32) -> 0 | H32: =COUNTIFS(Actions!I:I,"Non",Actions!C:C,B32) -> 0 | I32: =COUNTIFS(Actions!I:I,"Non",Actions!G:G,3,Actions!C:C,B32) -> 0 | J32: =M32-COUNTIFS(Actions!I:I,"NA",Actions!C:C,B32) -> 1 | K32: =N32-COUNTIFS(Actions!I:I,"NA",Actions!G:G,3,Actions!C:C,B32) -> 1 | L32: =O32-COUNTIFS(Actions!I:I,"NA",Actions!G:G,3,Actions!C:C,B32)-COUNTIFS(Actions!I:I,"NA",Actions!G:G,2,Actions!C:C,B32) -> 1 | M32: =COUNTIFS(Actions!AW:AW,1,Actions!C:C,B32) -> 1 | N32: =COUNTIFS(Actions!AW:AW,1,Actions!G:G,3,Actions!C:C,B32) -> 1 | O32: =COUNTIFS(Actions!AW:AW,1,Actions!G:G,3,Actions!C:C,B32)+COUNTIFS(Actions!AW:AW,1,Actions!G:G,2,Actions!C:C,B32) -> 1 | P32: =IF(K32=0,"",D32/K32) -> 0 | Q32: 0 | R32: 0
B33: Rémunération et subordination | C33: =COUNTIFS(Actions!K:K,"Fait",Actions!C:C,B33) -> 0 | D33: =COUNTIFS(Actions!K:K,"Fait",Actions!C:C,B33,Actions!G:G,3) -> 0 | E33: =COUNTIFS(Actions!K:K,"Fait",Actions!C:C,B33,Actions!G:G,3)+COUNTIFS(Actions!K:K,"Fait",Actions!C:C,B33,Actions!G:G,2) -> 0 | F33: =COUNTIFS(Actions!K:K,"En cours",Actions!C:C,B33) -> 0 | G33: =COUNTIFS(Actions!K:K,"En cours",Actions!G:G,3,Actions!C:C,B33) -> 0 | H33: =COUNTIFS(Actions!I:I,"Non",Actions!C:C,B33) -> 0 | I33: =COUNTIFS(Actions!I:I,"Non",Actions!G:G,3,Actions!C:C,B33) -> 0 | J33: =M33-COUNTIFS(Actions!I:I,"NA",Actions!C:C,B33) -> 0 | K33: =N33-COUNTIFS(Actions!I:I,"NA",Actions!G:G,3,Actions!C:C,B33) -> 0 | L33: =O33-COUNTIFS(Actions!I:I,"NA",Actions!G:G,3,Actions!C:C,B33)-COUNTIFS(Actions!I:I,"NA",Actions!G:G,2,Actions!C:C,B33) -> 0 | M33: =COUNTIFS(Actions!AW:AW,1,Actions!C:C,B33) -> 0 | N33: =COUNTIFS(Actions!AW:AW,1,Actions!G:G,3,Actions!C:C,B33) -> 0 | O33: =COUNTIFS(Actions!AW:AW,1,Actions!G:G,3,Actions!C:C,B33)+COUNTIFS(Actions!AW:AW,1,Actions!G:G,2,Actions!C:C,B33) -> 0 | P33: =IF(K33=0,"",D33/K33) -> 
B35: EMPREINTE CARBONE | C35: =COUNTIFS(Actions!K:K,"Fait",Actions!B:B,B35) -> 0 | D35: =COUNTIFS(Actions!K:K,"Fait",Actions!B:B,B35,Actions!G:G,3) -> 0 | E35: =COUNTIFS(Actions!K:K,"Fait",Actions!B:B,B35,Actions!G:G,3)+COUNTIFS(Actions!K:K,"Fait",Actions!B:B,B35,Actions!G:G,2) -> 0 | F35: =COUNTIFS(Actions!K:K,"En cours",Actions!B:B,B35) -> 0 | G35: =COUNTIFS(Actions!K:K,"En cours",Actions!G:G,3,Actions!B:B,B35) -> 0 | H35: =COUNTIFS(Actions!I:I,"Non",Actions!B:B,B35) -> 0 | I35: =COUNTIFS(Actions!I:I,"Non",Actions!G:G,3,Actions!B:B,B35) -> 0 | J35: =M35-COUNTIFS(Actions!I:I,"NA",Actions!B:B,B35) -> 14 | K35: =N35-COUNTIFS(Actions!I:I,"NA",Actions!G:G,3,Actions!B:B,B35) -> 14 | L35: =O35-COUNTIFS(Actions!I:I,"NA",Actions!G:G,3,Actions!B:B,B35)-COUNTIFS(Actions!I:I,"NA",Actions!G:G,2,Actions!B:B,B35) -> 14 | M35: =COUNTIFS(Actions!AW:AW,1,Actions!B:B,B35) -> 14 | N35: =COUNTIFS(Actions!AW:AW,1,Actions!G:G,3,Actions!B:B,B35) -> 14 | O35: =COUNTIFS(Actions!AW:AW,1,Actions!G:G,3,Actions!B:B,B35)+COUNTIFS(Actions!AW:AW,1,Actions!G:G,2,Actions!B:B,B35) -> 14 | P35: =IF(K35=0,0,D35/K35) -> 0 | Q35: =IF(L35=0,0,E35/L35) -> 0 | R35: =IF(J35=0,0,C35/J35) -> 0
B36: Restauration | C36: =COUNTIFS(Actions!K:K,"Fait",Actions!C:C,B36) -> 0 | D36: =COUNTIFS(Actions!K:K,"Fait",Actions!C:C,B36,Actions!G:G,3) -> 0 | E36: =COUNTIFS(Actions!K:K,"Fait",Actions!C:C,B36,Actions!G:G,3)+COUNTIFS(Actions!K:K,"Fait",Actions!C:C,B36,Actions!G:G,2) -> 0 | F36: =COUNTIFS(Actions!K:K,"En cours",Actions!C:C,B36) -> 0 | G36: =COUNTIFS(Actions!K:K,"En cours",Actions!G:G,3,Actions!C:C,B36) -> 0 | H36: =COUNTIFS(Actions!I:I,"Non",Actions!C:C,B36) -> 0 | I36: =COUNTIFS(Actions!I:I,"Non",Actions!G:G,3,Actions!C:C,B36) -> 0 | J36: =M36-COUNTIFS(Actions!I:I,"NA",Actions!C:C,B36) -> 2 | K36: =N36-COUNTIFS(Actions!I:I,"NA",Actions!G:G,3,Actions!C:C,B36) -> 2 | L36: =O36-COUNTIFS(Actions!I:I,"NA",Actions!G:G,3,Actions!C:C,B36)-COUNTIFS(Actions!I:I,"NA",Actions!G:G,2,Actions!C:C,B36) -> 2 | M36: =COUNTIFS(Actions!AW:AW,1,Actions!C:C,B36) -> 2 | N36: =COUNTIFS(Actions!AW:AW,1,Actions!G:G,3,Actions!C:C,B36) -> 2 | O36: =COUNTIFS(Actions!AW:AW,1,Actions!G:G,3,Actions!C:C,B36)+COUNTIFS(Actions!AW:AW,1,Actions!G:G,2,Actions!C:C,B36) -> 2 | P36: =IF(K36=0,"",D36/K36) -> 0 | Q36: =IF(L36=0,"",E36/L36) -> 0 | R36: =IF(J36=0,"",C36/J36) -> 0
B37: Lieu | C37: =COUNTIFS(Actions!K:K,"Fait",Actions!C:C,B37) -> 0 | D37: =COUNTIFS(Actions!K:K,"Fait",Actions!C:C,B37,Actions!G:G,3) -> 0 | E37: =COUNTIFS(Actions!K:K,"Fait",Actions!C:C,B37,Actions!G:G,3)+COUNTIFS(Actions!K:K,"Fait",Actions!C:C,B37,Actions!G:G,2) -> 0 | F37: =COUNTIFS(Actions!K:K,"En cours",Actions!C:C,B37) -> 0 | G37: =COUNTIFS(Actions!K:K,"En cours",Actions!G:G,3,Actions!C:C,B37) -> 0 | H37: =COUNTIFS(Actions!I:I,"Non",Actions!C:C,B37) -> 0 | I37: =COUNTIFS(Actions!I:I,"Non",Actions!G:G,3,Actions!C:C,B37) -> 0 | J37: =M37-COUNTIFS(Actions!I:I,"NA",Actions!C:C,B37) -> 2 | K37: =N37-COUNTIFS(Actions!I:I,"NA",Actions!G:G,3,Actions!C:C,B37) -> 2 | L37: =O37-COUNTIFS(Actions!I:I,"NA",Actions!G:G,3,Actions!C:C,B37)-COUNTIFS(Actions!I:I,"NA",Actions!G:G,2,Actions!C:C,B37) -> 2 | M37: =COUNTIFS(Actions!AW:AW,1,Actions!C:C,B37) -> 2 | N37: =COUNTIFS(Actions!AW:AW,1,Actions!G:G,3,Actions!C:C,B37) -> 2 | O37: =COUNTIFS(Actions!AW:AW,1,Actions!G:G,3,Actions!C:C,B37)+COUNTIFS(Actions!AW:AW,1,Actions!G:G,2,Actions!C:C,B37) -> 2 | P37: 0 | Q37: 0 | R37: 0
B38: Matériels | C38: =COUNTIFS(Actions!K:K,"Fait",Actions!C:C,B38) -> 0 | D38: =COUNTIFS(Actions!K:K,"Fait",Actions!C:C,B38,Actions!G:G,3) -> 0 | E38: =COUNTIFS(Actions!K:K,"Fait",Actions!C:C,B38,Actions!G:G,3)+COUNTIFS(Actions!K:K,"Fait",Actions!C:C,B38,Actions!G:G,2) -> 0 | F38: =COUNTIFS(Actions!K:K,"En cours",Actions!C:C,B38) -> 0 | G38: =COUNTIFS(Actions!K:K,"En cours",Actions!G:G,3,Actions!C:C,B38) -> 0 | H38: =COUNTIFS(Actions!I:I,"Non",Actions!C:C,B38) -> 0 | I38: =COUNTIFS(Actions!I:I,"Non",Actions!G:G,3,Actions!C:C,B38) -> 0 | J38: =M38-COUNTIFS(Actions!I:I,"NA",Actions!C:C,B38) -> 2 | K38: =N38-COUNTIFS(Actions!I:I,"NA",Actions!G:G,3,Actions!C:C,B38) -> 2 | L38: =O38-COUNTIFS(Actions!I:I,"NA",Actions!G:G,3,Actions!C:C,B38)-COUNTIFS(Actions!I:I,"NA",Actions!G:G,2,Actions!C:C,B38) -> 2 | M38: =COUNTIFS(Actions!AW:AW,1,Actions!C:C,B38) -> 2 | N38: =COUNTIFS(Actions!AW:AW,1,Actions!G:G,3,Actions!C:C,B38) -> 2 | O38: =COUNTIFS(Actions!AW:AW,1,Actions!G:G,3,Actions!C:C,B38)+COUNTIFS(Actions!AW:AW,1,Actions!G:G,2,Actions!C:C,B38) -> 2 | P38: 0 | Q38: 0 | R38: 0
B39: Déplacement de personnes | C39: =COUNTIFS(Actions!K:K,"Fait",Actions!C:C,B39) -> 0 | D39: =COUNTIFS(Actions!K:K,"Fait",Actions!C:C,B39,Actions!G:G,3) -> 0 | E39: =COUNTIFS(Actions!K:K,"Fait",Actions!C:C,B39,Actions!G:G,3)+COUNTIFS(Actions!K:K,"Fait",Actions!C:C,B39,Actions!G:G,2) -> 0 | F39: =COUNTIFS(Actions!K:K,"En cours",Actions!C:C,B39) -> 0 | G39: =COUNTIFS(Actions!K:K,"En cours",Actions!G:G,3,Actions!C:C,B39) -> 0 | H39: =COUNTIFS(Actions!I:I,"Non",Actions!C:C,B39) -> 0 | I39: =COUNTIFS(Actions!I:I,"Non",Actions!G:G,3,Actions!C:C,B39) -> 0 | J39: =M39-COUNTIFS(Actions!I:I,"NA",Actions!C:C,B39) -> 1 | K39: =N39-COUNTIFS(Actions!I:I,"NA",Actions!G:G,3,Actions!C:C,B39) -> 1 | L39: =O39-COUNTIFS(Actions!I:I,"NA",Actions!G:G,3,Actions!C:C,B39)-COUNTIFS(Actions!I:I,"NA",Actions!G:G,2,Actions!C:C,B39) -> 1 | M39: =COUNTIFS(Actions!AW:AW,1,Actions!C:C,B39) -> 1 | N39: =COUNTIFS(Actions!AW:AW,1,Actions!G:G,3,Actions!C:C,B39) -> 1 | O39: =COUNTIFS(Actions!AW:AW,1,Actions!G:G,3,Actions!C:C,B39)+COUNTIFS(Actions!AW:AW,1,Actions!G:G,2,Actions!C:C,B39) -> 1 | P39: 0 | Q39: 0 | R39: 0
B40: Communication | C40: =COUNTIFS(Actions!K:K,"Fait",Actions!C:C,B40) -> 0 | D40: =COUNTIFS(Actions!K:K,"Fait",Actions!C:C,B40,Actions!G:G,3) -> 0 | E40: =COUNTIFS(Actions!K:K,"Fait",Actions!C:C,B40,Actions!G:G,3)+COUNTIFS(Actions!K:K,"Fait",Actions!C:C,B40,Actions!G:G,2) -> 0 | F40: =COUNTIFS(Actions!K:K,"En cours",Actions!C:C,B40) -> 0 | G40: =COUNTIFS(Actions!K:K,"En cours",Actions!G:G,3,Actions!C:C,B40) -> 0 | H40: =COUNTIFS(Actions!I:I,"Non",Actions!C:C,B40) -> 0 | I40: =COUNTIFS(Actions!I:I,"Non",Actions!G:G,3,Actions!C:C,B40) -> 0 | J40: =M40-COUNTIFS(Actions!I:I,"NA",Actions!C:C,B40) -> 3 | K40: =N40-COUNTIFS(Actions!I:I,"NA",Actions!G:G,3,Actions!C:C,B40) -> 3 | L40: =O40-COUNTIFS(Actions!I:I,"NA",Actions!G:G,3,Actions!C:C,B40)-COUNTIFS(Actions!I:I,"NA",Actions!G:G,2,Actions!C:C,B40) -> 3 | M40: =COUNTIFS(Actions!AW:AW,1,Actions!C:C,B40) -> 3 | N40: =COUNTIFS(Actions!AW:AW,1,Actions!G:G,3,Actions!C:C,B40) -> 3 | O40: =COUNTIFS(Actions!AW:AW,1,Actions!G:G,3,Actions!C:C,B40)+COUNTIFS(Actions!AW:AW,1,Actions!G:G,2,Actions!C:C,B40) -> 3 | P40: 0 | Q40: 0 | R40: 0
B41: Sensibilisation | C41: =COUNTIFS(Actions!K:K,"Fait",Actions!C:C,B41) -> 0 | D41: =COUNTIFS(Actions!K:K,"Fait",Actions!C:C,B41,Actions!G:G,3) -> 0 | E41: =COUNTIFS(Actions!K:K,"Fait",Actions!C:C,B41,Actions!G:G,3)+COUNTIFS(Actions!K:K,"Fait",Actions!C:C,B41,Actions!G:G,2) -> 0 | F41: =COUNTIFS(Actions!K:K,"En cours",Actions!C:C,B41) -> 0 | G41: =COUNTIFS(Actions!K:K,"En cours",Actions!G:G,3,Actions!C:C,B41) -> 0 | H41: =COUNTIFS(Actions!I:I,"Non",Actions!C:C,B41) -> 0 | I41: =COUNTIFS(Actions!I:I,"Non",Actions!G:G,3,Actions!C:C,B41) -> 0 | J41: =M41-COUNTIFS(Actions!I:I,"NA",Actions!C:C,B41) -> 4 | K41: =N41-COUNTIFS(Actions!I:I,"NA",Actions!G:G,3,Actions!C:C,B41) -> 4 | L41: =O41-COUNTIFS(Actions!I:I,"NA",Actions!G:G,3,Actions!C:C,B41)-COUNTIFS(Actions!I:I,"NA",Actions!G:G,2,Actions!C:C,B41) -> 4 | M41: =COUNTIFS(Actions!AW:AW,1,Actions!C:C,B41) -> 4 | N41: =COUNTIFS(Actions!AW:AW,1,Actions!G:G,3,Actions!C:C,B41) -> 4 | O41: =COUNTIFS(Actions!AW:AW,1,Actions!G:G,3,Actions!C:C,B41)+COUNTIFS(Actions!AW:AW,1,Actions!G:G,2,Actions!C:C,B41) -> 4 | P41: 0 | Q41: 0 | R41: 0
B43: EQUITE | C43: =COUNTIFS(Actions!K:K,"Fait",Actions!B:B,B43) -> 0 | D43: =COUNTIFS(Actions!K:K,"Fait",Actions!B:B,B43,Actions!G:G,3) -> 0 | E43: =COUNTIFS(Actions!K:K,"Fait",Actions!B:B,B43,Actions!G:G,3)+COUNTIFS(Actions!K:K,"Fait",Actions!B:B,B43,Actions!G:G,2) -> 0 | F43: =COUNTIFS(Actions!K:K,"En cours",Actions!B:B,B43) -> 0 | G43: =COUNTIFS(Actions!K:K,"En cours",Actions!G:G,3,Actions!B:B,B43) -> 0 | H43: =COUNTIFS(Actions!I:I,"Non",Actions!B:B,B43) -> 0 | I43: =COUNTIFS(Actions!I:I,"Non",Actions!G:G,3,Actions!B:B,B43) -> 0 | J43: =M43-COUNTIFS(Actions!I:I,"NA",Actions!B:B,B43) -> 2 | K43: =N43-COUNTIFS(Actions!I:I,"NA",Actions!G:G,3,Actions!B:B,B43) -> 2 | L43: =O43-COUNTIFS(Actions!I:I,"NA",Actions!G:G,3,Actions!B:B,B43)-COUNTIFS(Actions!I:I,"NA",Actions!G:G,2,Actions!B:B,B43) -> 2 | M43: =COUNTIFS(Actions!AW:AW,1,Actions!B:B,B43) -> 2 | N43: =COUNTIFS(Actions!AW:AW,1,Actions!G:G,3,Actions!B:B,B43) -> 2 | O43: =COUNTIFS(Actions!AW:AW,1,Actions!G:G,3,Actions!B:B,B43)+COUNTIFS(Actions!AW:AW,1,Actions!G:G,2,Actions!B:B,B43) -> 2 | P43: =IF(K43=0,0,D43/K43) -> 0 | Q43: =IF(L43=0,0,E43/L43) -> 0 | R43: =IF(J43=0,0,C43/J43) -> 0
B44: Accessibilité | C44: =COUNTIFS(Actions!K:K,"Fait",Actions!C:C,B44) -> 0 | D44: =COUNTIFS(Actions!K:K,"Fait",Actions!C:C,B44,Actions!G:G,3) -> 0 | E44: =COUNTIFS(Actions!K:K,"Fait",Actions!C:C,B44,Actions!G:G,3)+COUNTIFS(Actions!K:K,"Fait",Actions!C:C,B44,Actions!G:G,2) -> 0 | F44: =COUNTIFS(Actions!K:K,"En cours",Actions!C:C,B44) -> 0 | G44: =COUNTIFS(Actions!K:K,"En cours",Actions!G:G,3,Actions!C:C,B44) -> 0 | H44: =COUNTIFS(Actions!I:I,"Non",Actions!C:C,B44) -> 0 | I44: =COUNTIFS(Actions!I:I,"Non",Actions!G:G,3,Actions!C:C,B44) -> 0 | J44: =M44-COUNTIFS(Actions!I:I,"NA",Actions!C:C,B44) -> 1 | K44: =N44-COUNTIFS(Actions!I:I,"NA",Actions!G:G,3,Actions!C:C,B44) -> 1 | L44: =O44-COUNTIFS(Actions!I:I,"NA",Actions!G:G,3,Actions!C:C,B44)-COUNTIFS(Actions!I:I,"NA",Actions!G:G,2,Actions!C:C,B44) -> 1 | M44: =COUNTIFS(Actions!AW:AW,1,Actions!C:C,B44) -> 1 | N44: =COUNTIFS(Actions!AW:AW,1,Actions!G:G,3,Actions!C:C,B44) -> 1 | O44: =COUNTIFS(Actions!AW:AW,1,Actions!G:G,3,Actions!C:C,B44)+COUNTIFS(Actions!AW:AW,1,Actions!G:G,2,Actions!C:C,B44) -> 1 | P44: =IF(K44=0,"",D44/K44) -> 0 | Q44: =IF(L44=0,"",E44/L44) -> 0 | R44: 0
B45: Diversité | C45: =COUNTIFS(Actions!K:K,"Fait",Actions!C:C,B45) -> 0 | D45: =COUNTIFS(Actions!K:K,"Fait",Actions!C:C,B45,Actions!G:G,3) -> 0 | E45: =COUNTIFS(Actions!K:K,"Fait",Actions!C:C,B45,Actions!G:G,3)+COUNTIFS(Actions!K:K,"Fait",Actions!C:C,B45,Actions!G:G,2) -> 0 | F45: =COUNTIFS(Actions!K:K,"En cours",Actions!C:C,B45) -> 0 | G45: =COUNTIFS(Actions!K:K,"En cours",Actions!G:G,3,Actions!C:C,B45) -> 0 | H45: =COUNTIFS(Actions!I:I,"Non",Actions!C:C,B45) -> 0 | I45: =COUNTIFS(Actions!I:I,"Non",Actions!G:G,3,Actions!C:C,B45) -> 0 | J45: =M45-COUNTIFS(Actions!I:I,"NA",Actions!C:C,B45) -> 0 | K45: =N45-COUNTIFS(Actions!I:I,"NA",Actions!G:G,3,Actions!C:C,B45) -> 0 | L45: =O45-COUNTIFS(Actions!I:I,"NA",Actions!G:G,3,Actions!C:C,B45)-COUNTIFS(Actions!I:I,"NA",Actions!G:G,2,Actions!C:C,B45) -> 0 | M45: =COUNTIFS(Actions!AW:AW,1,Actions!C:C,B45) -> 0 | N45: =COUNTIFS(Actions!AW:AW,1,Actions!G:G,3,Actions!C:C,B45) -> 0 | O45: =COUNTIFS(Actions!AW:AW,1,Actions!G:G,3,Actions!C:C,B45)+COUNTIFS(Actions!AW:AW,1,Actions!G:G,2,Actions!C:C,B45) -> 0 | P45: =IF(K45=0,"",D45/K45) -> 
B46: Equité des pratiques | C46: =COUNTIFS(Actions!K:K,"Fait",Actions!C:C,B46) -> 0 | D46: =COUNTIFS(Actions!K:K,"Fait",Actions!C:C,B46,Actions!G:G,3) -> 0 | E46: =COUNTIFS(Actions!K:K,"Fait",Actions!C:C,B46,Actions!G:G,3)+COUNTIFS(Actions!K:K,"Fait",Actions!C:C,B46,Actions!G:G,2) -> 0 | F46: =COUNTIFS(Actions!K:K,"En cours",Actions!C:C,B46) -> 0 | G46: =COUNTIFS(Actions!K:K,"En cours",Actions!G:G,3,Actions!C:C,B46) -> 0 | H46: =COUNTIFS(Actions!I:I,"Non",Actions!C:C,B46) -> 0 | I46: =COUNTIFS(Actions!I:I,"Non",Actions!G:G,3,Actions!C:C,B46) -> 0 | J46: =M46-COUNTIFS(Actions!I:I,"NA",Actions!C:C,B46) -> 1 | K46: =N46-COUNTIFS(Actions!I:I,"NA",Actions!G:G,3,Actions!C:C,B46) -> 1 | L46: =O46-COUNTIFS(Actions!I:I,"NA",Actions!G:G,3,Actions!C:C,B46)-COUNTIFS(Actions!I:I,"NA",Actions!G:G,2,Actions!C:C,B46) -> 1 | M46: =COUNTIFS(Actions!AW:AW,1,Actions!C:C,B46) -> 1 | N46: =COUNTIFS(Actions!AW:AW,1,Actions!G:G,3,Actions!C:C,B46) -> 1 | O46: =COUNTIFS(Actions!AW:AW,1,Actions!G:G,3,Actions!C:C,B46)+COUNTIFS(Actions!AW:AW,1,Actions!G:G,2,Actions!C:C,B46) -> 1 | P46: =IF(K46=0,"",D46/K46) -> 0 | Q46: 0 | R46: 0
B48: GESTION DES RESSOURCES | C48: =COUNTIFS(Actions!K:K,"Fait",Actions!B:B,B48) -> 0 | D48: =COUNTIFS(Actions!K:K,"Fait",Actions!B:B,B48,Actions!G:G,3) -> 0 | E48: =COUNTIFS(Actions!K:K,"Fait",Actions!B:B,B48,Actions!G:G,3)+COUNTIFS(Actions!K:K,"Fait",Actions!B:B,B48,Actions!G:G,2) -> 0 | F48: =COUNTIFS(Actions!K:K,"En cours",Actions!B:B,B48) -> 0 | G48: =COUNTIFS(Actions!K:K,"En cours",Actions!G:G,3,Actions!B:B,B48) -> 0 | H48: =COUNTIFS(Actions!I:I,"Non",Actions!B:B,B48) -> 0 | I48: =COUNTIFS(Actions!I:I,"Non",Actions!G:G,3,Actions!B:B,B48) -> 0 | J48: =M48-COUNTIFS(Actions!I:I,"NA",Actions!B:B,B48) -> 5 | K48: =N48-COUNTIFS(Actions!I:I,"NA",Actions!G:G,3,Actions!B:B,B48) -> 5 | L48: =O48-COUNTIFS(Actions!I:I,"NA",Actions!G:G,3,Actions!B:B,B48)-COUNTIFS(Actions!I:I,"NA",Actions!G:G,2,Actions!B:B,B48) -> 5 | M48: =COUNTIFS(Actions!AW:AW,1,Actions!B:B,B48) -> 5 | N48: =COUNTIFS(Actions!AW:AW,1,Actions!G:G,3,Actions!B:B,B48) -> 5 | O48: =COUNTIFS(Actions!AW:AW,1,Actions!G:G,3,Actions!B:B,B48)+COUNTIFS(Actions!AW:AW,1,Actions!G:G,2,Actions!B:B,B48) -> 5 | P48: =IF(K48=0,0,D48/K48) -> 0 | Q48: =IF(L48=0,0,E48/L48) -> 0 | R48: =IF(J48=0,0,C48/J48) -> 0
B49: alimentation | C49: =COUNTIFS(Actions!K:K,"Fait",Actions!C:C,B49) -> 0 | D49: =COUNTIFS(Actions!K:K,"Fait",Actions!C:C,B49,Actions!G:G,3) -> 0 | E49: =COUNTIFS(Actions!K:K,"Fait",Actions!C:C,B49,Actions!G:G,3)+COUNTIFS(Actions!K:K,"Fait",Actions!C:C,B49,Actions!G:G,2) -> 0 | F49: =COUNTIFS(Actions!K:K,"En cours",Actions!C:C,B49) -> 0 | G49: =COUNTIFS(Actions!K:K,"En cours",Actions!G:G,3,Actions!C:C,B49) -> 0 | H49: =COUNTIFS(Actions!I:I,"Non",Actions!C:C,B49) -> 0 | I49: =COUNTIFS(Actions!I:I,"Non",Actions!G:G,3,Actions!C:C,B49) -> 0 | J49: =M49-COUNTIFS(Actions!I:I,"NA",Actions!C:C,B49) -> 1 | K49: =N49-COUNTIFS(Actions!I:I,"NA",Actions!G:G,3,Actions!C:C,B49) -> 1 | L49: =O49-COUNTIFS(Actions!I:I,"NA",Actions!G:G,3,Actions!C:C,B49)-COUNTIFS(Actions!I:I,"NA",Actions!G:G,2,Actions!C:C,B49) -> 1 | M49: =COUNTIFS(Actions!AW:AW,1,Actions!C:C,B49) -> 1 | N49: =COUNTIFS(Actions!AW:AW,1,Actions!G:G,3,Actions!C:C,B49) -> 1 | O49: =COUNTIFS(Actions!AW:AW,1,Actions!G:G,3,Actions!C:C,B49)+COUNTIFS(Actions!AW:AW,1,Actions!G:G,2,Actions!C:C,B49) -> 1 | P49: =IF(K49=0,"",D49/K49) -> 0 | Q49: =IF(L49=0,"",E49/L49) -> 0 | R49: 0
B50: eau | C50: =COUNTIFS(Actions!K:K,"Fait",Actions!C:C,B50) -> 0 | D50: =COUNTIFS(Actions!K:K,"Fait",Actions!C:C,B50,Actions!G:G,3) -> 0 | E50: =COUNTIFS(Actions!K:K,"Fait",Actions!C:C,B50,Actions!G:G,3)+COUNTIFS(Actions!K:K,"Fait",Actions!C:C,B50,Actions!G:G,2) -> 0 | F50: =COUNTIFS(Actions!K:K,"En cours",Actions!C:C,B50) -> 0 | G50: =COUNTIFS(Actions!K:K,"En cours",Actions!G:G,3,Actions!C:C,B50) -> 0 | H50: =COUNTIFS(Actions!I:I,"Non",Actions!C:C,B50) -> 0 | I50: =COUNTIFS(Actions!I:I,"Non",Actions!G:G,3,Actions!C:C,B50) -> 0 | J50: =M50-COUNTIFS(Actions!I:I,"NA",Actions!C:C,B50) -> 0 | K50: =N50-COUNTIFS(Actions!I:I,"NA",Actions!G:G,3,Actions!C:C,B50) -> 0 | L50: =O50-COUNTIFS(Actions!I:I,"NA",Actions!G:G,3,Actions!C:C,B50)-COUNTIFS(Actions!I:I,"NA",Actions!G:G,2,Actions!C:C,B50) -> 0 | M50: =COUNTIFS(Actions!AW:AW,1,Actions!C:C,B50) -> 0 | N50: =COUNTIFS(Actions!AW:AW,1,Actions!G:G,3,Actions!C:C,B50) -> 0 | O50: =COUNTIFS(Actions!AW:AW,1,Actions!G:G,3,Actions!C:C,B50)+COUNTIFS(Actions!AW:AW,1,Actions!G:G,2,Actions!C:C,B50) -> 0
B51: énergie | C51: =COUNTIFS(Actions!K:K,"Fait",Actions!C:C,B51) -> 0 | D51: =COUNTIFS(Actions!K:K,"Fait",Actions!C:C,B51,Actions!G:G,3) -> 0 | E51: =COUNTIFS(Actions!K:K,"Fait",Actions!C:C,B51,Actions!G:G,3)+COUNTIFS(Actions!K:K,"Fait",Actions!C:C,B51,Actions!G:G,2) -> 0 | F51: =COUNTIFS(Actions!K:K,"En cours",Actions!C:C,B51) -> 0 | G51: =COUNTIFS(Actions!K:K,"En cours",Actions!G:G,3,Actions!C:C,B51) -> 0 | H51: =COUNTIFS(Actions!I:I,"Non",Actions!C:C,B51) -> 0 | I51: =COUNTIFS(Actions!I:I,"Non",Actions!G:G,3,Actions!C:C,B51) -> 0 | J51: =M51-COUNTIFS(Actions!I:I,"NA",Actions!C:C,B51) -> 1 | K51: =N51-COUNTIFS(Actions!I:I,"NA",Actions!G:G,3,Actions!C:C,B51) -> 1 | L51: =O51-COUNTIFS(Actions!I:I,"NA",Actions!G:G,3,Actions!C:C,B51)-COUNTIFS(Actions!I:I,"NA",Actions!G:G,2,Actions!C:C,B51) -> 1 | M51: =COUNTIFS(Actions!AW:AW,1,Actions!C:C,B51) -> 1 | N51: =COUNTIFS(Actions!AW:AW,1,Actions!G:G,3,Actions!C:C,B51) -> 1 | O51: =COUNTIFS(Actions!AW:AW,1,Actions!G:G,3,Actions!C:C,B51)+COUNTIFS(Actions!AW:AW,1,Actions!G:G,2,Actions!C:C,B51) -> 1 | P51: 0 | Q51: 0 | R51: 0
B52: management | C52: =COUNTIFS(Actions!K:K,"Fait",Actions!C:C,B52) -> 0 | D52: =COUNTIFS(Actions!K:K,"Fait",Actions!C:C,B52,Actions!G:G,3) -> 0 | E52: =COUNTIFS(Actions!K:K,"Fait",Actions!C:C,B52,Actions!G:G,3)+COUNTIFS(Actions!K:K,"Fait",Actions!C:C,B52,Actions!G:G,2) -> 0 | F52: =COUNTIFS(Actions!K:K,"En cours",Actions!C:C,B52) -> 0 | G52: =COUNTIFS(Actions!K:K,"En cours",Actions!G:G,3,Actions!C:C,B52) -> 0 | H52: =COUNTIFS(Actions!I:I,"Non",Actions!C:C,B52) -> 0 | I52: =COUNTIFS(Actions!I:I,"Non",Actions!G:G,3,Actions!C:C,B52) -> 0 | J52: =M52-COUNTIFS(Actions!I:I,"NA",Actions!C:C,B52) -> 2 | K52: =N52-COUNTIFS(Actions!I:I,"NA",Actions!G:G,3,Actions!C:C,B52) -> 2 | L52: =O52-COUNTIFS(Actions!I:I,"NA",Actions!G:G,3,Actions!C:C,B52)-COUNTIFS(Actions!I:I,"NA",Actions!G:G,2,Actions!C:C,B52) -> 2 | M52: =COUNTIFS(Actions!AW:AW,1,Actions!C:C,B52) -> 2 | N52: =COUNTIFS(Actions!AW:AW,1,Actions!G:G,3,Actions!C:C,B52) -> 2 | O52: =COUNTIFS(Actions!AW:AW,1,Actions!G:G,3,Actions!C:C,B52)+COUNTIFS(Actions!AW:AW,1,Actions!G:G,2,Actions!C:C,B52) -> 2 | P52: 0 | Q52: 0 | R52: 0
B53: matières premières et produits | C53: =COUNTIFS(Actions!K:K,"Fait",Actions!C:C,B53) -> 0 | D53: =COUNTIFS(Actions!K:K,"Fait",Actions!C:C,B53,Actions!G:G,3) -> 0 | E53: =COUNTIFS(Actions!K:K,"Fait",Actions!C:C,B53,Actions!G:G,3)+COUNTIFS(Actions!K:K,"Fait",Actions!C:C,B53,Actions!G:G,2) -> 0 | F53: =COUNTIFS(Actions!K:K,"En cours",Actions!C:C,B53) -> 0 | G53: =COUNTIFS(Actions!K:K,"En cours",Actions!G:G,3,Actions!C:C,B53) -> 0 | H53: =COUNTIFS(Actions!I:I,"Non",Actions!C:C,B53) -> 0 | I53: =COUNTIFS(Actions!I:I,"Non",Actions!G:G,3,Actions!C:C,B53) -> 0 | J53: =M53-COUNTIFS(Actions!I:I,"NA",Actions!C:C,B53) -> 3 | K53: =N53-COUNTIFS(Actions!I:I,"NA",Actions!G:G,3,Actions!C:C,B53) -> 3 | L53: =O53-COUNTIFS(Actions!I:I,"NA",Actions!G:G,3,Actions!C:C,B53)-COUNTIFS(Actions!I:I,"NA",Actions!G:G,2,Actions!C:C,B53) -> 3 | M53: =COUNTIFS(Actions!AW:AW,1,Actions!C:C,B53) -> 3 | N53: =COUNTIFS(Actions!AW:AW,1,Actions!G:G,3,Actions!C:C,B53) -> 3 | O53: =COUNTIFS(Actions!AW:AW,1,Actions!G:G,3,Actions!C:C,B53)+COUNTIFS(Actions!AW:AW,1,Actions!G:G,2,Actions!C:C,B53) -> 3 | P53: 0 | Q53: 0 | R53: 0
B55: GOUVERN. | C55: =COUNTIFS(Actions!K:K,"Fait",Actions!B:B,B55) -> 0 | D55: =COUNTIFS(Actions!K:K,"Fait",Actions!B:B,B55,Actions!G:G,3) -> 0 | E55: =COUNTIFS(Actions!K:K,"Fait",Actions!B:B,B55,Actions!G:G,3)+COUNTIFS(Actions!K:K,"Fait",Actions!B:B,B55,Actions!G:G,2) -> 0 | F55: =COUNTIFS(Actions!K:K,"En cours",Actions!B:B,B55) -> 0 | G55: =COUNTIFS(Actions!K:K,"En cours",Actions!G:G,3,Actions!B:B,B55) -> 0 | H55: =COUNTIFS(Actions!I:I,"Non",Actions!B:B,B55) -> 0 | I55: =COUNTIFS(Actions!I:I,"Non",Actions!G:G,3,Actions!B:B,B55) -> 0 | J55: =M55-COUNTIFS(Actions!I:I,"NA",Actions!B:B,B55) -> 3 | K55: =N55-COUNTIFS(Actions!I:I,"NA",Actions!G:G,3,Actions!B:B,B55) -> 3 | L55: =O55-COUNTIFS(Actions!I:I,"NA",Actions!G:G,3,Actions!B:B,B55)-COUNTIFS(Actions!I:I,"NA",Actions!G:G,2,Actions!B:B,B55) -> 3 | M55: =COUNTIFS(Actions!AW:AW,1,Actions!B:B,B55) -> 3 | N55: =COUNTIFS(Actions!AW:AW,1,Actions!G:G,3,Actions!B:B,B55) -> 3 | O55: =COUNTIFS(Actions!AW:AW,1,Actions!G:G,3,Actions!B:B,B55)+COUNTIFS(Actions!AW:AW,1,Actions!G:G,2,Actions!B:B,B55) -> 3 | P55: =IF(K55=0,0,D55/K55) -> 0 | Q55: =IF(L55=0,0,E55/L55) -> 0 | R55: =IF(J55=0,0,C55/J55) -> 0
B56: Ethique et cadre juridique | C56: =COUNTIFS(Actions!K:K,"Fait",Actions!C:C,B56) -> 0 | D56: =COUNTIFS(Actions!K:K,"Fait",Actions!C:C,B56,Actions!G:G,3) -> 0 | E56: =COUNTIFS(Actions!K:K,"Fait",Actions!C:C,B56,Actions!G:G,3)+COUNTIFS(Actions!K:K,"Fait",Actions!C:C,B56,Actions!G:G,2) -> 0 | F56: =COUNTIFS(Actions!K:K,"En cours",Actions!C:C,B56) -> 0 | G56: =COUNTIFS(Actions!K:K,"En cours",Actions!G:G,3,Actions!C:C,B56) -> 0 | H56: =COUNTIFS(Actions!I:I,"Non",Actions!C:C,B56) -> 0 | I56: =COUNTIFS(Actions!I:I,"Non",Actions!G:G,3,Actions!C:C,B56) -> 0 | J56: =M56-COUNTIFS(Actions!I:I,"NA",Actions!C:C,B56) -> 0 | K56: =N56-COUNTIFS(Actions!I:I,"NA",Actions!G:G,3,Actions!C:C,B56) -> 0 | L56: =O56-COUNTIFS(Actions!I:I,"NA",Actions!G:G,3,Actions!C:C,B56)-COUNTIFS(Actions!I:I,"NA",Actions!G:G,2,Actions!C:C,B56) -> 0 | M56: =COUNTIFS(Actions!AW:AW,1,Actions!C:C,B56) -> 0 | N56: =COUNTIFS(Actions!AW:AW,1,Actions!G:G,3,Actions!C:C,B56) -> 0 | O56: =COUNTIFS(Actions!AW:AW,1,Actions!G:G,3,Actions!C:C,B56)+COUNTIFS(Actions!AW:AW,1,Actions!G:G,2,Actions!C:C,B56) -> 0 | P56: =IF(K56=0,"",D56/K56) ->  | Q56: =IF(L56=0,"",E56/L56) -> 
B57: Gestion de l'événement | C57: =COUNTIFS(Actions!K:K,"Fait",Actions!C:C,B57) -> 0 | D57: =COUNTIFS(Actions!K:K,"Fait",Actions!C:C,B57,Actions!G:G,3) -> 0 | E57: =COUNTIFS(Actions!K:K,"Fait",Actions!C:C,B57,Actions!G:G,3)+COUNTIFS(Actions!K:K,"Fait",Actions!C:C,B57,Actions!G:G,2) -> 0 | F57: =COUNTIFS(Actions!K:K,"En cours",Actions!C:C,B57) -> 0 | G57: =COUNTIFS(Actions!K:K,"En cours",Actions!G:G,3,Actions!C:C,B57) -> 0 | H57: =COUNTIFS(Actions!I:I,"Non",Actions!C:C,B57) -> 0 | I57: =COUNTIFS(Actions!I:I,"Non",Actions!G:G,3,Actions!C:C,B57) -> 0 | J57: =M57-COUNTIFS(Actions!I:I,"NA",Actions!C:C,B57) -> 1 | K57: =N57-COUNTIFS(Actions!I:I,"NA",Actions!G:G,3,Actions!C:C,B57) -> 1 | L57: =O57-COUNTIFS(Actions!I:I,"NA",Actions!G:G,3,Actions!C:C,B57)-COUNTIFS(Actions!I:I,"NA",Actions!G:G,2,Actions!C:C,B57) -> 1 | M57: =COUNTIFS(Actions!AW:AW,1,Actions!C:C,B57) -> 1 | N57: =COUNTIFS(Actions!AW:AW,1,Actions!G:G,3,Actions!C:C,B57) -> 1 | O57: =COUNTIFS(Actions!AW:AW,1,Actions!G:G,3,Actions!C:C,B57)+COUNTIFS(Actions!AW:AW,1,Actions!G:G,2,Actions!C:C,B57) -> 1 | P57: =IF(K57=0,"",D57/K57) -> 0 | Q57: 0 | R57: 0
B58: Management de l'événement | C58: =COUNTIFS(Actions!K:K,"Fait",Actions!C:C,B58) -> 0 | D58: =COUNTIFS(Actions!K:K,"Fait",Actions!C:C,B58,Actions!G:G,3) -> 0 | E58: =COUNTIFS(Actions!K:K,"Fait",Actions!C:C,B58,Actions!G:G,3)+COUNTIFS(Actions!K:K,"Fait",Actions!C:C,B58,Actions!G:G,2) -> 0 | F58: =COUNTIFS(Actions!K:K,"En cours",Actions!C:C,B58) -> 0 | G58: =COUNTIFS(Actions!K:K,"En cours",Actions!G:G,3,Actions!C:C,B58) -> 0 | H58: =COUNTIFS(Actions!I:I,"Non",Actions!C:C,B58) -> 0 | I58: =COUNTIFS(Actions!I:I,"Non",Actions!G:G,3,Actions!C:C,B58) -> 0 | J58: =M58-COUNTIFS(Actions!I:I,"NA",Actions!C:C,B58) -> 1 | K58: =N58-COUNTIFS(Actions!I:I,"NA",Actions!G:G,3,Actions!C:C,B58) -> 1 | L58: =O58-COUNTIFS(Actions!I:I,"NA",Actions!G:G,3,Actions!C:C,B58)-COUNTIFS(Actions!I:I,"NA",Actions!G:G,2,Actions!C:C,B58) -> 1 | M58: =COUNTIFS(Actions!AW:AW,1,Actions!C:C,B58) -> 1 | N58: =COUNTIFS(Actions!AW:AW,1,Actions!G:G,3,Actions!C:C,B58) -> 1 | O58: =COUNTIFS(Actions!AW:AW,1,Actions!G:G,3,Actions!C:C,B58)+COUNTIFS(Actions!AW:AW,1,Actions!G:G,2,Actions!C:C,B58) -> 1 | P58: =IF(K58=0,"",D58/K58) -> 0 | Q58: 0 | R58: 0
B59: Transparence | C59: =COUNTIFS(Actions!K:K,"Fait",Actions!C:C,B59) -> 0 | D59: =COUNTIFS(Actions!K:K,"Fait",Actions!C:C,B59,Actions!G:G,3) -> 0 | E59: =COUNTIFS(Actions!K:K,"Fait",Actions!C:C,B59,Actions!G:G,3)+COUNTIFS(Actions!K:K,"Fait",Actions!C:C,B59,Actions!G:G,2) -> 0 | F59: =COUNTIFS(Actions!K:K,"En cours",Actions!C:C,B59) -> 0 | G59: =COUNTIFS(Actions!K:K,"En cours",Actions!G:G,3,Actions!C:C,B59) -> 0 | H59: =COUNTIFS(Actions!I:I,"Non",Actions!C:C,B59) -> 0 | I59: =COUNTIFS(Actions!I:I,"Non",Actions!G:G,3,Actions!C:C,B59) -> 0 | J59: =M59-COUNTIFS(Actions!I:I,"NA",Actions!C:C,B59) -> 1 | K59: =N59-COUNTIFS(Actions!I:I,"NA",Actions!G:G,3,Actions!C:C,B59) -> 1 | L59: =O59-COUNTIFS(Actions!I:I,"NA",Actions!G:G,3,Actions!C:C,B59)-COUNTIFS(Actions!I:I,"NA",Actions!G:G,2,Actions!C:C,B59) -> 1 | M59: =COUNTIFS(Actions!AW:AW,1,Actions!C:C,B59) -> 1 | N59: =COUNTIFS(Actions!AW:AW,1,Actions!G:G,3,Actions!C:C,B59) -> 1 | O59: =COUNTIFS(Actions!AW:AW,1,Actions!G:G,3,Actions!C:C,B59)+COUNTIFS(Actions!AW:AW,1,Actions!G:G,2,Actions!C:C,B59) -> 1 | P59: =IF(K59=0,"",D59/K59) -> 0 | Q59: 0 | R59: 0
B61: RESEPCT PARTICIPANT | C61: =COUNTIFS(Actions!K:K,"Fait",Actions!B:B,B61) -> 0 | D61: =COUNTIFS(Actions!K:K,"Fait",Actions!B:B,B61,Actions!G:G,3) -> 0 | E61: =COUNTIFS(Actions!K:K,"Fait",Actions!B:B,B61,Actions!G:G,3)+COUNTIFS(Actions!K:K,"Fait",Actions!B:B,B61,Actions!G:G,2) -> 0 | F61: =COUNTIFS(Actions!K:K,"En cours",Actions!B:B,B61) -> 0 | G61: =COUNTIFS(Actions!K:K,"En cours",Actions!G:G,3,Actions!B:B,B61) -> 0 | H61: =COUNTIFS(Actions!I:I,"Non",Actions!B:B,B61) -> 0 | I61: =COUNTIFS(Actions!I:I,"Non",Actions!G:G,3,Actions!B:B,B61) -> 0 | J61: =M61-COUNTIFS(Actions!I:I,"NA",Actions!B:B,B61) -> 4 | K61: =N61-COUNTIFS(Actions!I:I,"NA",Actions!G:G,3,Actions!B:B,B61) -> 4 | L61: =O61-COUNTIFS(Actions!I:I,"NA",Actions!G:G,3,Actions!B:B,B61)-COUNTIFS(Actions!I:I,"NA",Actions!G:G,2,Actions!B:B,B61) -> 4 | M61: =COUNTIFS(Actions!AW:AW,1,Actions!B:B,B61) -> 4 | N61: =COUNTIFS(Actions!AW:AW,1,Actions!G:G,3,Actions!B:B,B61) -> 4 | O61: =COUNTIFS(Actions!AW:AW,1,Actions!G:G,3,Actions!B:B,B61)+COUNTIFS(Actions!AW:AW,1,Actions!G:G,2,Actions!B:B,B61) -> 4 | P61: =IF(K61=0,0,D61/K61) -> 0 | Q61: =IF(L61=0,0,E61/L61) -> 0 | R61: =IF(J61=0,0,C61/J61) -> 0
B62: Intégrité | C62: =COUNTIFS(Actions!K:K,"Fait",Actions!C:C,B62) -> 0 | D62: =COUNTIFS(Actions!K:K,"Fait",Actions!C:C,B62,Actions!G:G,3) -> 0 | E62: =COUNTIFS(Actions!K:K,"Fait",Actions!C:C,B62,Actions!G:G,3)+COUNTIFS(Actions!K:K,"Fait",Actions!C:C,B62,Actions!G:G,2) -> 0 | F62: =COUNTIFS(Actions!K:K,"En cours",Actions!C:C,B62) -> 0 | G62: =COUNTIFS(Actions!K:K,"En cours",Actions!G:G,3,Actions!C:C,B62) -> 0 | H62: =COUNTIFS(Actions!I:I,"Non",Actions!C:C,B62) -> 0 | I62: =COUNTIFS(Actions!I:I,"Non",Actions!G:G,3,Actions!C:C,B62) -> 0 | J62: =M62-COUNTIFS(Actions!I:I,"NA",Actions!C:C,B62) -> 0 | K62: =N62-COUNTIFS(Actions!I:I,"NA",Actions!G:G,3,Actions!C:C,B62) -> 0 | L62: =O62-COUNTIFS(Actions!I:I,"NA",Actions!G:G,3,Actions!C:C,B62)-COUNTIFS(Actions!I:I,"NA",Actions!G:G,2,Actions!C:C,B62) -> 0 | M62: =COUNTIFS(Actions!AW:AW,1,Actions!C:C,B62) -> 0 | N62: =COUNTIFS(Actions!AW:AW,1,Actions!G:G,3,Actions!C:C,B62) -> 0 | O62: =COUNTIFS(Actions!AW:AW,1,Actions!G:G,3,Actions!C:C,B62)+COUNTIFS(Actions!AW:AW,1,Actions!G:G,2,Actions!C:C,B62) -> 0 | P62: =IF(K62=0,"",D62/K62) ->  | Q62: =IF(L62=0,"",E62/L62) -> 
B63: Qualité de l'évènement | C63: =COUNTIFS(Actions!K:K,"Fait",Actions!C:C,B63) -> 0 | D63: =COUNTIFS(Actions!K:K,"Fait",Actions!C:C,B63,Actions!G:G,3) -> 0 | E63: =COUNTIFS(Actions!K:K,"Fait",Actions!C:C,B63,Actions!G:G,3)+COUNTIFS(Actions!K:K,"Fait",Actions!C:C,B63,Actions!G:G,2) -> 0 | F63: =COUNTIFS(Actions!K:K,"En cours",Actions!C:C,B63) -> 0 | G63: =COUNTIFS(Actions!K:K,"En cours",Actions!G:G,3,Actions!C:C,B63) -> 0 | H63: =COUNTIFS(Actions!I:I,"Non",Actions!C:C,B63) -> 0 | I63: =COUNTIFS(Actions!I:I,"Non",Actions!G:G,3,Actions!C:C,B63) -> 0 | J63: =M63-COUNTIFS(Actions!I:I,"NA",Actions!C:C,B63) -> 0 | K63: =N63-COUNTIFS(Actions!I:I,"NA",Actions!G:G,3,Actions!C:C,B63) -> 0 | L63: =O63-COUNTIFS(Actions!I:I,"NA",Actions!G:G,3,Actions!C:C,B63)-COUNTIFS(Actions!I:I,"NA",Actions!G:G,2,Actions!C:C,B63) -> 0 | M63: =COUNTIFS(Actions!AW:AW,1,Actions!C:C,B63) -> 0 | N63: =COUNTIFS(Actions!AW:AW,1,Actions!G:G,3,Actions!C:C,B63) -> 0 | O63: =COUNTIFS(Actions!AW:AW,1,Actions!G:G,3,Actions!C:C,B63)+COUNTIFS(Actions!AW:AW,1,Actions!G:G,2,Actions!C:C,B63) -> 0 | P63: =IF(K63=0,"",D63/K63) -> 
B64: Santé | C64: =COUNTIFS(Actions!K:K,"Fait",Actions!C:C,B64) -> 0 | D64: =COUNTIFS(Actions!K:K,"Fait",Actions!C:C,B64,Actions!G:G,3) -> 0 | E64: =COUNTIFS(Actions!K:K,"Fait",Actions!C:C,B64,Actions!G:G,3)+COUNTIFS(Actions!K:K,"Fait",Actions!C:C,B64,Actions!G:G,2) -> 0 | F64: =COUNTIFS(Actions!K:K,"En cours",Actions!C:C,B64) -> 0 | G64: =COUNTIFS(Actions!K:K,"En cours",Actions!G:G,3,Actions!C:C,B64) -> 0 | H64: =COUNTIFS(Actions!I:I,"Non",Actions!C:C,B64) -> 0 | I64: =COUNTIFS(Actions!I:I,"Non",Actions!G:G,3,Actions!C:C,B64) -> 0 | J64: =M64-COUNTIFS(Actions!I:I,"NA",Actions!C:C,B64) -> 4 | K64: =N64-COUNTIFS(Actions!I:I,"NA",Actions!G:G,3,Actions!C:C,B64) -> 4 | L64: =O64-COUNTIFS(Actions!I:I,"NA",Actions!G:G,3,Actions!C:C,B64)-COUNTIFS(Actions!I:I,"NA",Actions!G:G,2,Actions!C:C,B64) -> 4 | M64: =COUNTIFS(Actions!AW:AW,1,Actions!C:C,B64) -> 4 | N64: =COUNTIFS(Actions!AW:AW,1,Actions!G:G,3,Actions!C:C,B64) -> 4 | O64: =COUNTIFS(Actions!AW:AW,1,Actions!G:G,3,Actions!C:C,B64)+COUNTIFS(Actions!AW:AW,1,Actions!G:G,2,Actions!C:C,B64) -> 4 | P64: =IF(K64=0,"",D64/K64) -> 0 | Q64: 0 | R64: 0
B65: Vie privée | C65: =COUNTIFS(Actions!K:K,"Fait",Actions!C:C,B65) -> 0 | D65: =COUNTIFS(Actions!K:K,"Fait",Actions!C:C,B65,Actions!G:G,3) -> 0 | E65: =COUNTIFS(Actions!K:K,"Fait",Actions!C:C,B65,Actions!G:G,3)+COUNTIFS(Actions!K:K,"Fait",Actions!C:C,B65,Actions!G:G,2) -> 0 | F65: =COUNTIFS(Actions!K:K,"En cours",Actions!C:C,B65) -> 0 | G65: =COUNTIFS(Actions!K:K,"En cours",Actions!G:G,3,Actions!C:C,B65) -> 0 | H65: =COUNTIFS(Actions!I:I,"Non",Actions!C:C,B65) -> 0 | I65: =COUNTIFS(Actions!I:I,"Non",Actions!G:G,3,Actions!C:C,B65) -> 0 | J65: =M65-COUNTIFS(Actions!I:I,"NA",Actions!C:C,B65) -> 0 | K65: =N65-COUNTIFS(Actions!I:I,"NA",Actions!G:G,3,Actions!C:C,B65) -> 0 | L65: =O65-COUNTIFS(Actions!I:I,"NA",Actions!G:G,3,Actions!C:C,B65)-COUNTIFS(Actions!I:I,"NA",Actions!G:G,2,Actions!C:C,B65) -> 0 | M65: =COUNTIFS(Actions!AW:AW,1,Actions!C:C,B65) -> 0 | N65: =COUNTIFS(Actions!AW:AW,1,Actions!G:G,3,Actions!C:C,B65) -> 0 | O65: =COUNTIFS(Actions!AW:AW,1,Actions!G:G,3,Actions!C:C,B65)+COUNTIFS(Actions!AW:AW,1,Actions!G:G,2,Actions!C:C,B65) -> 0 | P65: =IF(K65=0,"",D65/K65) -> 
B67: SECURITE | C67: =COUNTIFS(Actions!K:K,"Fait",Actions!B:B,B67) -> 0 | D67: =COUNTIFS(Actions!K:K,"Fait",Actions!B:B,B67,Actions!G:G,3) -> 0 | E67: =COUNTIFS(Actions!K:K,"Fait",Actions!B:B,B67,Actions!G:G,3)+COUNTIFS(Actions!K:K,"Fait",Actions!B:B,B67,Actions!G:G,2) -> 0 | F67: =COUNTIFS(Actions!K:K,"En cours",Actions!B:B,B67) -> 0 | G67: =COUNTIFS(Actions!K:K,"En cours",Actions!G:G,3,Actions!B:B,B67) -> 0 | H67: =COUNTIFS(Actions!I:I,"Non",Actions!B:B,B67) -> 0 | I67: =COUNTIFS(Actions!I:I,"Non",Actions!G:G,3,Actions!B:B,B67) -> 0 | J67: =M67-COUNTIFS(Actions!I:I,"NA",Actions!B:B,B67) -> 5 | K67: =N67-COUNTIFS(Actions!I:I,"NA",Actions!G:G,3,Actions!B:B,B67) -> 5 | L67: =O67-COUNTIFS(Actions!I:I,"NA",Actions!G:G,3,Actions!B:B,B67)-COUNTIFS(Actions!I:I,"NA",Actions!G:G,2,Actions!B:B,B67) -> 5 | M67: =COUNTIFS(Actions!AW:AW,1,Actions!B:B,B67) -> 5 | N67: =COUNTIFS(Actions!AW:AW,1,Actions!G:G,3,Actions!B:B,B67) -> 5 | O67: =COUNTIFS(Actions!AW:AW,1,Actions!G:G,3,Actions!B:B,B67)+COUNTIFS(Actions!AW:AW,1,Actions!G:G,2,Actions!B:B,B67) -> 5 | P67: =IF(K67=0,0,D67/K67) -> 0 | Q67: =IF(L67=0,0,E67/L67) -> 0 | R67: =IF(J67=0,0,C67/J67) -> 0
B68: Alcool | C68: =COUNTIFS(Actions!K:K,"Fait",Actions!C:C,B68) -> 0 | D68: =COUNTIFS(Actions!K:K,"Fait",Actions!C:C,B68,Actions!G:G,3) -> 0 | E68: =COUNTIFS(Actions!K:K,"Fait",Actions!C:C,B68,Actions!G:G,3)+COUNTIFS(Actions!K:K,"Fait",Actions!C:C,B68,Actions!G:G,2) -> 0 | F68: =COUNTIFS(Actions!K:K,"En cours",Actions!C:C,B68) -> 0 | G68: =COUNTIFS(Actions!K:K,"En cours",Actions!G:G,3,Actions!C:C,B68) -> 0 | H68: =COUNTIFS(Actions!I:I,"Non",Actions!C:C,B68) -> 0 | I68: =COUNTIFS(Actions!I:I,"Non",Actions!G:G,3,Actions!C:C,B68) -> 0 | J68: =M68-COUNTIFS(Actions!I:I,"NA",Actions!C:C,B68) -> 1 | K68: =N68-COUNTIFS(Actions!I:I,"NA",Actions!G:G,3,Actions!C:C,B68) -> 1 | L68: =O68-COUNTIFS(Actions!I:I,"NA",Actions!G:G,3,Actions!C:C,B68)-COUNTIFS(Actions!I:I,"NA",Actions!G:G,2,Actions!C:C,B68) -> 1 | M68: =COUNTIFS(Actions!AW:AW,1,Actions!C:C,B68) -> 1 | N68: =COUNTIFS(Actions!AW:AW,1,Actions!G:G,3,Actions!C:C,B68) -> 1 | O68: =COUNTIFS(Actions!AW:AW,1,Actions!G:G,3,Actions!C:C,B68)+COUNTIFS(Actions!AW:AW,1,Actions!G:G,2,Actions!C:C,B68) -> 1 | P68: =IF(K68=0,"",D68/K68) -> 0 | Q68: =IF(L68=0,"",E68/L68) -> 0 | R68: 0
B69: Nuisances sonores | C69: =COUNTIFS(Actions!K:K,"Fait",Actions!C:C,B69) -> 0 | D69: =COUNTIFS(Actions!K:K,"Fait",Actions!C:C,B69,Actions!G:G,3) -> 0 | E69: =COUNTIFS(Actions!K:K,"Fait",Actions!C:C,B69,Actions!G:G,3)+COUNTIFS(Actions!K:K,"Fait",Actions!C:C,B69,Actions!G:G,2) -> 0 | F69: =COUNTIFS(Actions!K:K,"En cours",Actions!C:C,B69) -> 0 | G69: =COUNTIFS(Actions!K:K,"En cours",Actions!G:G,3,Actions!C:C,B69) -> 0 | H69: =COUNTIFS(Actions!I:I,"Non",Actions!C:C,B69) -> 0 | I69: =COUNTIFS(Actions!I:I,"Non",Actions!G:G,3,Actions!C:C,B69) -> 0 | J69: =M69-COUNTIFS(Actions!I:I,"NA",Actions!C:C,B69) -> 1 | K69: =N69-COUNTIFS(Actions!I:I,"NA",Actions!G:G,3,Actions!C:C,B69) -> 1 | L69: =O69-COUNTIFS(Actions!I:I,"NA",Actions!G:G,3,Actions!C:C,B69)-COUNTIFS(Actions!I:I,"NA",Actions!G:G,2,Actions!C:C,B69) -> 1 | M69: =COUNTIFS(Actions!AW:AW,1,Actions!C:C,B69) -> 1 | N69: =COUNTIFS(Actions!AW:AW,1,Actions!G:G,3,Actions!C:C,B69) -> 1 | O69: =COUNTIFS(Actions!AW:AW,1,Actions!G:G,3,Actions!C:C,B69)+COUNTIFS(Actions!AW:AW,1,Actions!G:G,2,Actions!C:C,B69) -> 1 | P69: 0 | Q69: 0 | R69: 0
B70: Organisation | C70: =COUNTIFS(Actions!K:K,"Fait",Actions!C:C,B70) -> 0 | D70: =COUNTIFS(Actions!K:K,"Fait",Actions!C:C,B70,Actions!G:G,3) -> 0 | E70: =COUNTIFS(Actions!K:K,"Fait",Actions!C:C,B70,Actions!G:G,3)+COUNTIFS(Actions!K:K,"Fait",Actions!C:C,B70,Actions!G:G,2) -> 0 | F70: =COUNTIFS(Actions!K:K,"En cours",Actions!C:C,B70) -> 0 | G70: =COUNTIFS(Actions!K:K,"En cours",Actions!G:G,3,Actions!C:C,B70) -> 0 | H70: =COUNTIFS(Actions!I:I,"Non",Actions!C:C,B70) -> 0 | I70: =COUNTIFS(Actions!I:I,"Non",Actions!G:G,3,Actions!C:C,B70) -> 0 | J70: =M70-COUNTIFS(Actions!I:I,"NA",Actions!C:C,B70) -> 2 | K70: =N70-COUNTIFS(Actions!I:I,"NA",Actions!G:G,3,Actions!C:C,B70) -> 2 | L70: =O70-COUNTIFS(Actions!I:I,"NA",Actions!G:G,3,Actions!C:C,B70)-COUNTIFS(Actions!I:I,"NA",Actions!G:G,2,Actions!C:C,B70) -> 2 | M70: =COUNTIFS(Actions!AW:AW,1,Actions!C:C,B70) -> 2 | N70: =COUNTIFS(Actions!AW:AW,1,Actions!G:G,3,Actions!C:C,B70) -> 2 | O70: =COUNTIFS(Actions!AW:AW,1,Actions!G:G,3,Actions!C:C,B70)+COUNTIFS(Actions!AW:AW,1,Actions!G:G,2,Actions!C:C,B70) -> 2 | P70: 0 | Q70: 0 | R70: 0
B71: Parking | C71: =COUNTIFS(Actions!K:K,"Fait",Actions!C:C,B71) -> 0 | D71: =COUNTIFS(Actions!K:K,"Fait",Actions!C:C,B71,Actions!G:G,3) -> 0 | E71: =COUNTIFS(Actions!K:K,"Fait",Actions!C:C,B71,Actions!G:G,3)+COUNTIFS(Actions!K:K,"Fait",Actions!C:C,B71,Actions!G:G,2) -> 0 | F71: =COUNTIFS(Actions!K:K,"En cours",Actions!C:C,B71) -> 0 | G71: =COUNTIFS(Actions!K:K,"En cours",Actions!G:G,3,Actions!C:C,B71) -> 0 | H71: =COUNTIFS(Actions!I:I,"Non",Actions!C:C,B71) -> 0 | I71: =COUNTIFS(Actions!I:I,"Non",Actions!G:G,3,Actions!C:C,B71) -> 0 | J71: =M71-COUNTIFS(Actions!I:I,"NA",Actions!C:C,B71) -> 0 | K71: =N71-COUNTIFS(Actions!I:I,"NA",Actions!G:G,3,Actions!C:C,B71) -> 0 | L71: =O71-COUNTIFS(Actions!I:I,"NA",Actions!G:G,3,Actions!C:C,B71)-COUNTIFS(Actions!I:I,"NA",Actions!G:G,2,Actions!C:C,B71) -> 0 | M71: =COUNTIFS(Actions!AW:AW,1,Actions!C:C,B71) -> 0 | N71: =COUNTIFS(Actions!AW:AW,1,Actions!G:G,3,Actions!C:C,B71) -> 0 | O71: =COUNTIFS(Actions!AW:AW,1,Actions!G:G,3,Actions!C:C,B71)+COUNTIFS(Actions!AW:AW,1,Actions!G:G,2,Actions!C:C,B71) -> 0
B72: Risque de chute de plein pied | C72: =COUNTIFS(Actions!K:K,"Fait",Actions!C:C,B72) -> 0 | D72: =COUNTIFS(Actions!K:K,"Fait",Actions!C:C,B72,Actions!G:G,3) -> 0 | E72: =COUNTIFS(Actions!K:K,"Fait",Actions!C:C,B72,Actions!G:G,3)+COUNTIFS(Actions!K:K,"Fait",Actions!C:C,B72,Actions!G:G,2) -> 0 | F72: =COUNTIFS(Actions!K:K,"En cours",Actions!C:C,B72) -> 0 | G72: =COUNTIFS(Actions!K:K,"En cours",Actions!G:G,3,Actions!C:C,B72) -> 0 | H72: =COUNTIFS(Actions!I:I,"Non",Actions!C:C,B72) -> 0 | I72: =COUNTIFS(Actions!I:I,"Non",Actions!G:G,3,Actions!C:C,B72) -> 0 | J72: =M72-COUNTIFS(Actions!I:I,"NA",Actions!C:C,B72) -> 0 | K72: =N72-COUNTIFS(Actions!I:I,"NA",Actions!G:G,3,Actions!C:C,B72) -> 0 | L72: =O72-COUNTIFS(Actions!I:I,"NA",Actions!G:G,3,Actions!C:C,B72)-COUNTIFS(Actions!I:I,"NA",Actions!G:G,2,Actions!C:C,B72) -> 0 | M72: =COUNTIFS(Actions!AW:AW,1,Actions!C:C,B72) -> 0 | N72: =COUNTIFS(Actions!AW:AW,1,Actions!G:G,3,Actions!C:C,B72) -> 0 | O72: =COUNTIFS(Actions!AW:AW,1,Actions!G:G,3,Actions!C:C,B72)+COUNTIFS(Actions!AW:AW,1,Actions!G:G,2,Actions!C:C,B72) -> 0 | P72: =IF(K72=0,"",D72/K72) -> 
B73: Risque électrique | C73: =COUNTIFS(Actions!K:K,"Fait",Actions!C:C,B73) -> 0 | D73: =COUNTIFS(Actions!K:K,"Fait",Actions!C:C,B73,Actions!G:G,3) -> 0 | E73: =COUNTIFS(Actions!K:K,"Fait",Actions!C:C,B73,Actions!G:G,3)+COUNTIFS(Actions!K:K,"Fait",Actions!C:C,B73,Actions!G:G,2) -> 0 | F73: =COUNTIFS(Actions!K:K,"En cours",Actions!C:C,B73) -> 0 | G73: =COUNTIFS(Actions!K:K,"En cours",Actions!G:G,3,Actions!C:C,B73) -> 0 | H73: =COUNTIFS(Actions!I:I,"Non",Actions!C:C,B73) -> 0 | I73: =COUNTIFS(Actions!I:I,"Non",Actions!G:G,3,Actions!C:C,B73) -> 0 | J73: =M73-COUNTIFS(Actions!I:I,"NA",Actions!C:C,B73) -> 0 | K73: =N73-COUNTIFS(Actions!I:I,"NA",Actions!G:G,3,Actions!C:C,B73) -> 0 | L73: =O73-COUNTIFS(Actions!I:I,"NA",Actions!G:G,3,Actions!C:C,B73)-COUNTIFS(Actions!I:I,"NA",Actions!G:G,2,Actions!C:C,B73) -> 0 | M73: =COUNTIFS(Actions!AW:AW,1,Actions!C:C,B73) -> 0 | N73: =COUNTIFS(Actions!AW:AW,1,Actions!G:G,3,Actions!C:C,B73) -> 0 | O73: =COUNTIFS(Actions!AW:AW,1,Actions!G:G,3,Actions!C:C,B73)+COUNTIFS(Actions!AW:AW,1,Actions!G:G,2,Actions!C:C,B73) -> 0
B74: Risque incendie | C74: =COUNTIFS(Actions!K:K,"Fait",Actions!C:C,B74) -> 0 | D74: =COUNTIFS(Actions!K:K,"Fait",Actions!C:C,B74,Actions!G:G,3) -> 0 | E74: =COUNTIFS(Actions!K:K,"Fait",Actions!C:C,B74,Actions!G:G,3)+COUNTIFS(Actions!K:K,"Fait",Actions!C:C,B74,Actions!G:G,2) -> 0 | F74: =COUNTIFS(Actions!K:K,"En cours",Actions!C:C,B74) -> 0 | G74: =COUNTIFS(Actions!K:K,"En cours",Actions!G:G,3,Actions!C:C,B74) -> 0 | H74: =COUNTIFS(Actions!I:I,"Non",Actions!C:C,B74) -> 0 | I74: =COUNTIFS(Actions!I:I,"Non",Actions!G:G,3,Actions!C:C,B74) -> 0 | J74: =M74-COUNTIFS(Actions!I:I,"NA",Actions!C:C,B74) -> 2 | K74: =N74-COUNTIFS(Actions!I:I,"NA",Actions!G:G,3,Actions!C:C,B74) -> 2 | L74: =O74-COUNTIFS(Actions!I:I,"NA",Actions!G:G,3,Actions!C:C,B74)-COUNTIFS(Actions!I:I,"NA",Actions!G:G,2,Actions!C:C,B74) -> 2 | M74: =COUNTIFS(Actions!AW:AW,1,Actions!C:C,B74) -> 2 | N74: =COUNTIFS(Actions!AW:AW,1,Actions!G:G,3,Actions!C:C,B74) -> 2 | O74: =COUNTIFS(Actions!AW:AW,1,Actions!G:G,3,Actions!C:C,B74)+COUNTIFS(Actions!AW:AW,1,Actions!G:G,2,Actions!C:C,B74) -> 2 | P74: 0 | Q74: 0 | R74: 0
B76: SOLIDARITE | C76: =COUNTIFS(Actions!K:K,"Fait",Actions!B:B,B76) -> 0 | D76: =COUNTIFS(Actions!K:K,"Fait",Actions!B:B,B76,Actions!G:G,3) -> 0 | E76: =COUNTIFS(Actions!K:K,"Fait",Actions!B:B,B76,Actions!G:G,3)+COUNTIFS(Actions!K:K,"Fait",Actions!B:B,B76,Actions!G:G,2) -> 0 | F76: =COUNTIFS(Actions!K:K,"En cours",Actions!B:B,B76) -> 0 | G76: =COUNTIFS(Actions!K:K,"En cours",Actions!G:G,3,Actions!B:B,B76) -> 0 | H76: =COUNTIFS(Actions!I:I,"Non",Actions!B:B,B76) -> 0 | I76: =COUNTIFS(Actions!I:I,"Non",Actions!G:G,3,Actions!B:B,B76) -> 0 | J76: =M76-COUNTIFS(Actions!I:I,"NA",Actions!B:B,B76) -> 0 | K76: =N76-COUNTIFS(Actions!I:I,"NA",Actions!G:G,3,Actions!B:B,B76) -> 0 | L76: =O76-COUNTIFS(Actions!I:I,"NA",Actions!G:G,3,Actions!B:B,B76)-COUNTIFS(Actions!I:I,"NA",Actions!G:G,2,Actions!B:B,B76) -> 0 | M76: =COUNTIFS(Actions!AW:AW,1,Actions!B:B,B76) -> 0 | N76: =COUNTIFS(Actions!AW:AW,1,Actions!G:G,3,Actions!B:B,B76) -> 0 | O76: =COUNTIFS(Actions!AW:AW,1,Actions!G:G,3,Actions!B:B,B76)+COUNTIFS(Actions!AW:AW,1,Actions!G:G,2,Actions!B:B,B76) -> 0 | P76: =IF(K76=0,1,D76/K76) -> 1 | Q76: =IF(L76=0,0,E76/L76) -> 0 | R76: =IF(J76=0,0,C76/J76) -> 0
B77: Promotion de la solidarité | C77: =COUNTIFS(Actions!K:K,"Fait",Actions!C:C,B77) -> 0 | D77: =COUNTIFS(Actions!K:K,"Fait",Actions!C:C,B77,Actions!G:G,3) -> 0 | E77: =COUNTIFS(Actions!K:K,"Fait",Actions!C:C,B77,Actions!G:G,3)+COUNTIFS(Actions!K:K,"Fait",Actions!C:C,B77,Actions!G:G,2) -> 0 | F77: =COUNTIFS(Actions!K:K,"En cours",Actions!C:C,B77) -> 0 | G77: =COUNTIFS(Actions!K:K,"En cours",Actions!G:G,3,Actions!C:C,B77) -> 0 | H77: =COUNTIFS(Actions!I:I,"Non",Actions!C:C,B77) -> 0 | I77: =COUNTIFS(Actions!I:I,"Non",Actions!G:G,3,Actions!C:C,B77) -> 0 | J77: =M77-COUNTIFS(Actions!I:I,"NA",Actions!C:C,B77) -> 0 | K77: =N77-COUNTIFS(Actions!I:I,"NA",Actions!G:G,3,Actions!C:C,B77) -> 0 | L77: =O77-COUNTIFS(Actions!I:I,"NA",Actions!G:G,3,Actions!C:C,B77)-COUNTIFS(Actions!I:I,"NA",Actions!G:G,2,Actions!C:C,B77) -> 0 | M77: =COUNTIFS(Actions!AW:AW,1,Actions!C:C,B77) -> 0 | N77: =COUNTIFS(Actions!AW:AW,1,Actions!G:G,3,Actions!C:C,B77) -> 0 | O77: =COUNTIFS(Actions!AW:AW,1,Actions!G:G,3,Actions!C:C,B77)+COUNTIFS(Actions!AW:AW,1,Actions!G:G,2,Actions!C:C,B77) -> 0 | P77: =IF(K77=0,"",D77/K77) ->  | Q77: =IF(L77=0,"",E77/L77) -> 
B78: Liens humains | C78: =COUNTIFS(Actions!K:K,"Fait",Actions!C:C,B78) -> 0 | D78: =COUNTIFS(Actions!K:K,"Fait",Actions!C:C,B78,Actions!G:G,3) -> 0 | E78: =COUNTIFS(Actions!K:K,"Fait",Actions!C:C,B78,Actions!G:G,3)+COUNTIFS(Actions!K:K,"Fait",Actions!C:C,B78,Actions!G:G,2) -> 0 | F78: =COUNTIFS(Actions!K:K,"En cours",Actions!C:C,B78) -> 0 | G78: =COUNTIFS(Actions!K:K,"En cours",Actions!G:G,3,Actions!C:C,B78) -> 0 | H78: =COUNTIFS(Actions!I:I,"Non",Actions!C:C,B78) -> 0 | I78: =COUNTIFS(Actions!I:I,"Non",Actions!G:G,3,Actions!C:C,B78) -> 0 | J78: =M78-COUNTIFS(Actions!I:I,"NA",Actions!C:C,B78) -> 0 | K78: =N78-COUNTIFS(Actions!I:I,"NA",Actions!G:G,3,Actions!C:C,B78) -> 0 | L78: =O78-COUNTIFS(Actions!I:I,"NA",Actions!G:G,3,Actions!C:C,B78)-COUNTIFS(Actions!I:I,"NA",Actions!G:G,2,Actions!C:C,B78) -> 0 | M78: =COUNTIFS(Actions!AW:AW,1,Actions!C:C,B78) -> 0 | N78: =COUNTIFS(Actions!AW:AW,1,Actions!G:G,3,Actions!C:C,B78) -> 0 | O78: =COUNTIFS(Actions!AW:AW,1,Actions!G:G,3,Actions!C:C,B78)+COUNTIFS(Actions!AW:AW,1,Actions!G:G,2,Actions!C:C,B78) -> 0 | P78: =IF(K78=0,"",D78/K78) -> 
B79: Sensibilisation | C79: =COUNTIFS(Actions!K:K,"Fait",Actions!C:C,B79) -> 0 | D79: =COUNTIFS(Actions!K:K,"Fait",Actions!C:C,B79,Actions!G:G,3) -> 0 | E79: =COUNTIFS(Actions!K:K,"Fait",Actions!C:C,B79,Actions!G:G,3)+COUNTIFS(Actions!K:K,"Fait",Actions!C:C,B79,Actions!G:G,2) -> 0 | F79: =COUNTIFS(Actions!K:K,"En cours",Actions!C:C,B79) -> 0 | G79: =COUNTIFS(Actions!K:K,"En cours",Actions!G:G,3,Actions!C:C,B79) -> 0 | H79: =COUNTIFS(Actions!I:I,"Non",Actions!C:C,B79) -> 0 | I79: =COUNTIFS(Actions!I:I,"Non",Actions!G:G,3,Actions!C:C,B79) -> 0 | J79: =M79-COUNTIFS(Actions!I:I,"NA",Actions!C:C,B79) -> 4 | K79: =N79-COUNTIFS(Actions!I:I,"NA",Actions!G:G,3,Actions!C:C,B79) -> 4 | L79: =O79-COUNTIFS(Actions!I:I,"NA",Actions!G:G,3,Actions!C:C,B79)-COUNTIFS(Actions!I:I,"NA",Actions!G:G,2,Actions!C:C,B79) -> 4 | M79: =COUNTIFS(Actions!AW:AW,1,Actions!C:C,B79) -> 4 | N79: =COUNTIFS(Actions!AW:AW,1,Actions!G:G,3,Actions!C:C,B79) -> 4 | O79: =COUNTIFS(Actions!AW:AW,1,Actions!G:G,3,Actions!C:C,B79)+COUNTIFS(Actions!AW:AW,1,Actions!G:G,2,Actions!C:C,B79) -> 4 | P79: =IF(K79=0,"",D79/K79) -> 0 | Q79: 0 | R79: 0
B80: Soutien à des causes | C80: =COUNTIFS(Actions!K:K,"Fait",Actions!C:C,B80) -> 0 | D80: =COUNTIFS(Actions!K:K,"Fait",Actions!C:C,B80,Actions!G:G,3) -> 0 | E80: =COUNTIFS(Actions!K:K,"Fait",Actions!C:C,B80,Actions!G:G,3)+COUNTIFS(Actions!K:K,"Fait",Actions!C:C,B80,Actions!G:G,2) -> 0 | F80: =COUNTIFS(Actions!K:K,"En cours",Actions!C:C,B80) -> 0 | G80: =COUNTIFS(Actions!K:K,"En cours",Actions!G:G,3,Actions!C:C,B80) -> 0 | H80: =COUNTIFS(Actions!I:I,"Non",Actions!C:C,B80) -> 0 | I80: =COUNTIFS(Actions!I:I,"Non",Actions!G:G,3,Actions!C:C,B80) -> 0 | J80: =M80-COUNTIFS(Actions!I:I,"NA",Actions!C:C,B80) -> 0 | K80: =N80-COUNTIFS(Actions!I:I,"NA",Actions!G:G,3,Actions!C:C,B80) -> 0 | L80: =O80-COUNTIFS(Actions!I:I,"NA",Actions!G:G,3,Actions!C:C,B80)-COUNTIFS(Actions!I:I,"NA",Actions!G:G,2,Actions!C:C,B80) -> 0 | M80: =COUNTIFS(Actions!AW:AW,1,Actions!C:C,B80) -> 0 | N80: =COUNTIFS(Actions!AW:AW,1,Actions!G:G,3,Actions!C:C,B80) -> 0 | O80: =COUNTIFS(Actions!AW:AW,1,Actions!G:G,3,Actions!C:C,B80)+COUNTIFS(Actions!AW:AW,1,Actions!G:G,2,Actions!C:C,B80) -> 0 | P80: =IF(K80=0,"",D80/K80) -> 
B82: VOISINAGE | C82: =COUNTIFS(Actions!K:K,"Fait",Actions!B:B,B82) -> 0 | D82: =COUNTIFS(Actions!K:K,"Fait",Actions!B:B,B82,Actions!G:G,3) -> 0 | E82: =COUNTIFS(Actions!K:K,"Fait",Actions!B:B,B82,Actions!G:G,3)+COUNTIFS(Actions!K:K,"Fait",Actions!B:B,B82,Actions!G:G,2) -> 0 | F82: =COUNTIFS(Actions!K:K,"En cours",Actions!B:B,B82) -> 0 | G82: =COUNTIFS(Actions!K:K,"En cours",Actions!G:G,3,Actions!B:B,B82) -> 0 | H82: =COUNTIFS(Actions!I:I,"Non",Actions!B:B,B82) -> 0 | I82: =COUNTIFS(Actions!I:I,"Non",Actions!G:G,3,Actions!B:B,B82) -> 0 | J82: =M82-COUNTIFS(Actions!I:I,"NA",Actions!B:B,B82) -> 4 | K82: =N82-COUNTIFS(Actions!I:I,"NA",Actions!G:G,3,Actions!B:B,B82) -> 4 | L82: =O82-COUNTIFS(Actions!I:I,"NA",Actions!G:G,3,Actions!B:B,B82)-COUNTIFS(Actions!I:I,"NA",Actions!G:G,2,Actions!B:B,B82) -> 4 | M82: =COUNTIFS(Actions!AW:AW,1,Actions!B:B,B82) -> 4 | N82: =COUNTIFS(Actions!AW:AW,1,Actions!G:G,3,Actions!B:B,B82) -> 4 | O82: =COUNTIFS(Actions!AW:AW,1,Actions!G:G,3,Actions!B:B,B82)+COUNTIFS(Actions!AW:AW,1,Actions!G:G,2,Actions!B:B,B82) -> 4 | P82: =IF(K82=0,0,D82/K82) -> 0 | Q82: =IF(L82=0,0,E82/L82) -> 0 | R82: =IF(J82=0,0,C82/J82) -> 0
B83: Impact paysager | C83: =COUNTIFS(Actions!K:K,"Fait",Actions!C:C,B83) -> 0 | D83: =COUNTIFS(Actions!K:K,"Fait",Actions!C:C,B83,Actions!G:G,3) -> 0 | E83: =COUNTIFS(Actions!K:K,"Fait",Actions!C:C,B83,Actions!G:G,3)+COUNTIFS(Actions!K:K,"Fait",Actions!C:C,B83,Actions!G:G,2) -> 0 | F83: =COUNTIFS(Actions!K:K,"En cours",Actions!C:C,B83) -> 0 | G83: =COUNTIFS(Actions!K:K,"En cours",Actions!G:G,3,Actions!C:C,B83) -> 0 | H83: =COUNTIFS(Actions!I:I,"Non",Actions!C:C,B83) -> 0 | I83: =COUNTIFS(Actions!I:I,"Non",Actions!G:G,3,Actions!C:C,B83) -> 0 | J83: =M83-COUNTIFS(Actions!I:I,"NA",Actions!C:C,B83) -> 1 | K83: =N83-COUNTIFS(Actions!I:I,"NA",Actions!G:G,3,Actions!C:C,B83) -> 1 | L83: =O83-COUNTIFS(Actions!I:I,"NA",Actions!G:G,3,Actions!C:C,B83)-COUNTIFS(Actions!I:I,"NA",Actions!G:G,2,Actions!C:C,B83) -> 1 | M83: =COUNTIFS(Actions!AW:AW,1,Actions!C:C,B83) -> 1 | N83: =COUNTIFS(Actions!AW:AW,1,Actions!G:G,3,Actions!C:C,B83) -> 1 | O83: =COUNTIFS(Actions!AW:AW,1,Actions!G:G,3,Actions!C:C,B83)+COUNTIFS(Actions!AW:AW,1,Actions!G:G,2,Actions!C:C,B83) -> 1 | P83: =IF(K83=0,"",D83/K83) -> 0 | Q83: =IF(L83=0,"",E83/L83) -> 0 | R83: 0
B84: Nuisances sonores | C84: =COUNTIFS(Actions!K:K,"Fait",Actions!C:C,B84) -> 0 | D84: =COUNTIFS(Actions!K:K,"Fait",Actions!C:C,B84,Actions!G:G,3) -> 0 | E84: =COUNTIFS(Actions!K:K,"Fait",Actions!C:C,B84,Actions!G:G,3)+COUNTIFS(Actions!K:K,"Fait",Actions!C:C,B84,Actions!G:G,2) -> 0 | F84: =COUNTIFS(Actions!K:K,"En cours",Actions!C:C,B84) -> 0 | G84: =COUNTIFS(Actions!K:K,"En cours",Actions!G:G,3,Actions!C:C,B84) -> 0 | H84: =COUNTIFS(Actions!I:I,"Non",Actions!C:C,B84) -> 0 | I84: =COUNTIFS(Actions!I:I,"Non",Actions!G:G,3,Actions!C:C,B84) -> 0 | J84: =M84-COUNTIFS(Actions!I:I,"NA",Actions!C:C,B84) -> 1 | K84: =N84-COUNTIFS(Actions!I:I,"NA",Actions!G:G,3,Actions!C:C,B84) -> 1 | L84: =O84-COUNTIFS(Actions!I:I,"NA",Actions!G:G,3,Actions!C:C,B84)-COUNTIFS(Actions!I:I,"NA",Actions!G:G,2,Actions!C:C,B84) -> 1 | M84: =COUNTIFS(Actions!AW:AW,1,Actions!C:C,B84) -> 1 | N84: =COUNTIFS(Actions!AW:AW,1,Actions!G:G,3,Actions!C:C,B84) -> 1 | O84: =COUNTIFS(Actions!AW:AW,1,Actions!G:G,3,Actions!C:C,B84)+COUNTIFS(Actions!AW:AW,1,Actions!G:G,2,Actions!C:C,B84) -> 1 | P84: 0 | Q84: 0 | R84: 0
B85: Nuisances olfactives | C85: =COUNTIFS(Actions!K:K,"Fait",Actions!C:C,B85) -> 0 | D85: =COUNTIFS(Actions!K:K,"Fait",Actions!C:C,B85,Actions!G:G,3) -> 0 | E85: =COUNTIFS(Actions!K:K,"Fait",Actions!C:C,B85,Actions!G:G,3)+COUNTIFS(Actions!K:K,"Fait",Actions!C:C,B85,Actions!G:G,2) -> 0 | F85: =COUNTIFS(Actions!K:K,"En cours",Actions!C:C,B85) -> 0 | G85: =COUNTIFS(Actions!K:K,"En cours",Actions!G:G,3,Actions!C:C,B85) -> 0 | H85: =COUNTIFS(Actions!I:I,"Non",Actions!C:C,B85) -> 0 | I85: =COUNTIFS(Actions!I:I,"Non",Actions!G:G,3,Actions!C:C,B85) -> 0 | J85: =M85-COUNTIFS(Actions!I:I,"NA",Actions!C:C,B85) -> 0 | K85: =N85-COUNTIFS(Actions!I:I,"NA",Actions!G:G,3,Actions!C:C,B85) -> 0 | L85: =O85-COUNTIFS(Actions!I:I,"NA",Actions!G:G,3,Actions!C:C,B85)-COUNTIFS(Actions!I:I,"NA",Actions!G:G,2,Actions!C:C,B85) -> 0 | M85: =COUNTIFS(Actions!AW:AW,1,Actions!C:C,B85) -> 0 | N85: =COUNTIFS(Actions!AW:AW,1,Actions!G:G,3,Actions!C:C,B85) -> 0 | O85: =COUNTIFS(Actions!AW:AW,1,Actions!G:G,3,Actions!C:C,B85)+COUNTIFS(Actions!AW:AW,1,Actions!G:G,2,Actions!C:C,B85) -> 0
B86: Management | C86: =COUNTIFS(Actions!K:K,"Fait",Actions!C:C,B86) -> 0 | D86: =COUNTIFS(Actions!K:K,"Fait",Actions!C:C,B86,Actions!G:G,3) -> 0 | E86: =COUNTIFS(Actions!K:K,"Fait",Actions!C:C,B86,Actions!G:G,3)+COUNTIFS(Actions!K:K,"Fait",Actions!C:C,B86,Actions!G:G,2) -> 0 | F86: =COUNTIFS(Actions!K:K,"En cours",Actions!C:C,B86) -> 0 | G86: =COUNTIFS(Actions!K:K,"En cours",Actions!G:G,3,Actions!C:C,B86) -> 0 | H86: =COUNTIFS(Actions!I:I,"Non",Actions!C:C,B86) -> 0 | I86: =COUNTIFS(Actions!I:I,"Non",Actions!G:G,3,Actions!C:C,B86) -> 0 | J86: =M86-COUNTIFS(Actions!I:I,"NA",Actions!C:C,B86) -> 2 | K86: =N86-COUNTIFS(Actions!I:I,"NA",Actions!G:G,3,Actions!C:C,B86) -> 2 | L86: =O86-COUNTIFS(Actions!I:I,"NA",Actions!G:G,3,Actions!C:C,B86)-COUNTIFS(Actions!I:I,"NA",Actions!G:G,2,Actions!C:C,B86) -> 2 | M86: =COUNTIFS(Actions!AW:AW,1,Actions!C:C,B86) -> 2 | N86: =COUNTIFS(Actions!AW:AW,1,Actions!G:G,3,Actions!C:C,B86) -> 2 | O86: =COUNTIFS(Actions!AW:AW,1,Actions!G:G,3,Actions!C:C,B86)+COUNTIFS(Actions!AW:AW,1,Actions!G:G,2,Actions!C:C,B86) -> 2 | P86: 0 | Q86: 0 | R86: =IF(J86=0,"",C86/J86) -> 0
B87: Pollution lumineuse | C87: =COUNTIFS(Actions!K:K,"Fait",Actions!C:C,B87) -> 0 | D87: =COUNTIFS(Actions!K:K,"Fait",Actions!C:C,B87,Actions!G:G,3) -> 0 | E87: =COUNTIFS(Actions!K:K,"Fait",Actions!C:C,B87,Actions!G:G,3)+COUNTIFS(Actions!K:K,"Fait",Actions!C:C,B87,Actions!G:G,2) -> 0 | F87: =COUNTIFS(Actions!K:K,"En cours",Actions!C:C,B87) -> 0 | G87: =COUNTIFS(Actions!K:K,"En cours",Actions!G:G,3,Actions!C:C,B87) -> 0 | H87: =COUNTIFS(Actions!I:I,"Non",Actions!C:C,B87) -> 0 | I87: =COUNTIFS(Actions!I:I,"Non",Actions!G:G,3,Actions!C:C,B87) -> 0 | J87: =M87-COUNTIFS(Actions!I:I,"NA",Actions!C:C,B87) -> 0 | K87: =N87-COUNTIFS(Actions!I:I,"NA",Actions!G:G,3,Actions!C:C,B87) -> 0 | L87: =O87-COUNTIFS(Actions!I:I,"NA",Actions!G:G,3,Actions!C:C,B87)-COUNTIFS(Actions!I:I,"NA",Actions!G:G,2,Actions!C:C,B87) -> 0 | M87: =COUNTIFS(Actions!AW:AW,1,Actions!C:C,B87) -> 0 | N87: =COUNTIFS(Actions!AW:AW,1,Actions!G:G,3,Actions!C:C,B87) -> 0 | O87: =COUNTIFS(Actions!AW:AW,1,Actions!G:G,3,Actions!C:C,B87)+COUNTIFS(Actions!AW:AW,1,Actions!G:G,2,Actions!C:C,B87) -> 0 | R87: =IF(J87=0,"",C87/J87) -> 

Sheet Synthese_theme
B9: ANCRAGE TERRITORIAL | C9: Nombre d'actions réalisées | D9: Nombre d'actions en cours | E9: Nombre d'action non prévues | F9: Nombre totale d'action concernée | G9: Nombre totale d'action | H9: % d'actions réalisées
B10: Nombre d'actions indispensables | C10: =VLOOKUP($B9,Synthese!$B:$R,3,FALSE) -> 0 | D10: =VLOOKUP($B9,Synthese!$B:$R,5,FALSE) -> 0 | E10: =VLOOKUP($B9,Synthese!$B:$R,7,FALSE) -> 0 | F10: =VLOOKUP($B9,Synthese!$B:$R,9,FALSE) -> 2 | G10: =VLOOKUP($B9,Synthese!$B:$R,11,FALSE) -> 2 | H10: =IF(F10=0,"",C10/F10) -> 0
B11: Nombre d'actions supplémentaires | C11: =VLOOKUP($B9,Synthese!$B:$R,2,FALSE)-C10 -> 0 | D11: =VLOOKUP($B9,Synthese!$B:$R,4,FALSE)-D10 -> 0 | E11: =VLOOKUP($B9,Synthese!$B:$R,6,FALSE)-E10 -> 0 | F11: =VLOOKUP($B9,Synthese!$B:$R,8,FALSE)-F10 -> -2 | G11: =VLOOKUP($B9,Synthese!$B:$R,10,FALSE)-G10 -> 0 | H11: =IF(F11=0,"",C11/F11) -> 0
B13: SOUS -THEMES | C13: Nombre d'actions réalisées | D13: Nombre d'actions en cours | E13: Nombre d'action non prévues | F13: Nombre totale d'action concernée | G13: Nombre totale d'action | H13: % d'actions réalisées
B14: =HLOOKUP(B9,Paramètres!175:184,2,FALSE) -> Contextualisation de l'événement | C14: =C15+C16 -> 0 | D14: =D15+D16 -> 0 | E14: =E15+E16 -> 0 | F14: =F15+F16 -> 0 | G14: =G15+G16 -> 0 | H14: =IF(F14=0,"",C14/F14) -> 
B15: Actions indispensables | C15: =VLOOKUP($B14,Synthese!$B:$R,3,FALSE) -> 0 | D15: =VLOOKUP($B14,Synthese!$B:$R,6,FALSE) -> 0 | E15: =VLOOKUP($B14,Synthese!$B:$R,8,FALSE) -> 0 | F15: =VLOOKUP($B14,Synthese!$B:$R,10,FALSE) -> 0 | G15: =VLOOKUP($B14,Synthese!$B:$R,13,FALSE) -> 0
B16: Actions supplémentaires | C16: =VLOOKUP($B14,Synthese!$B:$R,2,FALSE)-C15 -> 0 | D16: =VLOOKUP($B14,Synthese!$B:$R,5,FALSE)-D15 -> 0 | E16: =VLOOKUP($B14,Synthese!$B:$R,7,FALSE)-E15 -> 0 | F16: =VLOOKUP($B14,Synthese!$B:$R,9,FALSE)-F15 -> 0 | G16: =VLOOKUP($B14,Synthese!$B:$R,12,FALSE)-G15 -> 0
B17: =HLOOKUP(B9,Paramètres!175:184,3,FALSE) -> Economie locale | C17: =C18+C19 -> 0 | D17: =D18+D19 -> 0 | E17: =E18+E19 -> 0 | F17: =F18+F19 -> 1 | G17: =G18+G19 -> 1 | H17: 0
B18: Actions indispensables | C18: =VLOOKUP($B17,Synthese!$B:$R,3,FALSE) -> 0 | D18: =VLOOKUP($B17,Synthese!$B:$R,6,FALSE) -> 0 | E18: =VLOOKUP($B17,Synthese!$B:$R,8,FALSE) -> 0 | F18: =VLOOKUP($B17,Synthese!$B:$R,10,FALSE) -> 1 | G18: =VLOOKUP($B17,Synthese!$B:$R,13,FALSE) -> 1 | H18: 0
B19: Actions supplémentaires | C19: =VLOOKUP($B17,Synthese!$B:$R,2,FALSE)-C18 -> 0 | D19: =VLOOKUP($B17,Synthese!$B:$R,5,FALSE)-D18 -> 0 | E19: =VLOOKUP($B17,Synthese!$B:$R,7,FALSE)-E18 -> 0 | F19: =VLOOKUP($B17,Synthese!$B:$R,9,FALSE)-F18 -> 0 | G19: =VLOOKUP($B17,Synthese!$B:$R,12,FALSE)-G18 -> 0
B20: =HLOOKUP(B9,Paramètres!175:184,4,FALSE) -> Identification des enjeux locaux | C20: =C21+C22 -> 0 | D20: =D21+D22 -> 0 | E20: =E21+E22 -> 0 | F20: =F21+F22 -> 1 | G20: =G21+G22 -> 1 | H20: 0
B21: Actions indispensables | C21: =VLOOKUP($B20,Synthese!$B:$R,3,FALSE) -> 0 | D21: =VLOOKUP($B20,Synthese!$B:$R,6,FALSE) -> 0 | E21: =VLOOKUP($B20,Synthese!$B:$R,8,FALSE) -> 0 | F21: =VLOOKUP($B20,Synthese!$B:$R,10,FALSE) -> 1 | G21: =VLOOKUP($B20,Synthese!$B:$R,13,FALSE) -> 1 | H21: 0
B22: Actions supplémentaires | C22: =VLOOKUP($B20,Synthese!$B:$R,2,FALSE)-C21 -> 0 | D22: =VLOOKUP($B20,Synthese!$B:$R,5,FALSE)-D21 -> 0 | E22: =VLOOKUP($B20,Synthese!$B:$R,7,FALSE)-E21 -> 0 | F22: =VLOOKUP($B20,Synthese!$B:$R,9,FALSE)-F21 -> 0 | G22: =VLOOKUP($B20,Synthese!$B:$R,12,FALSE)-G21 -> 0
B23: =IF(HLOOKUP(B9,Paramètres!175:184,5,FALSE)=0,"",HLOOKUP(B9,Paramètres!175:184,5,FALSE)) ->  | C23: =IF(B23="","",C24+C25) ->  | D23: =IF(B23="","",D24+D25) ->  | E23: =IF(B23="","",E24+E25) ->  | F23: =IF(C23="","",F24+F25) ->  | G23: =IF(B23="","",G24+G25) ->  | H23: =IF(B23="","",IF(F23=0,"",C23/F23)) -> 
B24: Actions indispensables | C24: =IF(B23="","",VLOOKUP($B23,Synthese!$B:$R,3,FALSE)) ->  | D24: =IF(B23="","",VLOOKUP($B23,Synthese!$B:$R,6,FALSE)) ->  | E24: =IF(B23="","",VLOOKUP($B23,Synthese!$B:$R,8,FALSE)) ->  | F24: =IF(C23="","",VLOOKUP($B23,Synthese!$B:$R,10,FALSE)) ->  | G24: =IF(B23="","",VLOOKUP($B23,Synthese!$B:$R,13,FALSE)) ->  | H24: =IF(B23="","",IF(F24=0,"",C24/F24)) -> 
B25: Actions supplémentaires | C25: =IF(B23="","",VLOOKUP($B23,Synthese!$B:$R,2,FALSE)-C24) ->  | D25: =IF(B23="","",VLOOKUP($B23,Synthese!$B:$R,5,FALSE)-D24) ->  | E25: =IF(B23="","",VLOOKUP($B23,Synthese!$B:$R,7,FALSE)-E24) ->  | F25: =IF(C23="","",VLOOKUP($B23,Synthese!$B:$R,9,FALSE)-F24) ->  | G25: =IF(B23="","",VLOOKUP($B23,Synthese!$B:$R,12,FALSE)-G24) ->  | H25: =IF(B23="","",IF(F25=0,"",C25/F25)) -> 
B26: =IF(B23="","",IF(HLOOKUP(B9,Paramètres!175:184,6,FALSE)=0,"",HLOOKUP(B9,Paramètres!175:184,6,FALSE))) ->  | C26: =IF(B26="","",C27+C28) ->  | D26: =IF(B26="","",D27+D28) ->  | E26: =IF(B26="","",E27+E28) ->  | F26: =IF(C26="","",F27+F28) ->  | G26: =IF(B26="","",G27+G28) ->  | H26: =IF(B26="","",IF(F26=0,"",C26/F26)) -> 
B27: Actions indispensables | C27: =IF(B26="","",VLOOKUP($B26,Synthese!$B:$R,3,FALSE)) ->  | D27: =IF(B26="","",VLOOKUP($B26,Synthese!$B:$R,6,FALSE)) ->  | E27: =IF(B26="","",VLOOKUP($B26,Synthese!$B:$R,8,FALSE)) ->  | F27: =IF(C26="","",VLOOKUP($B26,Synthese!$B:$R,10,FALSE)) ->  | G27: =IF(B26="","",VLOOKUP($B26,Synthese!$B:$R,13,FALSE)) ->  | H27: =IF(B26="","",IF(F27=0,"",C27/F27)) -> 
B28: Actions supplémentaires | C28: =IF(B26="","",VLOOKUP($B26,Synthese!$B:$R,2,FALSE)-C27) ->  | D28: =IF(B26="","",VLOOKUP($B26,Synthese!$B:$R,5,FALSE)-D27) ->  | E28: =IF(B26="","",VLOOKUP($B26,Synthese!$B:$R,7,FALSE)-E27) ->  | F28: =IF(C26="","",VLOOKUP($B26,Synthese!$B:$R,9,FALSE)-F27) ->  | G28: =IF(B26="","",VLOOKUP($B26,Synthese!$B:$R,12,FALSE)-G27) ->  | H28: =IF(B26="","",IF(F28=0,"",C28/F28)) -> 
B29: =IF(B26="","",IF(HLOOKUP(B9,Paramètres!175:184,7,FALSE)=0,"",HLOOKUP(B9,Paramètres!175:184,7,FALSE))) ->  | C29: =IF(B29="","",C30+C31) ->  | D29: =IF(B29="","",D30+D31) ->  | E29: =IF(B29="","",E30+E31) ->  | F29: =IF(C29="","",F30+F31) ->  | G29: =IF(B29="","",G30+G31) ->  | H29: =IF(B29="","",IF(F29=0,"",C29/F29)) -> 
B30: Actions indispensables | C30: =IF(B29="","",VLOOKUP($B29,Synthese!$B:$R,3,FALSE)) ->  | D30: =IF(B29="","",VLOOKUP($B29,Synthese!$B:$R,6,FALSE)) ->  | E30: =IF(B29="","",VLOOKUP($B29,Synthese!$B:$R,8,FALSE)) ->  | F30: =IF(C29="","",VLOOKUP($B29,Synthese!$B:$R,10,FALSE)) ->  | G30: =IF(B29="","",VLOOKUP($B29,Synthese!$B:$R,13,FALSE)) ->  | H30: =IF(B29="","",IF(F30=0,"",C30/F30)) -> 
B31: Actions supplémentaires | C31: =IF(B29="","",VLOOKUP($B29,Synthese!$B:$R,2,FALSE)-C30) ->  | D31: =IF(B29="","",VLOOKUP($B29,Synthese!$B:$R,5,FALSE)-D30) ->  | E31: =IF(B29="","",VLOOKUP($B29,Synthese!$B:$R,7,FALSE)-E30) ->  | F31: =IF(C29="","",VLOOKUP($B29,Synthese!$B:$R,9,FALSE)-F30) ->  | G31: =IF(B29="","",VLOOKUP($B29,Synthese!$B:$R,12,FALSE)-G30) ->  | H31: =IF(B29="","",IF(F31=0,"",C31/F31)) -> 
B32: =IF(B29="","",IF(HLOOKUP(B9,Paramètres!175:184,8,FALSE)=0,"",HLOOKUP(B9,Paramètres!175:184,8,FALSE))) ->  | C32: =IF(B32="","",C33+C34) ->  | D32: =IF(B32="","",D33+D34) ->  | E32: =IF(B32="","",E33+E34) ->  | F32: =IF(C32="","",F33+F34) ->  | G32: =IF(B32="","",G33+G34) ->  | H32: =IF(B32="","",IF(F32=0,"",C32/F32)) -> 
B33: Actions indispensables | C33: =IF(B32="","",VLOOKUP($B32,Synthese!$B:$R,3,FALSE)) ->  | D33: =IF(B32="","",VLOOKUP($B32,Synthese!$B:$R,6,FALSE)) ->  | E33: =IF(B32="","",VLOOKUP($B32,Synthese!$B:$R,8,FALSE)) ->  | F33: =IF(C32="","",VLOOKUP($B32,Synthese!$B:$R,10,FALSE)) ->  | G33: =IF(B32="","",VLOOKUP($B32,Synthese!$B:$R,13,FALSE)) ->  | H33: =IF(B32="","",IF(F33=0,"",C33/F33)) -> 
B34: Actions supplémentaires | C34: =IF(B32="","",VLOOKUP($B32,Synthese!$B:$R,2,FALSE)-C33) ->  | D34: =IF(B32="","",VLOOKUP($B32,Synthese!$B:$R,5,FALSE)-D33) ->  | E34: =IF(B32="","",VLOOKUP($B32,Synthese!$B:$R,7,FALSE)-E33) ->  | F34: =IF(C32="","",VLOOKUP($B32,Synthese!$B:$R,9,FALSE)-F33) ->  | G34: =IF(B32="","",VLOOKUP($B32,Synthese!$B:$R,12,FALSE)-G33) ->  | H34: =IF(B32="","",IF(F34=0,"",C34/F34)) -> 

Sheet Fiche
C9: QUALIFICATION DE L'EVENEMENT : | D9: SCORE ATTEINT | G9: VOTRE SCORE TOTAL | H9: =J75 -> 0.03333333333 | I9: =IF(H9>80%,C12,IF(H9>60%,C11,IF(H9>40%,C10,"A améliorer"))) -> A améliorer
C10: EVENEMENT RESPECTUEUX | D10: 40 à 60 %
C11: EVENEMENT RESPONSABLE | D11: 60 à 80 %
C12: EVENEMENT EXEMPLAIRE | D12: > 80 %
C15: FICHE D'IDENTITE :
C17: Nom : | D17: =Mon_evenement!E28 -> 0 | G17: Nombre d'organisateurs : | I17: =Mon_evenement!V12 -> 10
C19: Date : | D19: =Mon_evenement!E35 -> 00:00:00 | G19: Nombre de participants : | I19: =Mon_evenement!AA12 -> 10000
C21: Association organisatrice : | D21: =Mon_evenement!F30 -> 0
C23: Etablissement : | D23: =Mon_evenement!G32 -> 0
C26: SCORE CARD :
C29: Indispensable
C30: Supplémentaire
C39: ETAT D'AVANCEMENT DES ACTIONS INDISPENSABLES : | I39: EMPREINTE CARBONE : | L39: =Empreinte_Carbone!K298 -> 0 | M39: Kg CO2e
C41: Actions concernées : | D41: =Q71+Q72+Q73+Q74 -> 48
E63: ANCRAGE TERRITORIAL | G63: 1 | H63: 0.7 | I63: 0.4 | J63: =Synthese!P13/2+Synthese!Q13*3/10+Synthese!R13*2/10 -> 0
E64: BIODIVERSITE | G64: 1 | H64: 0.7 | I64: 0.4 | J64: =Synthese!P18/2+Synthese!Q18*3/10+Synthese!R18*2/10 -> 0
E65: CULTURE | G65: 1 | H65: 0.7 | I65: 0.4 | J65: =Synthese!P24/2+Synthese!Q24*3/10+Synthese!R24*2/10 -> 0
E66: ECONOMIE | G66: 1 | H66: 0.7 | I66: 0.4 | J66: =Synthese!P29/2+Synthese!Q29*3/10+Synthese!R29*2/10 -> 0
E67: EMPREINTE CARBONE | G67: 1 | H67: 0.7 | I67: 0.4 | J67: =Synthese!P35/2+Synthese!Q35*3/10+Synthese!R35*2/10 -> 0
E68: EQUITE | G68: 1 | H68: 0.7 | I68: 0.4 | J68: =Synthese!P43/2+Synthese!Q43*3/10+Synthese!R43*2/10 -> 0
E69: GESTION DES RESSOURCES | G69: 1 | H69: 0.7 | I69: 0.4 | J69: =Synthese!P48/2+Synthese!Q48*3/10+Synthese!R48*2/10 -> 0
E70: GOUVERNANCE | G70: 1 | H70: 0.7 | I70: 0.4 | J70: =Synthese!P55/2+Synthese!Q55*3/10+Synthese!R55*2/10 -> 0
E71: RESEPCT PARTICIPANT | G71: 1 | H71: 0.7 | I71: 0.4 | J71: =Synthese!P61/2+Synthese!Q61*3/10+Synthese!R61*2/10 -> 0 | O71: Actions faites | Q71: =Synthese!C8 -> 0
E72: SECURITE | G72: 1 | H72: 0.7 | I72: 0.4 | J72: =Synthese!P67/2+Synthese!Q67*3/10+Synthese!R67*2/10 -> 0 | O72: Actions en cours | Q72: =Synthese!F8 -> 0
E73: SOLIDARITE | G73: 1 | H73: 0.7 | I73: 0.4 | J73: =Synthese!P76*4/10+Synthese!Q76*4/10+Synthese!R76*2/10 -> 0.4 | O73: Actions à démarrer | Q73: =Synthese!J8-Fiche!Q74-Q72-Q71 -> 48
E74: VOISINAGE | G74: 1 | H74: 0.7 | I74: 0.4 | J74: =Synthese!P82/2+Synthese!Q82*3/10+Synthese!R82*2/10 -> 0 | O74: Actions non prévues | Q74: =Synthese!H8 -> 0
J75: =AVERAGE(J63:J74) -> 0.03333333333
F79: Fait | G79: Concerné | I79: B | J79: =IF(L79=0,"",REPT("g",K79/L79*10)) ->  | K79: =Synthese!D$18 -> 0 | L79: =MAX(1,Synthese!K$18) -> 3 | N79: C | O79: =IF(Q79=0,"",REPT("g",P79/Q79*10)) ->  | P79: =Synthese!D$24 -> 0 | Q79: =MAX(1,Synthese!K$24) -> 2
D80: AT | E80: =IF(G80=0,"",REPT("g",F80/G80*10)) ->  | F80: =Synthese!D$13 -> 0 | G80: =MAX(1,Synthese!K$13) -> 2 | I80: B | J80: =IF(L80=0,"",REPT("g",K80/L80*10)) ->  | K80: =Synthese!C$18 -> 0 | L80: =MAX(1,Synthese!J$18) -> 3 | N80: C | O80: =IF(Q80=0,"",REPT("g",P80/Q80*10)) ->  | P80: =Synthese!C$24 -> 0 | Q80: =MAX(1,Synthese!J$24) -> 2
D81: AT | E81: =IF(G81=0,"",REPT("g",F81/G81*10)) ->  | F81: =Synthese!C$13 -> 0 | G81: =MAX(1,Synthese!J$13) -> 2 | I81: B | J81: =IF(L81=0,"",REPT("g",K81/L81*3)) -> ggg | K81: =IF(AND((K79/L79)>0.9,(K80/L80)>0.8),0,IF(AND((K79/L79)>0.8,(K80/L80)>0.3),1,IF((K79/L79)>0.8,2,3))) -> 3 | L81: 3 | N81: C | O81: =IF(Q81=0,"",REPT("g",P81/Q81*3)) -> ggg | P81: =IF(AND((P79/Q79)>0.9,(P80/Q80)>0.8),0,IF(AND((P79/Q79)>0.8,(P80/Q80)>0.3),1,IF((P79/Q79)>0.8,2,3))) -> 3 | Q81: 3
D82: AT | E82: =IF(G82=0,"",REPT("g",F82/G82*3)) -> ggg | F82: =IF(AND((F80/G80)>0.9,(F81/G81)>0.8),0,IF(AND((F80/G80)>0.8,(F81/G81)>0.3),1,IF((F80/G80)>0.8,2,3))) -> 3 | G82: 3
N83: So | O83: =IF(Q83=0,"",REPT("g",P83/Q83*10)) ->  | P83: =MIN(1,P84/3) -> 0 | Q83: =MAX(1,Synthese!K$76) -> 1
D84: Ec | E84: =IF(G84=0,"",REPT("g",F84/G84*10)) ->  | F84: =Synthese!D$29 -> 0 | G84: =MAX(1,Synthese!K$29) -> 4 | I84: G | J84: =IF(L84=0,"",REPT("g",K84/L84*10)) ->  | K84: =Synthese!D$55 -> 0 | L84: =MAX(1,Synthese!K$55) -> 3 | N84: So | O84: =IF(Q84=0,"",REPT("g",P84/Q84*10)) ->  | P84: =Synthese!C$76 -> 0 | Q84: =MAX(1,Synthese!J$76) -> 1
D85: Ec | E85: =IF(G85=0,"",REPT("g",F85/G85*10)) ->  | F85: =Synthese!C$29 -> 0 | G85: =MAX(1,Synthese!J$29) -> 4 | I85: G | J85: =IF(L85=0,"",REPT("g",K85/L85*10)) ->  | K85: =Synthese!C$55 -> 0 | L85: =MAX(1,Synthese!J$55) -> 3 | N85: So | O85: =IF(Q85=0,"",REPT("g",P85/Q85*3)) -> ggg | P85: =IF(AND((P83/Q83)>0.9,(P84/Q84)>0.8),0,IF(AND((P83/Q83)>0.8,(P84/Q84)>0.3),1,IF((P83/Q83)>0.8,2,3))) -> 3 | Q85: 3
D86: Ec | E86: =IF(G86=0,"",REPT("g",F86/G86*3)) -> ggg | F86: =IF(AND((F84/G84)>0.9,(F85/G85)>0.8),0,IF(AND((F84/G84)>0.8,(F85/G85)>0.3),1,IF((F84/G84)>0.8,2,3))) -> 3 | G86: 3 | I86: G | J86: =IF(L86=0,"",REPT("g",K86/L86*3)) -> ggg | K86: =IF(AND((K84/L84)>0.9,(K85/L85)>0.8),0,IF(AND((K84/L84)>0.8,(K85/L85)>0.3),1,IF((K84/L84)>0.8,2,3))) -> 3 | L86: 3
N88: V | O88: =IF(Q88=0,"",REPT("g",P88/Q88*10)) ->  | P88: =Synthese!D$82 -> 0 | Q88: =MAX(1,Synthese!K$82) -> 4
D89: Eq | E89: =IF(G89=0,"",REPT("g",F89/G89*10)) ->  | F89: =Synthese!D$43 -> 0 | G89: =MAX(1,Synthese!K$43) -> 2 | I89: RP | J89: =IF(L89=0,"",REPT("g",K89/L89*10)) ->  | K89: =Synthese!D$61 -> 0 | L89: =MAX(1,Synthese!K$61) -> 4 | N89: V | O89: =IF(Q89=0,"",REPT("g",P89/Q89*10)) ->  | P89: =Synthese!C$82 -> 0 | Q89: =MAX(1,Synthese!J$82) -> 4
D90: Eq | E90: =IF(G90=0,"",REPT("g",F90/G90*10)) ->  | F90: =Synthese!C$43 -> 0 | G90: =MAX(1,Synthese!J$43) -> 2 | I90: RP | J90: =IF(L90=0,"",REPT("g",K90/L90*10)) ->  | K90: =Synthese!C$61 -> 0 | L90: =MAX(1,Synthese!J$61) -> 4 | N90: V | O90: =IF(Q90=0,"",REPT("g",P90/Q90*3)) -> ggg | P90: =IF(AND((P88/Q88)>0.9,(P89/Q89)>0.8),0,IF(AND((P88/Q88)>0.8,(P89/Q89)>0.3),1,IF((P88/Q88)>0.8,2,3))) -> 3 | Q90: 3
D91: Eq | E91: =IF(G91=0,"",REPT("g",F91/G91*3)) -> ggg | F91: =IF(AND((F89/G89)>0.9,(F90/G90)>0.8),0,IF(AND((F89/G89)>0.8,(F90/G90)>0.3),1,IF((F89/G89)>0.8,2,3))) -> 3 | G91: 3 | I91: RP | J91: =IF(L91=0,"",REPT("g",K91/L91*3)) -> ggg | K91: =IF(AND((K89/L89)>0.9,(K90/L90)>0.8),0,IF(AND((K89/L89)>0.8,(K90/L90)>0.3),1,IF((K89/L89)>0.8,2,3))) -> 3 | L91: 3
N93: EC | O93: =IF(Q93=0,"",REPT("g",P93/Q93*10)) ->  | P93: =Synthese!D$35 -> 0 | Q93: =MAX(1,Synthese!K$35) -> 14
D94: GR | E94: =IF(G94=0,"",REPT("g",F94/G94*10)) ->  | F94: =Synthese!D$48 -> 0 | G94: =MAX(1,Synthese!K$48) -> 5 | I94: Se | J94: =IF(L94=0,"",REPT("g",K94/L94*10)) ->  | K94: =Synthese!D$67 -> 0 | L94: =MAX(1,Synthese!K$67) -> 5 | N94: EC | O94: =IF(Q94=0,"",REPT("g",P94/Q94*10)) ->  | P94: =Synthese!C$35 -> 0 | Q94: =MAX(1,Synthese!J$35) -> 14
D95: GR | E95: =IF(G95=0,"",REPT("g",F95/G95*10)) ->  | F95: =Synthese!C$48 -> 0 | G95: =MAX(1,Synthese!J$48) -> 5 | I95: Se | J95: =IF(L95=0,"",REPT("g",K95/L95*10)) ->  | K95: =Synthese!C$67 -> 0 | L95: =MAX(1,Synthese!J$67) -> 5 | N95: EC | O95: =IF(Q95=0,"",REPT("g",P95/Q95*3)) -> ggg | P95: =IF(AND((P93/Q93)>0.9,(P94/Q94)>0.8),0,IF(AND((P93/Q93)>0.8,(P94/Q94)>0.3),1,IF((P93/Q93)>0.8,2,3))) -> 3 | Q95: 3
D96: GR | E96: =IF(G96=0,"",REPT("g",F96/G96*3)) -> ggg | F96: =IF(AND((F94/G94)>0.9,(F95/G95)>0.8),0,IF(AND((F94/G94)>0.8,(F95/G95)>0.3),1,IF((F94/G94)>0.8,2,3))) -> 3 | G96: 3 | I96: Se | J96: =IF(L96=0,"",REPT("g",K96/L96*3)) -> ggg | K96: =IF(AND((K94/L94)>0.9,(K95/L95)>0.8),0,IF(AND((K94/L94)>0.8,(K95/L95)>0.3),1,IF((K94/L94)>0.8,2,3))) -> 3 | L96: 3

Sheet Ton_avis
B7: TON AVIS
B10: Cet outil a vocation à évoluer avec le temps. Nous avons besoin de ton retour d'expérience pour l'améliorer. Si tu souhaites également nous soumettre des actions ou des exemples issus de ta propre expérience, nous pourrons les introduire dans la prochaine version de l'outil.

Sheet Glossaire
B7: GLOSSAIRE
B10: ANCRAGE TERRITORIAL | D10: L’ancrage territorial désigne la capacité de l’événement à contribuer au développement local des territoires qu’il touche, dans une perspective de développement durable et de responsabilité sociétale. L’organisation d’un événement sur un territoire doit donc mettre en place de bonnes pratiques en prenant en compte différents champs d’intervention : le dialogue avec les communautés locales, le développement économique des territoires, la gestion des mutations économiques, le développement social local,... Pour être dans une démarche d’ancrage territorial, il faut donc établir une cohérence forte entre l’organisation d’un événement et son environnement géographique, politique, social, économique.
B12: BIODIVERSITE | D12: La biodiversité représente la diversité des êtres vivants et des écosystèmes (la faune, la flore, les bactéries, les milieux mais aussi les races, les gènes et les variétés domestiques). La biodiversité représente également les réseaux et les interactions que les différents écosystèmes et êtres vivants ont entre eux. On emploie le terme écosystème pour définir à la fois un ensemble d’êtres vivants et un milieu où se déploient ces êtres vivants. L’équilibre des écosystèmes est parfois très fragile, il devient donc nécessaire de prendre en compte le paramètre de la biodiversité lors de la mise en place d’événements.
B14: CULTURE | D14: Dans une approche sociologique, on considère la culture comme un réservoir commun à un groupe d’individus, qui évolue dans le temps grâce aux échanges. La culture définit des manières d'être, de penser, d'agir et de communiquer. Il est évident que les événements étudiants, depuis l’organisation jusqu’au bilan, sont sources de rencontres, d’échanges et de communication. Ils sont donc des moteurs potentiels indéniables dans la transition vers une nouvelle culture. Ce sont les lieux idéaux pour sensibiliser les futurs actifs à être créatifs et à modifier leur rapport avec leur environnement.
B16: ECONOMIE | D16: Mettre en œuvre une stratégie de développement durable au sein d’une école ou université engendre sans aucun doute des bénéfices sociaux et environnementaux. Toutefois, contrairement à certaines idées reçues, cela permet également de réduire les coûts de fonctionnement de l’organisation (directs et indirects).
B18: EMPREINTE CARBONE | D18: On appelle "empreinte carbone" la quantité équivalent carbone des Gaz à effet de Serre émis par une organisation. Ces émissions de Gaz à effet de Serre étant directement responsables du changement climatique, si nous voulons agir pour diminuer les effets du changement climatique (on parle souvent de limiter à 2° C l'augmentation de température moyenne) il est important de pouvoir quantifier ces émissions. Ainsi, le calcul de l'empreinte carbone permet de connaître les postes les plus émetteurs et d'adopter une stratégie de réduction adaptée à sa situation. Pratiquement tous les événements étudiants sont émetteurs de Gaz à effet de Serre, dans des proportions très variable. A titre d'exemple, chauffer un chapiteau pour un événement émet 10000 kg eqCO2, soit autant que de faire le tour du monde en avion.
B20: EQUITE | D20: L'équité est une notion qui renvoie à l'idée de justice : il faut juger et traiter de manière égale des situations identiques mais il est parfois nécessaire d’accorder des droits spécifiques aux groupes sociaux dont la situation est jugée désavantageuse. L’équité revient à traiter différemment les gens différents de manière à compenser les inégalités de position initiale pour aller vers plus d'égalité réelle. L'équité se réfère aux principes de justice sociale en vigueur dans la société. Concevoir un événement, c’est vouloir réunir des individus. Il est donc nécessaire de prendre en compte les spécificités de chacun afin de créer un événement qui soit le plus juste possible, dans sa conception ou son objet.
B22: GESTION DES RESSOURCES | D22: Les ressources ne sont pas infinies et doivent être utilisées avec modération tout en étant au mieux réparties sur la planète. Trop de gaspillage existe en écoles et universités et des gestes simples pourraient permettre de réduire à la fois les consommations de ressources, les émissions de CO2 et la facture des établissements. L’innovation est à plus long terme une des clés de succès de la gestion des ressources : énergies renouvelables, gestion et valorisation des déchets, agriculture durable, etc.
B24: GOUVERNANCE | D24: La gouvernance est l'une des notions phares de la responsabilité sociétale. Souvent, il est considéré qu'il s'agit de l'élément primordial pour prendre en compte la responsabilité dans une organisation. On place derrière ce terme des notions comme l'éthique, la transparence, la participation ou la responsabilité en elle-même. La conception d'un événement est souvent l'occasion de fédérer un petit groupe d'individus. Ce groupe organise ensuite un événement qui fera participer un plus grand nombre d'individus puis probablement communiquera avant, pendant ou après l'événement à un nombre encore plus grand d'individus. On parlera de gouvernance dans chacune de ces étapes : communiquer une information juste et pertinente, faire participer les individus adéquats, piloter l'organisation de manière qualitative, veiller aux processus de prise de décisions, avoir une gestion saine et éthique...
B26: RESEPCT DES PARTICIPANTS | D26: Le respect des participants vise à s'assurer que l'intégrité des participants, tant physique que mental ne soit pas mise en jeu. En premier lieu, on retrouve la santé qui se réfère à un état de bien-être physique et mental. Elle implique que tous les besoins fondamentaux des individus soient satisfaits, qu'ils soient affectifs, sanitaires, nutritionnels, sociaux ou culturels. Dans le cadre d’un événement, il est essentiel, au fil de chaque étape de sa construction, de veiller à ce que tout soit mis en œuvre d’une part pour respecter les participants, d’autre part pour susciter une prise de conscience quant aux problématiques découlant de ce thème.
B28: SECURITE | D28: La sécurité représente une situation ou un état dans lesquels on n’est pas exposé au danger et donc où l’on est en état de confiance. On entendra ici par danger un événement qui pourrait toucher la santé physique ou morale d’autrui. La sécurité concerne l’ensemble des événements étudiants et différentes phases des projets : alimentation, activités, rangement, etc. Font partis du périmètre l’ensemble des participants et des organisateurs ainsi que toute personne se trouvant en lieu proche (en cas d’incendie, etc).
B30: SOLIDARITE | D30: Les événements qui ont trait à la solidarité affectent en particulier les personnes en situation de précarité ou atteintes de divers handicaps ou maladies. La notion de solidarité recouvre des valeurs d’entraide et de soutien mutuel avec autrui. Il est essentiel d’impliquer l’ensemble des populations lors des événements étudiants afin de ne délaisser personne. Tous les participants sont à sensibiliser sur ce type de sujet et il faut intégrer tous les étudiants de l’école quelle que soit leur « diversité ». De nombreux citoyens en dehors de l’école font partie du périmètre : les bénéficiaires de ce type d’actions et associations partenaires.
B32: VOISINAGE | D32: L'organisation d'un événement peut avoir un impact sur la communauté locale. En particulier, il peut générer ce que l'on appelle de la pollution sonore ou visuelle. On entend par là toute source de son ou de lumière qui pourrait être jugé comme non adéquat avec les besoins stricts d'un événement. Notons qu'il existe certaines règlementations à ce sujet, pour le voisinage mais également pour réduire les risques auditifs des participants. La gestion du voisinage inclus également le respect du lieu utilisé : ne pas le dégrader et ne pas laisser sur place de déchets ; rendre le lieu dans l'état ou on l'a trouvé. L'utilisation éphémère d'un site doit donc se faire de manière discrète : éviter autant que possible la gêne pendant (son, lumière...), et après (déchets laissés sur place, décor dégradé de manière durable...) un événement. La Gestion du voisinage consiste à organiser un événement dans le respect de ceux qui vivent à proximité du lieu choisi.
B34: Sous thèmes
B36: Contextualisation de l'événement | D36: Remettre l'événement dans son contexte local. S'intéresser aux activités, aux enjeux, à la culture des lieux de l'événement.
B38: Economie locale | D38: Relocalisation des activités économiques pour renforcer le pouvoir économique des territoires.
B40: Identification des enjeux locaux | D40: Définir les enjeux economiques, sociaux, culturels et environnementaux locaux.
B42: Education à l'environnement | D42: Participer à l'éveil des connaissances sur les questions environnementales.
B44: Gestion du lieu naturel | D44: Préserver les lieux naturels. Inscrire l'événement sans impact (dégradations…) de l'environnement direct.
B46: Impact dans la chaîne de valeur | D46: Prévenir les impacts possibles de l'événement tant en amont qu'en aval (ressources nécessaires à l'événement, pollutions engendrées par l'événement)
B48: Impact sur l'éco système | D48: Prévenir les impacts possibles de l'événement sur les intéractions entre les êtres vivants et leurs milieux.
B50: Apport culturel | D50: Faire de l'événement un support d'enrichissement culturel.
B52: Echanges culturels | D52: Favoriser les échanges et le dialogue pour un enrichissement mutuel.
B54: Sensibilisation au DD | D54: Sensibiliser les participants et organisateurs sur les différentes thématiques permettant d'agir pour un développement durable.
B56: Gestion du budget | D56: Prévoir et suivre son budget.
B58: Impacts économiques indirects | D58: Considérer les coûts de manière globale et pas simplement le coût d'achat.
B60: Investissement juste | D60: Investissement socialement et environnementalement responsable, c'est-à-dire qui va dans le sens des valeurs d'un développement durable.
B62: Rémunération et subordination | D62: Lien entre la structure organisatrice et les personnes s'impliquant dans l'organisation de l'événement.
B64: Communication | D64: Dans l'empreinte carbone de l'événement, l'ensemble des outils et supports de communication utilisé en amont, pendant voir après l'événement.
B66: Déplacement de personnes | D66: Dans l'empreinte carbone de l'événement, déplacement des personnes pour l'organisation ou pour participer à l'événement.
B68: Lieu | D68: Dans l'empreinte carbone de l'événement, ensemble des lieux dans lesquels se déroule l'événement.
B70: Matériels | D70: Dans l'empreinte carbone de l'événement, ensemble du matériel utilisé pour l'événement.
B72: Restauration | D72: Dans l'empreinte carbone de l'événement, ensemble des éléments de restauration, des appareils aux aliments, utilisé lors de l'événement.
B74: Sensibilisation | D74: Sensibiliser les participants et les organisateurs à l'ensemble des thématiques d'un événement responsable.
B76: Accessibilité | D76: Rendre l'événement accessible pour permettre une participation la moins contraignante possible aux personnes en situation de handicap.
B78: Diversité | D78: Lutter contre trop de communautarisme.
B80: Equité des pratiques | D80: Garantir un traitement équitable.
B82: alimentation | D82: Problématiques liées à la disponibilité des ressources alimentaires.
B84: eau | D84: Problématiques liées à la disponibilité et à l'accès à la ressource eau.
B86: énergie | D86: Problématiques liées à l'utilisation de l'énergie.
B88: management | D88: Organiser, suivre et piloter le bon déroulement de l'événement.
B90: matériel | D90: Ensemble du matériel utilisé lors de la réalisation de l'événement.
B92: matières premières et produits | D92: Ensemble des produits et matières utilisés dans la préparation et la réalisation de l'événement.
B94: Ethique et cadre juridique | D94: Respect des bonnes manières d'être et d'agir et de l'ensemble des règles juridiques auxquels on est soumis.
B96: Gestion de l'événement | D96: Gérer de manière opérationnelle le dérouement de l'événément.
B98: Management de l'événement | D98: Organiser, suivre et piloter le bon déroulement de l'événement.
B100: Transparence | D100: Rendre compte des décisions et activités auprès des parties intéressées, c'est-à-dire l'ensemble des personnes en intéractions avec l'événement.
B102: Intégrité | D102: Absence de mauvaise intention. Honnêteté des personnes.
B104: Qualité de l'évènement | D104: S'assurer que l'événement corresponde aux attentes des participants.
B106: Santé | D106: Respect de la santé physique et mental des participants.
B108: Vie privée | D108: Respect de la vie privée des individus.
B110: Alcool | D110: L'alcool est à consommer avec modération :-).
B112: Nuisances sonores | D112: Nuisances liées aux bruits générés par l'événement.
B114: Organisation | D114: Equipe en charge de l'organisation de l'événement.
B116: Parking | D116: Zones de stationnement des véhicules.
B118: Risque de chute de plein pied | D118: Elément non suffisemment sécurisé pour lequel un risque de chute est possible.
B120: Risque électrique | D120: Elément non suffisemment sécurisé pour lequel un risque d'incident électrique est possible.
B122: Risque incendie | D122: Elément non suffisemment sécurisé pour lequel un départ d'incendie est possible.
B124: Liens humains | D124: Lutter contre l'isolement.
B126: Promotion de la solidarité | D126: Promouvoir un esprit solidaire.
B128: Soutien à des causes | D128: Soutenir des causes caritatives ou de solidarité tant local qu'international.
B130: Impact paysager | D130: Nuisances visuelles générées par l'événement. Mauvaise intégration dans le cadre local.
B132: Nuisances olfactives | D132: Nuisances liées aux odeurs générées.
B134: Pollution lumineuse | D134: Nuissances liées à l'utilisation de sources de lumière.

Sheet Credits

Sheet Paramètres
A1: Viande | B1: kgeqC / T | E1: oui
A2: Agneau | B2: 3832 | E2: non
A3: Bœuf | B3: 4744
A4: Canard | B4: 577
A5: Cochon | B5: 1217
A6: Dinde (fermière) | B6: 808
A7: Dinde (industrielle) | B7: 449
A8: Mouton | B8: 3832
A9: Œuf | B9: 3476
A10: Poisson (moyenne française) | B10: 440
A11: Poissons tropicaux | B11: 884
A12: Poulet (fermier) | B12: 640
A13: Poulet (industriel) | B13: 399
A14: Veau | B14: 12802
A17: Département | B17: Coefficient
A18: 1 | B18: 1.14
A19: 2 | B19: 1.14
A20: 3 | B20: 1.14
A21: 4 | B21: 0.82
A22: 5 | B22: 1.14
A23: 6 | B23: 0.8
A24: 7 | B24: 0.82
A25: 8 | B25: 1.23
A26: 9 | B26: 0.94
A27: 10 | B27: 1.23
A28: 11 | B28: 0.8
A29: 12 | B29: 0.94
A30: 13 | B30: 0.8
A31: 14 | B31: 1.14
A32: 15 | B32: 1.14
A33: 16 | B33: 1
A34: 17 | B34: 1
A35: 18 | B35: 1
A36: 19 | B36: 1.14
A37: 21 | B37: 1.14
A38: 22 | B38: 1.07
A39: 23 | B39: 1.14
A40: 24 | B40: 0.94
A41: 25 | B41: 1.14
A42: 26 | B42: 0.82
A43: 27 | B43: 1.14
A44: 28 | B44: 1.14
A45: 29 | B45: 1.07
A46: 30 | B46: 0.8
A47: 31 | B47: 0.94
A48: 32 | B48: 0.94
A49: 33 | B49: 0.94
A50: 34 | B50: 0.8
A51: 35 | B51: 1.07
A52: 36 | B52: 1
A53: 37 | B53: 1
A54: 38 | B54: 1.14
A55: 39 | B55: 1.14
A56: 40 | B56: 0.94
A57: 41 | B57: 1
A58: 42 | B58: 1.14
A59: 43 | B59: 1.14
A60: 44 | B60: 1
A61: 45 | B61: 1.23
A62: 46 | B62: 0.94
A63: 47 | B63: 0.94
A64: 48 | B64: 0.82
A65: 49 | B65: 1
A66: 50 | B66: 1.07
A67: 51 | B67: 1.23
A68: 52 | B68: 1.23
A69: 53 | B69: 1
A70: 54 | B70: 1.23
A71: 55 | B71: 1.23
A72: 56 | B72: 1.07
A73: 57 | B73: 1.23
A74: 58 | B74: 1.23
A75: 59 | B75: 1.14
A76: 60 | B76: 1.14
A77: 61 | B77: 1.14
A78: 62 | B78: 1.14
A79: 63 | B79: 1.14
A80: 64 | B80: 0.94
A81: 65 | B81: 0.94
A82: 66 | B82: 0.8
A83: 67 | B83: 1.23
A84: 68 | B84: 1.23
A85: 69 | B85: 1.14
A86: 70 | B86: 1.23
A87: 71 | B87: 1.14
A88: 72 | B88: 1
A89: 73 | B89: 1.14
A90: 74 | B90: 1.14
A91: 75 | B91: 1.14
A92: 76 | B92: 1.14
A93: 77 | B93: 1.14
A94: 78 | B94: 1.14
A95: 79 | B95: 1
A96: 80 | B96: 1.14
A97: 81 | B97: 0.94
A98: 82 | B98: 0.94
A99: 83 | B99: 0.8
A100: 84 | B100: 0.82
A101: 85 | B101: 1
A102: 86 | B102: 1
A103: 87 | B103: 1.14
A104: 88 | B104: 1.23
A105: 89 | B105: 1.23
A106: 90 | B106: 1.23
A107: 91 | B107: 1.14
A108: 92 | B108: 1.14
A109: 93 | B109: 1.14
A110: 94 | B110: 1.14
A111: 95 | B111: 1.14
A112: 2A | B112: 0.8
A113: 2B | B113: 0.8
A115: Valeur DPE | B115: kgeq.CO2/(m².an)
A116: A | B116: 5
A117: B | B117: 10
A118: C | B118: 20
A119: D | B119: 35
A120: E | B120: 55
A121: F | B121: 80
A122: G | B122: 110
A124: bâtiment antérieur à 1975 | B124: 55
A125: bâtiment construit après 2000 | B125: 20
A126: bâtiment construit entre 1975 et 2000 | B126: 35
A127: bâtiment neuf ou rénové après 2010 | B127: 10
A128: mobil home | B128: 55
B132: bâtiment antérieur à 1975 | C132: bâtiment construit après 2000 | D132: bâtiment construit entre 1975 et 2000 | E132: bâtiment neuf ou rénové après 2010 | F132: mobil home
A133: automne | B133: 1 | C133: 1 | D133: 1 | E133: 1 | F133: 1
A134: été | B134: 0.13 | C134: 0.24 | D134: 0.24 | E134: 0.7 | F134: 0.13
A135: hiver | B135: 1.87 | C135: 1.76 | D135: 1.76 | E135: 1.3 | F135: 1.87
A136: printemps | B136: 1 | C136: 1 | D136: 1 | E136: 1 | F136: 1
A139: type de salle | B139: Ratio de surface (1/m2 par personnes)
A140: d'un camping avec des mobil home. | B140: 0.212
A141: d'un hôtel "1 étoile" ou "2 étoiles". | B141: 0.12
A142: d'un hôtel "3 étoiles" ou plus. | B142: 0.067
A143: d'un restaurant. | B143: 1
A144: d'une auberge de jeunesse. | B144: 0.15
A145: d'une salle de concert où les participants sont assis. | B145: 0.84
A146: d'une salle de concert où les participants sont debouts. | B146: 1.4
A147: d'une salle de conférence. | B147: 0.9
A148: d'une salle de réunion. | B148: 0.49
A149: d'une salle de soirée. | B149: 1.5
A154: Type de transport | B154: kgeqC / T
A155: Autobus interurbain | B155: 0.01101016949
A156: Autobus urbain | B156: 0.02769
A157: Avion court courrier | B157: =0.037+0.034 -> 0.071
A158: Avion long courrier | B158: =0.038+0.035 -> 0.073
A159: Minibus | B159: 0.0349
A160: TER | B160: 0.01020195184
A161: TGV | B161: 0.000699769637
A162: Train en France, moyenne | B162: 0.002629286623
A163: Voiture en parcours Extra-urbain | B163: 0.065
A164: Voiture en parcours mixte | B164: 0.067
A165: Voiture en parcours urbain | B165: 0.07
A175: ANCRAGE TERRITORIAL | B175: BIODIVERSITE | C175: CULTURE | D175: ECONOMIE | E175: EMPREINTE CARBONE | F175: EQUITE | G175: GESTION DES RESSOURCES | H175: GOUVERN. | I175: RESEPCT PARTICIPANT | J175: SECURITE | K175: SOLIDARITE | L175: VOISINAGE
A176: Contextualisation de l'événement | B176: Education à l'environnement | C176: Apport culturel | D176: Gestion du budget | E176: Restauration | F176: Accessibilité | G176: alimentation | H176: Ethique et cadre juridique | I176: Intégrité | J176: Alcool | K176: Promotion de la solidarité | L176: Impact paysager
A177: Economie locale | B177: Gestion du lieu naturel | C177: Echanges culturels | D177: Impacts économiques indirects | E177: Lieu | F177: Diversité | G177: eau | H177: Gestion de l'événement | I177: Qualité de l'évènement | J177: Nuisances sonores | K177: Liens humains | L177: Nuisances sonores
A178: Identification des enjeux locaux | B178: Impact dans la chaîne de valeur | C178: Sensibilisation au développement durable | D178: Investissement juste | E178: Matériels | F178: Equité des pratiques | G178: énergie | H178: Management de l'événement | I178: Santé | J178: Organisation | K178: Sensibilisation | L178: Nuisances olfactives
B179: Impact sur l'éco système | D179: Rémunération et subordination | E179: Déplacement de personnes | G179: management | H179: Transparence | I179: Vie privée | J179: Parking | K179: Soutien à des causes | L179: Management
E180: Communication | G180: matières premières et produits | J180: Risque de chute de plein pied | L180: Pollution lumineuse
E181: Sensibilisation | J181: Risque électrique
I182: Risque incendie

Sheet Feuil2
A2: THÈMATIQUES
A3: Ancrage territorial
A4: Biodiversité
A5: Culture
A6: Economie
A7: Empreinte carbone
A8: Equité
A9: gestion des ressources
A10: Gouvernance
A11: Respect des participants
A12: Sécurité
A13: Solidarité
A14: Voisinage
